Workbook

Sheet Main
B10: 2023-05-30
B12: Sheet No. | C12: Template Name | D12: Summary
B13: 1 | C13: Future Intra | D13: For Intraday trading in F&O segment
B14: 2 | C14: Cash Intra | D14: For Intraday trading in cash market segment
B15: 3 | C15: Mid-cap Intra | D15: For Intraday trading in Mid-cap stocks
B16: 4 | C16: Bulk Deals | D16: Reveals Bulk Deals carried on NSE & BSE
B17: 5 | C17: Call Tracker
K27: `

Sheet Future Intra
M5: Back to Main Page
A6: FOR INTRA DAY TRADING | L6: =Main!B10 -> 2023-05-30
A9: Sr.no | B9: Sector | C9: Scrip | D9: Expiry Date | E9: CLOSE RATE | F9: Pivot Point | G9: Supports | J9: Resistances
E10: Point | F10: Point | G10: S1 | H10: S2 | I10: S3 | J10: R1 | K10: R2 | L10: R3 | M10: HIGH | N10: LOW | O10: OI | P10: % Change in OI
A11: 1 | B11: Index | C11: NIFTY | D11: 2023-06-29 | E11: 18673.70 | F11: 18679.80 | G11: 18642.10 | H11: 18610.50 | I11: 18572.80 | J11: 18711.40 | K11: 18749.10 | L11: 18780.70 | M11: 18717.5 | N11: 18648.2 | O11: 10321850 | P11: 0.84%
A12: 2 | B12: Index | C12: BANKNIFTY | D12: 2023-06-29 | E12: 44368.30 | F12: 44364.43 | G12: 44203.87 | H12: 44039.43 | I12: 43878.87 | J12: 44528.87 | K12: 44689.43 | L12: 44853.87 | M12: 44525 | N12: 44200 | O12: 2300615 | P12: 0.43%
A13: 3 | B13: Index | C13: FINNIFTY | D13: 2023-05-30 | E13: 19536.25 | F13: 19547.13 | G13: 19476.92 | H13: 19417.58 | I13: 19347.37 | J13: 19606.47 | K13: 19676.68 | L13: 19736.02 | M13: 19617.35 | N13: 19487.8 | O13: 54320 | P13: 10.32%
A14: 4 | B14: Index | C14: MIDCPNIFTY | D14: 2023-05-31 | E14: 7759.95 | F14: 7762.03 | G14: 7757.87 | H14: 7755.78 | I14: 7751.62 | J14: 7764.12 | K14: 7768.28 | L14: 7770.37 | M14: 7766.2 | N14: 7759.95 | O14: 150 | P14: 100.00%
A15: 5 | B15: Chemical | C15: AARTIIND | D15: 2023-06-29 | E15: 518.40 | F15: 517.55 | G15: 514.60 | H15: 510.80 | I15: 507.85 | J15: 521.35 | K15: 524.30 | L15: 528.10 | M15: 520.5 | N15: 513.75 | O15: 5082300 | P15: 0.88%
A16: 6 | B16: Capital_Goods | C16: ABB | D16: 2023-06-29 | E16: 4045.35 | F16: 4048.15 | G16: 4022.40 | H16: 3999.45 | I16: 3973.70 | J16: 4071.10 | K16: 4096.85 | L16: 4119.80 | M16: 4073.9 | N16: 4025.2 | O16: 1359000 | P16: 0.22%
A17: 7 | B17: Pharma | C17: ABBOTINDIA | D17: 2023-06-29 | E17: 22066.65 | F17: 22048.60 | G17: 21928.10 | H17: 21789.55 | I17: 21669.05 | J17: 22187.15 | K17: 22307.65 | L17: 22446.20 | M17: 22169.1 | N17: 21910.05 | O17: 65360 | P17: 2.00%
A18: 8 | B18: Others | C18: ABCAPITAL | D18: 2023-06-29 | E18: 166.95 | F18: 167.32 | G18: 165.38 | H18: 163.82 | I18: 161.88 | J18: 168.88 | K18: 170.82 | L18: 172.38 | M18: 169.25 | N18: 165.75 | O18: 28679400 | P18: 0.87%
A19: 9 | B19: Textile | C19: ABFRL | D19: 2023-06-29 | E19: 198.30 | F19: 198.40 | G19: 196.90 | H19: 195.50 | I19: 194.00 | J19: 199.80 | K19: 201.30 | L19: 202.70 | M19: 199.9 | N19: 197 | O19: 28995200 | P19: 1.79%
A20: 10 | B20: Cement | C20: ACC | D20: 2023-06-29 | E20: 1807.80 | F20: 1807.60 | G20: 1793.20 | H20: 1778.60 | I20: 1764.20 | J20: 1822.20 | K20: 1836.60 | L20: 1851.20 | M20: 1822 | N20: 1793 | O20: 4782400 | P20: 1.45%
A21: 11 | B21: Others | C21: ADANIENT | D21: 2023-06-29 | E21: 2555.30 | F21: 2562.92 | G21: 2529.38 | H21: 2503.47 | I21: 2469.93 | J21: 2588.83 | K21: 2622.37 | L21: 2648.28 | M21: 2596.45 | N21: 2537 | O21: 8784100 | P21: -1.39%
A22: 12 | B22: Others | C22: ADANIPORTS | D22: 2023-06-29 | E22: 742.35 | F22: 739.85 | G22: 733.75 | H22: 725.15 | I22: 719.05 | J22: 748.45 | K22: 754.55 | L22: 763.15 | M22: 745.95 | N22: 731.25 | O22: 38587725 | P22: -0.96%
A23: 13 | B23: Pharma | C23: ALKEM | D23: 2023-06-29 | E23: 3373.75 | F23: 3376.15 | G23: 3350.15 | H23: 3326.55 | I23: 3300.55 | J23: 3399.75 | K23: 3425.75 | L23: 3449.35 | M23: 3402.15 | N23: 3352.55 | O23: 531800 | P23: 0.95%
A24: 14 | B24: Cement | C24: AMBUJACEM | D24: 2023-06-29 | E24: 430.00 | F24: 429.38 | G24: 425.27 | H24: 420.53 | I24: 416.42 | J24: 434.12 | K24: 438.23 | L24: 442.97 | M24: 433.5 | N24: 424.65 | O24: 57907800 | P24: 0.02%
A25: 15 | B25: Others | C25: APOLLOHOSP | D25: 2023-06-29 | E25: 4676.10 | F25: 4661.72 | G25: 4623.48 | H25: 4570.87 | I25: 4532.63 | J25: 4714.33 | K25: 4752.57 | L25: 4805.18 | M25: 4699.95 | N25: 4609.1 | O25: 1810875 | P25: 4.96%
A26: 16 | B26: Automobile | C26: APOLLOTYRE | D26: 2023-06-29 | E26: 390.25 | F26: 390.97 | G26: 387.93 | H26: 385.62 | I26: 382.58 | J26: 393.28 | K26: 396.32 | L26: 398.63 | M26: 394 | N26: 388.65 | O26: 13505900 | P26: 0.63%
A27: 17 | B27: Automobile | C27: ASHOKLEY | D27: 2023-06-29 | E27: 146.90 | F27: 146.90 | G27: 146.05 | H27: 145.20 | I27: 144.35 | J27: 147.75 | K27: 148.60 | L27: 149.45 | M27: 147.75 | N27: 146.05 | O27: 68705000 | P27: -0.12%
A28: 18 | B28: FMCG | C28: ASIANPAINT | D28: 2023-06-29 | E28: 3136.90 | F28: 3136.77 | G28: 3117.48 | H28: 3098.07 | I28: 3078.78 | J28: 3156.18 | K28: 3175.47 | L28: 3194.88 | M28: 3156.05 | N28: 3117.35 | O28: 5483200 | P28: -0.33%
A29: 19 | B29: Others | C29: ASTRAL | D29: 2023-06-29 | E29: 1806.55 | F29: 1805.10 | G29: 1778.55 | H29: 1750.55 | I29: 1724.00 | J29: 1833.10 | K29: 1859.65 | L29: 1887.65 | M29: 1831.65 | N29: 1777.1 | O29: 1559750 | P29: 13.15%
A30: 20 | B30: Others | C30: ATUL | D30: 2023-06-29 | E30: 6888.70 | F30: 6858.32 | G30: 6807.48 | H30: 6726.27 | I30: 6675.43 | J30: 6939.53 | K30: 6990.37 | L30: 7071.58 | M30: 6909.15 | N30: 6777.1 | O30: 182325 | P30: -5.78%
A31: 21 | B31: Banking | C31: AUBANK | D31: 2023-06-29 | E31: 776.10 | F31: 773.77 | G31: 766.78 | H31: 757.47 | I31: 750.48 | J31: 783.08 | K31: 790.07 | L31: 799.38 | M31: 780.75 | N31: 764.45 | O31: 13262000 | P31: 6.62%
A32: 22 | B32: Pharma | C32: AUROPHARMA | D32: 2023-06-29 | E32: 615.35 | F32: 607.93 | G32: 594.47 | H32: 573.58 | I32: 560.12 | J32: 628.82 | K32: 642.28 | L32: 663.17 | M32: 621.4 | N32: 587.05 | O32: 9418300 | P32: 1.37%
A33: 23 | B33: Banking | C33: AXISBANK | D33: 2023-06-29 | E33: 935.50 | F33: 937.17 | G33: 931.28 | H33: 927.07 | I33: 921.18 | J33: 941.38 | K33: 947.27 | L33: 951.48 | M33: 943.05 | N33: 932.95 | O33: 47348650 | P33: 0.50%
A34: 24 | B34: Automobile | C34: BAJAJ-AUTO | D34: 2023-06-29 | E34: 4626.15 | F34: 4640.13 | G34: 4607.22 | H34: 4588.28 | I34: 4555.37 | J34: 4659.07 | K34: 4691.98 | L34: 4710.92 | M34: 4673.05 | N34: 4621.2 | O34: 2552750 | P34: -1.54%
A35: 25 | B35: Finance | C35: BAJAJFINSV | D35: 2023-06-29 | E35: 1460.00 | F35: 1463.30 | G35: 1448.30 | H35: 1436.60 | I35: 1421.60 | J35: 1475.00 | K35: 1490.00 | L35: 1501.70 | M35: 1478.3 | N35: 1451.6 | O35: 8923000 | P35: 3.53%
A36: 26 | B36: Finance | C36: BAJFINANCE | D36: 2023-06-29 | E36: 6967.55 | F36: 6977.37 | G36: 6935.93 | H36: 6904.32 | I36: 6862.88 | J36: 7008.98 | K36: 7050.42 | L36: 7082.03 | M36: 7018.8 | N36: 6945.75 | O36: 4037875 | P36: 2.25%
A37: 27 | B37: Automobile | C37: BALKRISIND | D37: 2023-06-29 | E37: 2275.85 | F37: 2286.50 | G37: 2225.00 | H37: 2174.15 | I37: 2112.65 | J37: 2337.35 | K37: 2398.85 | L37: 2449.70 | M37: 2348 | N37: 2235.65 | O37: 1994400 | P37: 15.68%
A38: 28 | B38: Others | C38: BALRAMCHIN | D38: 2023-06-29 | E38: 396.80 | F38: 396.52 | G38: 392.83 | H38: 388.87 | I38: 385.18 | J38: 400.48 | K38: 404.17 | L38: 408.13 | M38: 400.2 | N38: 392.55 | O38: 6753600 | P38: 3.56%
A39: 29 | B39: Banking | C39: BANDHANBNK | D39: 2023-06-29 | E39: 266.15 | F39: 265.20 | G39: 262.45 | H39: 258.75 | I39: 256.00 | J39: 268.90 | K39: 271.65 | L39: 275.35 | M39: 267.95 | N39: 261.5 | O39: 34506600 | P39: 1.49%
A40: 30 | B40: Banking | C40: BANKBARODA | D40: 2023-06-29 | E40: 185.15 | F40: 185.25 | G40: 184.05 | H40: 182.95 | I40: 181.75 | J40: 186.35 | K40: 187.55 | L40: 188.65 | M40: 186.45 | N40: 184.15 | O40: 97548750 | P40: 0.10%
A41: 31 | B41: FMCG | C41: BATAINDIA | D41: 2023-06-29 | E41: 1585.65 | F41: 1586.07 | G41: 1577.13 | H41: 1568.62 | I41: 1559.68 | J41: 1594.58 | K41: 1603.52 | L41: 1612.03 | M41: 1595 | N41: 1577.55 | O41: 1633900 | P41: -1.67%
A42: 32 | B42: Capital_Goods | C42: BEL | D42: 2023-06-29 | E42: 112.30 | F42: 111.90 | G42: 111.30 | H42: 110.30 | I42: 109.70 | J42: 112.90 | K42: 113.50 | L42: 114.50 | M42: 112.5 | N42: 110.9 | O42: 74989200 | P42: 1.72%
A43: 33 | B43: FMCG | C43: BERGEPAINT | D43: 2023-06-29 | E43: 640.65 | F43: 641.62 | G43: 636.23 | H43: 631.82 | I43: 626.43 | J43: 646.03 | K43: 651.42 | L43: 655.83 | M43: 647 | N43: 637.2 | O43: 9289500 | P43: 0.07%
A44: 34 | B44: Automobile | C44: BHARATFORG | D44: 2023-06-29 | E44: 791.30 | F44: 785.53 | G44: 777.72 | H44: 764.13 | I44: 756.32 | J44: 799.12 | K44: 806.93 | L44: 820.52 | M44: 793.35 | N44: 771.95 | O44: 9477000 | P44: -2.83%
A45: 35 | B45: Telecom | C45: BHARTIARTL | D45: 2023-06-29 | E45: 824.75 | F45: 825.52 | G45: 820.43 | H45: 816.12 | I45: 811.03 | J45: 829.83 | K45: 834.92 | L45: 839.23 | M45: 830.6 | N45: 821.2 | O45: 36249150 | P45: -2.33%
A46: 36 | B46: Capital_Goods | C46: BHEL | D46: 2023-06-29 | E46: 83.65 | F46: 81.87 | G46: 79.48 | H46: 75.32 | I46: 72.93 | J46: 86.03 | K46: 88.42 | L46: 92.58 | M46: 84.25 | N46: 77.7 | O46: 108087000 | P46: -1.06%
A47: 37 | B47: Pharma | C47: BIOCON | D47: 2023-06-29 | E47: 244.00 | F47: 243.20 | G47: 240.30 | H47: 236.60 | I47: 233.70 | J47: 246.90 | K47: 249.80 | L47: 253.50 | M47: 246.1 | N47: 239.5 | O47: 25637600 | P47: -4.53%
A48: 38 | B48: Automobile | C48: BOSCHLTD | D48: 2023-06-29 | E48: 18428.60 | F48: 18569.20 | G48: 18259.40 | H48: 18090.20 | I48: 17780.40 | J48: 18738.40 | K48: 19048.20 | L48: 19217.40 | M48: 18879 | N48: 18400 | O48: 149350 | P48: 16.77%
A49: 39 | B49: Oil_Gas | C49: BPCL | D49: 2023-06-29 | E49: 363.80 | F49: 365.60 | G49: 361.30 | H49: 358.80 | I49: 354.50 | J49: 368.10 | K49: 372.40 | L49: 374.90 | M49: 369.9 | N49: 363.1 | O49: 21096000 | P49: 1.29%
A50: 40 | B50: FMCG | C50: BRITANNIA | D50: 2023-06-29 | E50: 4607.75 | F50: 4617.27 | G50: 4586.38 | H50: 4565.02 | I50: 4534.13 | J50: 4638.63 | K50: 4669.52 | L50: 4690.88 | M50: 4648.15 | N50: 4595.9 | O50: 1519800 | P50: -0.50%
A51: 41 | B51: Technology | C51: BSOFT | D51: 2023-06-29 | E51: 342.20 | F51: 342.08 | G51: 338.72 | H51: 335.23 | I51: 331.87 | J51: 345.57 | K51: 348.93 | L51: 352.42 | M51: 345.45 | N51: 338.6 | O51: 8562000 | P51: 1.01%
A52: 42 | B52: Banking | C52: CANBK | D52: 2023-06-29 | E52: 309.45 | F52: 310.08 | G52: 307.32 | H52: 305.18 | I52: 302.42 | J52: 312.22 | K52: 314.98 | L52: 317.12 | M52: 312.85 | N52: 307.95 | O52: 44490600 | P52: -0.18%
A53: 43 | B53: Finance | C53: CANFINHOME | D53: 2023-06-29 | E53: 695.15 | F53: 691.83 | G53: 684.12 | H53: 673.08 | I53: 665.37 | J53: 702.87 | K53: 710.58 | L53: 721.62 | M53: 699.55 | N53: 680.8 | O53: 3828825 | P53: 4.66%
A54: 44 | B54: Others | C54: CHAMBLFERT | D54: 2023-06-29 | E54: 288.10 | F54: 286.43 | G54: 277.97 | H54: 267.83 | I54: 259.37 | J54: 296.57 | K54: 305.03 | L54: 315.17 | M54: 294.9 | N54: 276.3 | O54: 6062900 | P54: -17.88%
A55: 45 | B55: Finance | C55: CHOLAFIN | D55: 2023-06-29 | E55: 1062.75 | F55: 1063.25 | G55: 1056.55 | H55: 1050.35 | I55: 1043.65 | J55: 1069.45 | K55: 1076.15 | L55: 1082.35 | M55: 1069.95 | N55: 1057.05 | O55: 10725000 | P55: 2.18%
A56: 46 | B56: Pharma | C56: CIPLA | D56: 2023-06-29 | E56: 960.80 | F56: 958.07 | G56: 954.53 | H56: 948.27 | I56: 944.73 | J56: 964.33 | K56: 967.87 | L56: 974.13 | M56: 961.6 | N56: 951.8 | O56: 9742200 | P56: 0.11%
A57: 47 | B57: Others | C57: COALINDIA | D57: 2023-06-29 | E57: 248.00 | F57: 246.48 | G57: 243.52 | H57: 239.03 | I57: 236.07 | J57: 250.97 | K57: 253.93 | L57: 258.42 | M57: 249.45 | N57: 242 | O57: 35124600 | P57: 4.33%
A58: 48 | B58: Technology | C58: COFORGE | D58: 2023-06-29 | E58: 4441.65 | F58: 4458.97 | G58: 4412.03 | H58: 4382.42 | I58: 4335.48 | J58: 4488.58 | K58: 4535.52 | L58: 4565.13 | M58: 4505.9 | N58: 4429.35 | O58: 626400 | P58: -1.58%
A59: 49 | B59: FMCG | C59: COLPAL | D59: 2023-06-29 | E59: 1618.40 | F59: 1617.42 | G59: 1609.23 | H59: 1600.07 | I59: 1591.88 | J59: 1626.58 | K59: 1634.77 | L59: 1643.93 | M59: 1625.6 | N59: 1608.25 | O59: 2726500 | P59: 2.68%
A60: 50 | B60: Others | C60: CONCOR | D60: 2023-06-29 | E60: 677.80 | F60: 677.20 | G60: 670.90 | H60: 664.00 | I60: 657.70 | J60: 684.10 | K60: 690.40 | L60: 697.30 | M60: 683.5 | N60: 670.3 | O60: 5275000 | P60: 4.54%
A61: 51 | B61: Others | C61: COROMANDEL | D61: 2023-06-29 | E61: 953.90 | F61: 953.32 | G61: 937.63 | H61: 921.37 | I61: 905.68 | J61: 969.58 | K61: 985.27 | L61: 1001.53 | M61: 969 | N61: 937.05 | O61: 1528100 | P61: 3.80%
A62: 52 | B62: Capital_Goods | C62: CROMPTON | D62: 2023-06-29 | E62: 276.90 | F62: 275.85 | G62: 274.40 | H62: 271.90 | I62: 270.45 | J62: 278.35 | K62: 279.80 | L62: 282.30 | M62: 277.3 | N62: 273.35 | O62: 19308300 | P62: -0.95%
A63: 53 | B63: Banking | C63: CUB | D63: 2023-06-29 | E63: 125.10 | F63: 128.30 | G63: 121.50 | H63: 117.90 | I63: 111.10 | J63: 131.90 | K63: 138.70 | L63: 142.30 | M63: 135.1 | N63: 124.7 | O63: 26755000 | P63: 83.07%
A64: 54 | B64: Capital_Goods | C64: CUMMINSIND | D64: 2023-06-29 | E64: 1753.90 | F64: 1752.17 | G64: 1739.48 | H64: 1725.07 | I64: 1712.38 | J64: 1766.58 | K64: 1779.27 | L64: 1793.68 | M64: 1764.85 | N64: 1737.75 | O64: 2892000 | P64: -2.72%
A65: 55 | B65: FMCG | C65: DABUR | D65: 2023-06-29 | E65: 550.80 | F65: 549.47 | G65: 546.38 | H65: 541.97 | I65: 538.88 | J65: 553.88 | K65: 556.97 | L65: 561.38 | M65: 552.55 | N65: 545.05 | O65: 11711250 | P65: -6.78%
A66: 56 | B66: Cement | C66: DALBHARAT | D66: 2023-06-29 | E66: 2106.95 | F66: 2101.57 | G66: 2080.48 | H66: 2054.02 | I66: 2032.93 | J66: 2128.03 | K66: 2149.12 | L66: 2175.58 | M66: 2122.65 | N66: 2075.1 | O66: 1792500 | P66: 4.40%
A67: 57 | B67: Chemical | C67: DEEPAKNTR | D67: 2023-06-29 | E67: 2079.10 | F67: 2075.65 | G67: 2061.50 | H67: 2043.90 | I67: 2029.75 | J67: 2093.25 | K67: 2107.40 | L67: 2125.00 | M67: 2089.8 | N67: 2058.05 | O67: 2043700 | P67: 4.78%
A68: 58 | B68: Others | C68: DELTACORP | D68: 2023-06-29 | E68: 241.95 | F68: 240.63 | G68: 237.22 | H68: 232.48 | I68: 229.07 | J68: 245.37 | K68: 248.78 | L68: 253.52 | M68: 244.05 | N68: 235.9 | O68: 16909200 | P68: 5.63%
A69: 59 | B69: Pharma | C69: DIVISLAB | D69: 2023-06-29 | E69: 3475.65 | F69: 3483.08 | G69: 3441.22 | H69: 3406.78 | I69: 3364.92 | J69: 3517.52 | K69: 3559.38 | L69: 3593.82 | M69: 3524.95 | N69: 3448.65 | O69: 3755500 | P69: 0.29%
A70: 60 | B70: Others | C70: DIXON | D70: 2023-06-29 | E70: 3731.15 | F70: 3711.90 | G70: 3678.80 | H70: 3626.45 | I70: 3593.35 | J70: 3764.25 | K70: 3797.35 | L70: 3849.70 | M70: 3745 | N70: 3659.55 | O70: 1133400 | P70: 0.98%
A71: 61 | B71: Realty | C71: DLF | D71: 2023-06-29 | E71: 483.95 | F71: 483.08 | G71: 477.27 | H71: 470.58 | I71: 464.77 | J71: 489.77 | K71: 495.58 | L71: 502.27 | M71: 488.9 | N71: 476.4 | O71: 35065800 | P71: -1.41%
A72: 62 | B72: Pharma | C72: DRREDDY | D72: 2023-06-29 | E72: 4586.10 | F72: 4571.82 | G72: 4541.23 | H72: 4496.37 | I72: 4465.78 | J72: 4616.68 | K72: 4647.27 | L72: 4692.13 | M72: 4602.4 | N72: 4526.95 | O72: 3262875 | P72: 0.27%
A73: 63 | B73: Automobile | C73: EICHERMOT | D73: 2023-06-29 | E73: 3700.15 | F73: 3693.43 | G73: 3669.97 | H73: 3639.78 | I73: 3616.32 | J73: 3723.62 | K73: 3747.08 | L73: 3777.27 | M73: 3716.9 | N73: 3663.25 | O73: 3295600 | P73: 2.91%
A74: 64 | B74: Automobile | C74: ESCORTS | D74: 2023-06-29 | E74: 2106.05 | F74: 2102.87 | G74: 2092.68 | H74: 2079.32 | I74: 2069.13 | J74: 2116.23 | K74: 2126.42 | L74: 2139.78 | M74: 2113.05 | N74: 2089.5 | O74: 1131350 | P74: 2.26%
A75: 65 | B75: Automobile | C75: EXIDEIND | D75: 2023-06-29 | E75: 209.95 | F75: 210.27 | G75: 208.73 | H75: 207.52 | I75: 205.98 | J75: 211.48 | K75: 213.02 | L75: 214.23 | M75: 211.8 | N75: 209.05 | O75: 20620800 | P75: 0.00%
A76: 66 | B76: Banking | C76: FEDERALBNK | D76: 2023-06-29 | E76: 126.05 | F76: 126.02 | G76: 125.48 | H76: 124.92 | I76: 124.38 | J76: 126.58 | K76: 127.12 | L76: 127.68 | M76: 126.55 | N76: 125.45 | O76: 76430000 | P76: -0.13%
A77: 67 | B77: Oil_Gas | C77: GAIL | D77: 2023-06-29 | E77: 107.10 | F77: 106.98 | G77: 106.42 | H77: 105.73 | I77: 105.17 | J77: 107.67 | K77: 108.23 | L77: 108.92 | M77: 107.55 | N77: 106.3 | O77: 63436950 | P77: 0.74%
A78: 68 | B78: Pharma | C78: GLENMARK | D78: 2023-06-29 | E78: 599.85 | F78: 598.45 | G78: 594.45 | H78: 589.05 | I78: 585.05 | J78: 603.85 | K78: 607.85 | L78: 613.25 | M78: 602.45 | N78: 593.05 | O78: 7370350 | P78: 4.07%
A79: 69 | B79: Infrastructure | C79: GMRINFRA | D79: 2023-06-29 | E79: 40.65 | F79: 41.78 | G79: 39.02 | H79: 37.38 | I79: 34.62 | J79: 43.42 | K79: 46.18 | L79: 47.82 | M79: 44.55 | N79: 40.15 | O79: 145192500 | P79: 15.48%
A80: 70 | B80: Others | C80: GNFC | D80: 2023-06-29 | E80: 602.55 | F80: 603.33 | G80: 597.02 | H80: 591.48 | I80: 585.17 | J80: 608.87 | K80: 615.18 | L80: 620.72 | M80: 609.65 | N80: 597.8 | O80: 5908500 | P80: 1.43%
A81: 71 | B81: FMCG | C81: GODREJCP | D81: 2023-06-29 | E81: 1051.85 | F81: 1052.97 | G81: 1047.28 | H81: 1042.72 | I81: 1037.03 | J81: 1057.53 | K81: 1063.22 | L81: 1067.78 | M81: 1058.65 | N81: 1048.4 | O81: 6209000 | P81: -2.24%
A82: 72 | B82: Realty | C82: GODREJPROP | D82: 2023-06-29 | E82: 1385.90 | F82: 1383.20 | G82: 1370.00 | H82: 1354.10 | I82: 1340.90 | J82: 1399.10 | K82: 1412.30 | L82: 1428.20 | M82: 1396.4 | N82: 1367.3 | O82: 4440975 | P82: -0.04%
A83: 73 | B83: Pharma | C83: GRANULES | D83: 2023-06-29 | E83: 282.95 | F83: 281.72 | G83: 279.78 | H83: 276.62 | I83: 274.68 | J83: 284.88 | K83: 286.82 | L83: 289.98 | M83: 283.65 | N83: 278.55 | O83: 8738000 | P83: -1.24%
A84: 74 | B84: Cement | C84: GRASIM | D84: 2023-06-29 | E84: 1721.20 | F84: 1709.57 | G84: 1695.13 | H84: 1669.07 | I84: 1654.63 | J84: 1735.63 | K84: 1750.07 | L84: 1776.13 | M84: 1724 | N84: 1683.5 | O84: 12638800 | P84: -0.28%
A85: 75 | B85: Oil_Gas | C85: GUJGASLTD | D85: 2023-06-29 | E85: 499.15 | F85: 500.78 | G85: 496.62 | H85: 494.08 | I85: 489.92 | J85: 503.32 | K85: 507.48 | L85: 510.02 | M85: 504.95 | N85: 498.25 | O85: 5650000 | P85: 0.62%
A86: 76 | B86: Others | C86: HAL | D86: 2023-06-29 | E86: 3034.35 | F86: 3042.10 | G86: 3010.70 | H86: 2987.05 | I86: 2955.65 | J86: 3065.75 | K86: 3097.15 | L86: 3120.80 | M86: 3073.5 | N86: 3018.45 | O86: 3374700 | P86: 6.66%
A87: 77 | B87: Capital_Goods | C87: HAVELLS | D87: 2023-06-29 | E87: 1300.45 | F87: 1296.13 | G87: 1289.47 | H87: 1278.48 | I87: 1271.82 | J87: 1307.12 | K87: 1313.78 | L87: 1324.77 | M87: 1302.8 | N87: 1285.15 | O87: 5290500 | P87: 0.79%
A88: 78 | B88: Technology | C88: HCLTECH | D88: 2023-06-29 | E88: 1134.40 | F88: 1140.83 | G88: 1126.67 | H88: 1118.93 | I88: 1104.77 | J88: 1148.57 | K88: 1162.73 | L88: 1170.47 | M88: 1155 | N88: 1133.1 | O88: 10669400 | P88: 0.21%
A89: 79 | B89: Finance | C89: HDFC | D89: 2023-06-29 | E89: 2708.90 | F89: 2704.65 | G89: 2690.95 | H89: 2673.00 | I89: 2659.30 | J89: 2722.60 | K89: 2736.30 | L89: 2754.25 | M89: 2718.35 | N89: 2686.7 | O89: 25161000 | P89: 2.61%
A90: 80 | B90: Finance | C90: HDFCAMC | D90: 2023-06-29 | E90: 1864.80 | F90: 1869.77 | G90: 1841.53 | H90: 1818.27 | I90: 1790.03 | J90: 1893.03 | K90: 1921.27 | L90: 1944.53 | M90: 1898 | N90: 1846.5 | O90: 2790600 | P90: 5.62%
A91: 81 | B91: Banking | C91: HDFCBANK | D91: 2023-06-29 | E91: 1643.85 | F91: 1639.53 | G91: 1630.57 | H91: 1617.28 | I91: 1608.32 | J91: 1652.82 | K91: 1661.78 | L91: 1675.07 | M91: 1648.5 | N91: 1626.25 | O91: 74424350 | P91: -1.01%
A92: 82 | B92: Finance | C92: HDFCLIFE | D92: 2023-06-29 | E92: 580.45 | F92: 582.30 | G92: 575.15 | H92: 569.85 | I92: 562.70 | J92: 587.60 | K92: 594.75 | L92: 600.05 | M92: 589.45 | N92: 577 | O92: 17199600 | P92: -0.39%
A93: 83 | B93: Automobile | C93: HEROMOTOCO | D93: 2023-06-29 | E93: 2790.55 | F93: 2785.70 | G93: 2762.25 | H93: 2733.95 | I93: 2710.50 | J93: 2814.00 | K93: 2837.45 | L93: 2865.75 | M93: 2809.15 | N93: 2757.4 | O93: 4150200 | P93: 0.60%
A94: 84 | B94: Metals | C94: HINDALCO | D94: 2023-06-29 | E94: 423.05 | F94: 422.77 | G94: 417.38 | H94: 411.72 | I94: 406.33 | J94: 428.43 | K94: 433.82 | L94: 439.48 | M94: 428.15 | N94: 417.1 | O94: 30132200 | P94: -1.78%
A95: 85 | B95: Metals | C95: HINDCOPPER | D95: 2023-06-29 | E95: 109.55 | F95: 108.80 | G95: 107.40 | H95: 105.25 | I95: 103.85 | J95: 110.95 | K95: 112.35 | L95: 114.50 | M95: 110.2 | N95: 106.65 | O95: 23000600 | P95: 4.75%
A96: 86 | B96: Oil_Gas | C96: HINDPETRO | D96: 2023-06-29 | E96: 259.50 | F96: 259.63 | G96: 257.27 | H96: 255.03 | I96: 252.67 | J96: 261.87 | K96: 264.23 | L96: 266.47 | M96: 262 | N96: 257.4 | O96: 19785600 | P96: 0.27%
A97: 87 | B97: FMCG | C97: HINDUNILVR | D97: 2023-06-29 | E97: 2647.80 | F97: 2654.77 | G97: 2638.03 | H97: 2628.27 | I97: 2611.53 | J97: 2664.53 | K97: 2681.27 | L97: 2691.03 | M97: 2671.5 | N97: 2645 | O97: 9435300 | P97: 1.23%
A98: 88 | B98: Finance | C98: IBULHSGFIN | D98: 2023-06-29 | E98: 118.40 | F98: 118.52 | G98: 114.33 | H98: 110.27 | I98: 106.08 | J98: 122.58 | K98: 126.77 | L98: 130.83 | M98: 122.7 | N98: 114.45 | O98: 51340000 | P98: 10.77%
A99: 89 | B99: Banking | C99: ICICIBANK | D99: 2023-06-29 | E99: 955.40 | F99: 957.52 | G99: 951.73 | H99: 948.07 | I99: 942.28 | J99: 961.18 | K99: 966.97 | L99: 970.63 | M99: 963.3 | N99: 953.85 | O99: 68962600 | P99: 1.81%
A100: 90 | B100: Finance | C100: ICICIGI | D100: 2023-06-29 | E100: 1197.80 | F100: 1212.92 | G100: 1167.83 | H100: 1137.87 | I100: 1092.78 | J100: 1242.88 | K100: 1287.97 | L100: 1317.93 | M100: 1258 | N100: 1182.95 | O100: 4645225 | P100: -10.78%
A101: 91 | B101: Finance | C101: ICICIPRULI | D101: 2023-06-29 | E101: 465.30 | F101: 463.85 | G101: 454.45 | H101: 443.60 | I101: 434.20 | J101: 474.70 | K101: 484.10 | L101: 494.95 | M101: 473.25 | N101: 453 | O101: 14311500 | P101: 6.13%
A102: 92 | B102: Telecom | C102: IDEA | D102: 2023-06-29 | E102: 7.20 | F102: 7.23 | G102: 7.07 | H102: 6.93 | I102: 6.77 | J102: 7.37 | K102: 7.53 | L102: 7.67 | M102: 7.4 | N102: 7.1 | O102: 547390000 | P102: 3.34%
A103: 93 | B103: Finance | C103: IDFC | D103: 2023-06-29 | E103: 97.20 | F103: 96.97 | G103: 96.13 | H103: 95.07 | I103: 94.23 | J103: 98.03 | K103: 98.87 | L103: 99.93 | M103: 97.8 | N103: 95.9 | O103: 173360000 | P103: 0.96%
A104: 94 | B104: Banking | C104: IDFCFIRSTB | D104: 2023-06-29 | E104: 70.35 | F104: 70.35 | G104: 69.70 | H104: 69.05 | I104: 68.40 | J104: 71.00 | K104: 71.65 | L104: 72.30 | M104: 71 | N104: 69.7 | O104: 210090000 | P104: 2.25%
A105: 95 | B105: Others | C105: IEX | D105: 2023-06-29 | E105: 155.90 | F105: 156.87 | G105: 154.68 | H105: 153.47 | I105: 151.28 | J105: 158.08 | K105: 160.27 | L105: 161.48 | M105: 159.05 | N105: 155.65 | O105: 39116250 | P105: 1.51%
A106: 96 | B106: Oil_Gas | C106: IGL | D106: 2023-06-29 | E106: 484.55 | F106: 484.97 | G106: 482.43 | H106: 480.32 | I106: 477.78 | J106: 487.08 | K106: 489.62 | L106: 491.73 | M106: 487.5 | N106: 482.85 | O106: 7566625 | P106: 4.22%
A107: 97 | B107: Infrastructure | C107: INDHOTEL | D107: 2023-06-29 | E107: 380.70 | F107: 382.25 | G107: 376.50 | H107: 372.30 | I107: 366.55 | J107: 386.45 | K107: 392.20 | L107: 396.40 | M107: 388 | N107: 378.05 | O107: 19622000 | P107: -2.05%
A108: 98 | B108: Cement | C108: INDIACEM | D108: 2023-06-29 | E108: 194.60 | F108: 192.92 | G108: 190.88 | H108: 187.17 | I108: 185.13 | J108: 196.63 | K108: 198.67 | L108: 202.38 | M108: 194.95 | N108: 189.2 | O108: 16382100 | P108: -4.58%
A109: 99 | B109: Others | C109: INDIAMART | D109: 2023-06-29 | E109: 5584.65 | F109: 5595.40 | G109: 5560.90 | H109: 5537.15 | I109: 5502.65 | J109: 5619.15 | K109: 5653.65 | L109: 5677.40 | M109: 5629.9 | N109: 5571.65 | O109: 335400 | P109: -0.40%
A110: 100 | B110: Others | C110: INDIGO | D110: 2023-06-29 | E110: 2337.35 | F110: 2343.17 | G110: 2325.33 | H110: 2313.32 | I110: 2295.48 | J110: 2355.18 | K110: 2373.02 | L110: 2385.03 | M110: 2361 | N110: 2331.15 | O110: 2912400 | P110: 1.89%
A111: 101 | B111: Banking | C111: INDUSINDBK | D111: 2023-06-29 | E111: 1279.90 | F111: 1280.23 | G111: 1269.67 | H111: 1259.43 | I111: 1248.87 | J111: 1290.47 | K111: 1301.03 | L111: 1311.27 | M111: 1290.8 | N111: 1270 | O111: 19500600 | P111: 2.83%
A112: 102 | B112: Telecom | C112: INDUSTOWER | D112: 2023-06-29 | E112: 156.05 | F112: 157.05 | G112: 154.30 | H112: 152.55 | I112: 149.80 | J112: 158.80 | K112: 161.55 | L112: 163.30 | M112: 159.8 | N112: 155.3 | O112: 37456600 | P112: -0.59%
A113: 103 | B113: Technology | C113: INFY | D113: 2023-06-29 | E113: 1304.50 | F113: 1308.52 | G113: 1297.03 | H113: 1289.57 | I113: 1278.08 | J113: 1315.98 | K113: 1327.47 | L113: 1334.93 | M113: 1320 | N113: 1301.05 | O113: 44864000 | P113: 0.83%
A114: 104 | B114: Technology | C114: INTELLECT | D114: 2023-06-29 | E114: 571.00 | F114: 572.50 | G114: 565.50 | H114: 560.00 | I114: 553.00 | J114: 578.00 | K114: 585.00 | L114: 590.50 | M114: 579.5 | N114: 567 | O114: 3176500 | P114: -0.60%
A115: 105 | B115: Oil_Gas | C115: IOC | D115: 2023-06-29 | E115: 90.65 | F115: 90.52 | G115: 89.98 | H115: 89.32 | I115: 88.78 | J115: 91.18 | K115: 91.72 | L115: 92.38 | M115: 91.05 | N115: 89.85 | O115: 64174500 | P115: 1.34%
A116: 106 | B116: Pharma | C116: IPCALAB | D116: 2023-06-29 | E116: 692.05 | F116: 688.80 | G116: 682.95 | H116: 673.85 | I116: 668.00 | J116: 697.90 | K116: 703.75 | L116: 712.85 | M116: 694.65 | N116: 679.7 | O116: 3526250 | P116: 1.76%
A117: 107 | B117: Others | C117: IRCTC | D117: 2023-06-29 | E117: 650.75 | F117: 643.93 | G117: 635.87 | H117: 620.98 | I117: 612.92 | J117: 658.82 | K117: 666.88 | L117: 681.77 | M117: 652 | N117: 629.05 | O117: 12721625 | P117: 6.12%
A118: 108 | B118: FMCG | C118: ITC | D118: 2023-06-29 | E118: 451.55 | F118: 450.62 | G118: 447.23 | H118: 442.92 | I118: 439.53 | J118: 454.93 | K118: 458.32 | L118: 462.63 | M118: 454 | N118: 446.3 | O118: 73940800 | P118: 6.23%
A119: 109 | B119: Metals | C119: JINDALSTEL | D119: 2023-06-29 | E119: 534.95 | F119: 533.00 | G119: 528.00 | H119: 521.05 | I119: 516.05 | J119: 539.95 | K119: 544.95 | L119: 551.90 | M119: 538 | N119: 526.05 | O119: 22716250 | P119: -1.65%
A120: 110 | B120: Cement | C120: JKCEMENT | D120: 2023-06-29 | E120: 3123.95 | F120: 3086.62 | G120: 3037.38 | H120: 2950.82 | I120: 2901.58 | J120: 3173.18 | K120: 3222.42 | L120: 3308.98 | M120: 3135.85 | N120: 3000.05 | O120: 424750 | P120: -2.52%
A121: 111 | B121: Metals | C121: JSWSTEEL | D121: 2023-06-29 | E121: 707.60 | F121: 709.40 | G121: 704.80 | H121: 702.00 | I121: 697.40 | J121: 712.20 | K121: 716.80 | L121: 719.60 | M121: 714 | N121: 706.6 | O121: 25625700 | P121: -1.81%
A122: 112 | B122: Others | C122: JUBLFOOD | D122: 2023-06-29 | E122: 481.60 | F122: 480.88 | G122: 477.77 | H122: 473.93 | I122: 470.82 | J122: 484.72 | K122: 487.83 | L122: 491.67 | M122: 484 | N122: 477.05 | O122: 15933750 | P122: 0.40%
A123: 113 | B123: Banking | C123: KOTAKBANK | D123: 2023-06-29 | E123: 1951.15 | F123: 1956.93 | G123: 1941.52 | H123: 1931.88 | I123: 1916.47 | J123: 1966.57 | K123: 1981.98 | L123: 1991.62 | M123: 1972.35 | N123: 1947.3 | O123: 22576400 | P123: -3.33%
A124: 114 | B124: Finance | C124: L&TFH | D124: 2023-06-29 | E124: 104.10 | F124: 103.98 | G124: 103.27 | H124: 102.43 | I124: 101.72 | J124: 104.82 | K124: 105.53 | L124: 106.37 | M124: 104.7 | N124: 103.15 | O124: 67724236 | P124: 0.38%
A125: 115 | B125: Others | C125: LALPATHLAB | D125: 2023-06-29 | E125: 2046.10 | F125: 2037.47 | G125: 2023.63 | H125: 2001.17 | I125: 1987.33 | J125: 2059.93 | K125: 2073.77 | L125: 2096.23 | M125: 2051.3 | N125: 2015 | O125: 665000 | P125: -0.45%
A126: 116 | B126: Pharma | C126: LAURUSLABS | D126: 2023-06-29 | E126: 337.25 | F126: 337.12 | G126: 334.23 | H126: 331.22 | I126: 328.33 | J126: 340.13 | K126: 343.02 | L126: 346.03 | M126: 340 | N126: 334.1 | O126: 12319100 | P126: -1.43%
A127: 117 | B127: Finance | C127: LICHSGFIN | D127: 2023-06-29 | E127: 382.30 | F127: 382.92 | G127: 379.43 | H127: 376.57 | I127: 373.08 | J127: 385.78 | K127: 389.27 | L127: 392.13 | M127: 386.4 | N127: 380.05 | O127: 16202000 | P127: 1.43%
A128: 118 | B128: Capital_Goods | C128: LT | D128: 2023-06-29 | E128: 2240.85 | F128: 2242.70 | G128: 2232.40 | H128: 2223.95 | I128: 2213.65 | J128: 2251.15 | K128: 2261.45 | L128: 2269.90 | M128: 2253 | N128: 2234.25 | O128: 13953000 | P128: -1.19%
A129: 119 | B129: Technology | C129: LTIM | D129: 2023-06-29 | E129: 5013.30 | F129: 5032.75 | G129: 4985.55 | H129: 4957.80 | I129: 4910.60 | J129: 5060.50 | K129: 5107.70 | L129: 5135.45 | M129: 5079.95 | N129: 5005 | O129: 1594950 | P129: 4.12%
A130: 120 | B130: Technology | C130: LTTS | D130: 2023-06-29 | E130: 3883.25 | F130: 3895.08 | G130: 3853.17 | H130: 3823.08 | I130: 3781.17 | J130: 3925.17 | K130: 3967.08 | L130: 3997.17 | M130: 3937 | N130: 3865 | O130: 1148800 | P130: -1.17%
A131: 121 | B131: Pharma | C131: LUPIN | D131: 2023-06-29 | E131: 811.30 | F131: 803.68 | G131: 791.72 | H131: 772.13 | I131: 760.17 | J131: 823.27 | K131: 835.23 | L131: 854.82 | M131: 815.65 | N131: 784.1 | O131: 6573900 | P131: 12.41%
A132: 122 | B132: Automobile | C132: M&M | D132: 2023-06-29 | E132: 1335.45 | F132: 1331.92 | G132: 1308.53 | H132: 1281.62 | I132: 1258.23 | J132: 1358.83 | K132: 1382.22 | L132: 1409.13 | M132: 1355.3 | N132: 1305 | O132: 13140400 | P132: 0.54%
A133: 123 | B133: Finance | C133: M&MFIN | D133: 2023-06-29 | E133: 287.25 | F133: 285.97 | G133: 283.68 | H133: 280.12 | I133: 277.83 | J133: 289.53 | K133: 291.82 | L133: 295.38 | M133: 288.25 | N133: 282.4 | O133: 25932000 | P133: 4.77%
A134: 124 | B134: Finance | C134: MANAPPURAM | D134: 2023-06-29 | E134: 112.95 | F134: 112.55 | G134: 111.55 | H134: 110.15 | I134: 109.15 | J134: 113.95 | K134: 114.95 | L134: 116.35 | M134: 113.55 | N134: 111.15 | O134: 50802000 | P134: 4.53%
A135: 125 | B135: FMCG | C135: MARICO | D135: 2023-06-29 | E135: 546.85 | F135: 547.95 | G135: 544.05 | H135: 541.25 | I135: 537.35 | J135: 550.75 | K135: 554.65 | L135: 557.45 | M135: 551.85 | N135: 545.15 | O135: 9728400 | P135: -1.80%
A136: 126 | B136: Automobile | C136: MARUTI | D136: 2023-06-29 | E136: 9372.80 | F136: 9417.15 | G136: 9305.65 | H136: 9238.50 | I136: 9127.00 | J136: 9484.30 | K136: 9595.80 | L136: 9662.95 | M136: 9528.65 | N136: 9350 | O136: 1668900 | P136: -6.40%
A137: 127 | B137: FMCG | C137: MCDOWELL-N | D137: 2023-06-29 | E137: 870.35 | F137: 865.90 | G137: 859.85 | H137: 849.35 | I137: 843.30 | J137: 876.40 | K137: 882.45 | L137: 892.95 | M137: 871.95 | N137: 855.4 | O137: 10612850 | P137: -3.93%
A138: 128 | B138: Others | C138: MCX | D138: 2023-06-29 | E138: 1403.15 | F138: 1409.53 | G138: 1377.62 | H138: 1352.08 | I138: 1320.17 | J138: 1435.07 | K138: 1466.98 | L138: 1492.52 | M138: 1441.45 | N138: 1384 | O138: 1730800 | P138: -1.61%
A139: 129 | B139: Pharma | C139: METROPOLIS | D139: 2023-06-29 | E139: 1315.45 | F139: 1298.93 | G139: 1274.87 | H139: 1234.28 | I139: 1210.22 | J139: 1339.52 | K139: 1363.58 | L139: 1404.17 | M139: 1323 | N139: 1258.35 | O139: 968000 | P139: 3.33%
A140: 130 | B140: Finance | C140: MFSL | D140: 2023-06-29 | E140: 700.00 | F140: 702.63 | G140: 692.87 | H140: 685.73 | I140: 675.97 | J140: 709.77 | K140: 719.53 | L140: 726.67 | M140: 712.4 | N140: 695.5 | O140: 4074850 | P140: -6.53%
A141: 131 | B141: Oil_Gas | C141: MGL | D141: 2023-06-29 | E141: 1053.20 | F141: 1051.25 | G141: 1043.40 | H141: 1033.60 | I141: 1025.75 | J141: 1061.05 | K141: 1068.90 | L141: 1078.70 | M141: 1059.1 | N141: 1041.45 | O141: 2173600 | P141: -1.38%
A142: 132 | B142: Automobile | C142: MOTHERSON | D142: 2023-06-29 | E142: 80.95 | F142: 81.12 | G142: 80.03 | H142: 79.12 | I142: 78.03 | J142: 82.03 | K142: 83.12 | L142: 84.03 | M142: 82.2 | N142: 80.2 | O142: 67117600 | P142: -1.97%
A143: 133 | B143: Technology | C143: MPHASIS | D143: 2023-06-29 | E143: 1955.15 | F143: 1970.33 | G143: 1931.82 | H143: 1908.48 | I143: 1869.97 | J143: 1993.67 | K143: 2032.18 | L143: 2055.52 | M143: 2008.85 | N143: 1947 | O143: 2775575 | P143: 3.68%
A144: 134 | B144: Automobile | C144: MRF | D144: 2023-06-29 | E144: 98415.55 | F144: 98498.52 | G144: 98017.03 | H144: 97618.52 | I144: 97137.03 | J144: 98897.03 | K144: 99378.52 | L144: 99777.03 | M144: 98980 | N144: 98100 | O144: 52620 | P144: -0.77%
A145: 135 | B145: Finance | C145: MUTHOOTFIN | D145: 2023-06-29 | E145: 1121.75 | F145: 1121.77 | G145: 1110.78 | H145: 1099.82 | I145: 1088.83 | J145: 1132.73 | K145: 1143.72 | L145: 1154.68 | M145: 1132.75 | N145: 1110.8 | O145: 5586350 | P145: -0.70%
A146: 136 | B146: Metals | C146: NATIONALUM | D146: 2023-06-29 | E146: 86.85 | F146: 86.43 | G146: 85.22 | H146: 83.58 | I146: 82.37 | J146: 88.07 | K146: 89.28 | L146: 90.92 | M146: 87.65 | N146: 84.8 | O146: 44242500 | P146: 8.24%
A147: 137 | B147: Others | C147: NAUKRI | D147: 2023-06-29 | E147: 4225.50 | F147: 4224.82 | G147: 4125.68 | H147: 4025.87 | I147: 3926.73 | J147: 4324.63 | K147: 4423.77 | L147: 4523.58 | M147: 4323.95 | N147: 4125 | O147: 1630875 | P147: 3.51%
A148: 138 | B148: Chemical | C148: NAVINFLUOR | D148: 2023-06-29 | E148: 4675.30 | F148: 4672.37 | G148: 4639.83 | H148: 4604.37 | I148: 4571.83 | J148: 4707.83 | K148: 4740.37 | L148: 4775.83 | M148: 4704.9 | N148: 4636.9 | O148: 499350 | P148: 0.94%
A149: 139 | B149: FMCG | C149: NESTLEIND | D149: 2023-06-29 | E149: 21839.35 | F149: 21842.67 | G149: 21706.68 | H149: 21574.02 | I149: 21438.03 | J149: 21975.33 | K149: 22111.32 | L149: 22243.98 | M149: 21978.65 | N149: 21710 | O149: 456280 | P149: 3.62%
A150: 140 | B150: Metals | C150: NMDC | D150: 2023-06-29 | E150: 107.75 | F150: 107.78 | G150: 106.97 | H150: 106.18 | I150: 105.37 | J150: 108.57 | K150: 109.38 | L150: 110.17 | M150: 108.6 | N150: 107 | O150: 53694000 | P150: -0.62%
A151: 141 | B151: Power | C151: NTPC | D151: 2023-06-29 | E151: 177.70 | F151: 177.55 | G151: 176.15 | H151: 174.60 | I151: 173.20 | J151: 179.10 | K151: 180.50 | L151: 182.05 | M151: 178.95 | N151: 176 | O151: 71184600 | P151: 6.08%
A152: 142 | B152: Realty | C152: OBEROIRLTY | D152: 2023-06-29 | E152: 936.70 | F152: 937.42 | G152: 930.08 | H152: 923.47 | I152: 916.13 | J152: 944.03 | K152: 951.37 | L152: 957.98 | M152: 944.75 | N152: 930.8 | O152: 5858300 | P152: -2.30%
A153: 143 | B153: Technology | C153: OFSS | D153: 2023-06-29 | E153: 3600.85 | F153: 3604.77 | G153: 3580.83 | H153: 3560.82 | I153: 3536.88 | J153: 3624.78 | K153: 3648.72 | L153: 3668.73 | M153: 3628.7 | N153: 3584.75 | O153: 206600 | P153: 3.40%
A154: 144 | B154: Oil_Gas | C154: ONGC | D154: 2023-06-29 | E154: 159.70 | F154: 159.53 | G154: 157.17 | H154: 154.63 | I154: 152.27 | J154: 162.07 | K154: 164.43 | L154: 166.97 | M154: 161.9 | N154: 157 | O154: 47689950 | P154: -7.78%
A155: 145 | B155: Textile | C155: PAGEIND | D155: 2023-06-29 | E155: 37781.30 | F155: 37642.65 | G155: 37288.65 | H155: 36796.00 | I155: 36442.00 | J155: 38135.30 | K155: 38489.30 | L155: 38981.95 | M155: 37996.65 | N155: 37150 | O155: 180420 | P155: -0.33%
A156: 146 | B156: Pharma | C156: PEL | D156: 2023-06-29 | E156: 781.15 | F156: 782.63 | G156: 774.77 | H156: 768.38 | I156: 760.52 | J156: 789.02 | K156: 796.88 | L156: 803.27 | M156: 790.5 | N156: 776.25 | O156: 9011800 | P156: -0.80%
A157: 147 | B157: Technology | C157: PERSISTENT | D157: 2023-06-29 | E157: 5049.50 | F157: 5073.83 | G157: 5007.77 | H157: 4966.03 | I157: 4899.97 | J157: 5115.57 | K157: 5181.63 | L157: 5223.37 | M157: 5139.9 | N157: 5032.1 | O157: 1342600 | P157: 1.60%
A158: 148 | B158: Oil_Gas | C158: PETRONET | D158: 2023-06-29 | E158: 224.90 | F158: 225.17 | G158: 223.88 | H158: 222.87 | I158: 221.58 | J158: 226.18 | K158: 227.47 | L158: 228.48 | M158: 226.45 | N158: 224.15 | O158: 13641000 | P158: 4.65%
A159: 149 | B159: Finance | C159: PFC | D159: 2023-06-29 | E159: 175.55 | F159: 175.65 | G159: 172.80 | H159: 170.05 | I159: 167.20 | J159: 178.40 | K159: 181.25 | L159: 184.00 | M159: 178.5 | N159: 172.9 | O159: 61429600 | P159: 0.12%
A160: 150 | B160: FMCG | C160: PIDILITIND | D160: 2023-06-29 | E160: 2601.60 | F160: 2601.27 | G160: 2587.53 | H160: 2573.47 | I160: 2559.73 | J160: 2615.33 | K160: 2629.07 | L160: 2643.13 | M160: 2615 | N160: 2587.2 | O160: 2261000 | P160: 0.16%
A161: 151 | B161: Chemical | C161: PIIND | D161: 2023-06-29 | E161: 3517.75 | F161: 3510.32 | G161: 3475.68 | H161: 3433.62 | I161: 3398.98 | J161: 3552.38 | K161: 3587.02 | L161: 3629.08 | M161: 3544.95 | N161: 3468.25 | O161: 1778000 | P161: -4.93%
A162: 152 | B162: Banking | C162: PNB | D162: 2023-06-29 | E162: 50.60 | F162: 50.55 | G162: 50.05 | H162: 49.50 | I162: 49.00 | J162: 51.10 | K162: 51.60 | L162: 52.15 | M162: 51.05 | N162: 50 | O162: 247648000 | P162: 1.52%
A163: 153 | B163: Others | C163: POLYCAB | D163: 2023-06-29 | E163: 3417.70 | F163: 3422.57 | G163: 3406.13 | H163: 3394.57 | I163: 3378.13 | J163: 3434.13 | K163: 3450.57 | L163: 3462.13 | M163: 3439 | N163: 3411 | O163: 1172100 | P163: 0.51%
A164: 154 | B164: Power | C164: POWERGRID | D164: 2023-06-29 | E164: 236.20 | F164: 237.38 | G164: 234.82 | H164: 233.43 | I164: 230.87 | J164: 238.77 | K164: 241.33 | L164: 242.72 | M164: 239.95 | N164: 236 | O164: 32454000 | P164: 3.06%
A165: 155 | B165: Media | C165: PVRINOX | D165: 2023-06-29 | E165: 1408.90 | F165: 1408.93 | G165: 1398.92 | H165: 1388.93 | I165: 1378.92 | J165: 1418.92 | K165: 1428.93 | L165: 1438.92 | M165: 1418.95 | N165: 1398.95 | O165: 2967030 | P165: -0.59%
A166: 156 | B166: Others | C166: RAIN | D166: 2023-06-29 | E166: 154.25 | F166: 153.18 | G166: 151.82 | H166: 149.38 | I166: 148.02 | J166: 155.62 | K166: 156.98 | L166: 159.42 | M166: 154.55 | N166: 150.75 | O166: 11595500 | P166: 0.49%
A167: 157 | B167: Cement | C167: RAMCOCEM | D167: 2023-06-29 | E167: 887.40 | F167: 882.50 | G167: 875.90 | H167: 864.40 | I167: 857.80 | J167: 894.00 | K167: 900.60 | L167: 912.10 | M167: 889.1 | N167: 871 | O167: 2850050 | P167: 1.70%
A168: 158 | B168: Banking | C168: RBLBANK | D168: 2023-06-29 | E168: 154.90 | F168: 153.52 | G168: 151.33 | H168: 147.77 | I168: 145.58 | J168: 157.08 | K168: 159.27 | L168: 162.83 | M168: 155.7 | N168: 149.95 | O168: 37230000 | P168: -2.88%
A169: 159 | B169: Power | C169: RECLTD | D169: 2023-06-29 | E169: 136.80 | F169: 136.05 | G169: 133.75 | H169: 130.70 | I169: 128.40 | J169: 139.10 | K169: 141.40 | L169: 144.45 | M169: 138.35 | N169: 133 | O169: 55176000 | P169: -1.81%
A170: 160 | B170: Oil_Gas | C170: RELIANCE | D170: 2023-06-29 | E170: 2537.00 | F170: 2534.67 | G170: 2525.33 | H170: 2513.67 | I170: 2504.33 | J170: 2546.33 | K170: 2555.67 | L170: 2567.33 | M170: 2544 | N170: 2523 | O170: 30915000 | P170: -2.26%
A171: 161 | B171: Metals | C171: SAIL | D171: 2023-06-29 | E171: 84.95 | F171: 84.32 | G171: 83.18 | H171: 81.42 | I171: 80.28 | J171: 86.08 | K171: 87.22 | L171: 88.98 | M171: 85.45 | N171: 82.55 | O171: 90504000 | P171: -6.92%
A172: 162 | B172: Banking | C172: SBICARD | D172: 2023-06-29 | E172: 904.75 | F172: 904.58 | G172: 899.52 | H172: 894.28 | I172: 889.22 | J172: 909.82 | K172: 914.88 | L172: 920.12 | M172: 909.65 | N172: 899.35 | O172: 7532000 | P172: 2.37%
A173: 163 | B173: Finance | C173: SBILIFE | D173: 2023-06-29 | E173: 1222.00 | F173: 1220.12 | G173: 1204.38 | H173: 1186.77 | I173: 1171.03 | J173: 1237.73 | K173: 1253.47 | L173: 1271.08 | M173: 1235.85 | N173: 1202.5 | O173: 6673500 | P173: -3.81%
A174: 164 | B174: Banking | C174: SBIN | D174: 2023-06-29 | E174: 586.55 | F174: 587.27 | G174: 579.43 | H174: 572.32 | I174: 564.48 | J174: 594.38 | K174: 602.22 | L174: 609.33 | M174: 595.1 | N174: 580.15 | O174: 68974500 | P174: -3.10%
A175: 165 | B175: Cement | C175: SHREECEM | D175: 2023-06-29 | E175: 25189.80 | F175: 25181.88 | G175: 24970.77 | H175: 24751.73 | I175: 24540.62 | J175: 25400.92 | K175: 25612.03 | L175: 25831.07 | M175: 25393 | N175: 24962.85 | O175: 312375 | P175: 3.49%
A176: 166 | B176: Capital_Goods | C176: SIEMENS | D176: 2023-06-29 | E176: 3535.70 | F176: 3537.98 | G176: 3507.97 | H176: 3480.23 | I176: 3450.22 | J176: 3565.72 | K176: 3595.73 | L176: 3623.47 | M176: 3568 | N176: 3510.25 | O176: 2328150 | P176: -2.96%
A177: 167 | B177: Textile | C177: SRF | D177: 2023-06-29 | E177: 2550.00 | F177: 2542.80 | G177: 2530.60 | H177: 2511.20 | I177: 2499.00 | J177: 2562.20 | K177: 2574.40 | L177: 2593.80 | M177: 2555 | N177: 2523.4 | O177: 2525250 | P177: 0.75%
A178: 168 | B178: Finance | C178: SHRIRAMFIN | D178: 2023-06-29 | E178: 1394.70 | F178: 1390.05 | G178: 1372.10 | H178: 1349.50 | I178: 1331.55 | J178: 1412.65 | K178: 1430.60 | L178: 1453.20 | M178: 1408 | N178: 1367.45 | O178: 4119000 | P178: 2.02%
A179: 169 | B179: Pharma | C179: SUNPHARMA | D179: 2023-06-29 | E179: 972.75 | F179: 966.12 | G179: 957.08 | H179: 941.42 | I179: 932.38 | J179: 981.78 | K179: 990.82 | L179: 1006.48 | M179: 975.15 | N179: 950.45 | O179: 25351200 | P179: 0.98%
A180: 170 | B180: Media | C180: SUNTV | D180: 2023-06-29 | E180: 450.70 | F180: 450.17 | G180: 446.33 | H180: 441.97 | I180: 438.13 | J180: 454.53 | K180: 458.37 | L180: 462.73 | M180: 454 | N180: 445.8 | O180: 8457000 | P180: 2.83%
A181: 171 | B181: Pharma | C181: SYNGENE | D181: 2023-06-29 | E181: 719.45 | F181: 718.87 | G181: 712.73 | H181: 706.02 | I181: 699.88 | J181: 725.58 | K181: 731.72 | L181: 738.43 | M181: 725 | N181: 712.15 | O181: 2361000 | P181: -1.01%
A182: 172 | B182: Chemical | C182: TATACHEM | D182: 2023-06-29 | E182: 955.45 | F182: 954.67 | G182: 950.38 | H182: 945.32 | I182: 941.03 | J182: 959.73 | K182: 964.02 | L182: 969.08 | M182: 958.95 | N182: 949.6 | O182: 5723050 | P182: 2.24%
A183: 173 | B183: Telecom | C183: TATACOMM | D183: 2023-06-29 | E183: 1271.10 | F183: 1271.33 | G183: 1263.77 | H183: 1256.43 | I183: 1248.87 | J183: 1278.67 | K183: 1286.23 | L183: 1293.57 | M183: 1278.9 | N183: 1264 | O183: 2824000 | P183: -1.50%
A184: 174 | B184: FMCG | C184: TATACONSUM | D184: 2023-06-29 | E184: 799.65 | F184: 798.47 | G184: 795.28 | H184: 790.92 | I184: 787.73 | J184: 802.83 | K184: 806.02 | L184: 810.38 | M184: 801.65 | N184: 794.1 | O184: 10509300 | P184: 0.72%
A185: 175 | B185: Automobile | C185: TATAMOTORS | D185: 2023-06-29 | E185: 523.95 | F185: 523.62 | G185: 520.33 | H185: 516.72 | I185: 513.43 | J185: 527.23 | K185: 530.52 | L185: 534.13 | M185: 526.9 | N185: 520 | O185: 53625600 | P185: -1.81%
A186: 176 | B186: Power | C186: TATAPOWER | D186: 2023-06-29 | E186: 216.70 | F186: 215.05 | G186: 212.65 | H186: 208.60 | I186: 206.20 | J186: 219.10 | K186: 221.50 | L186: 225.55 | M186: 217.45 | N186: 211 | O186: 89906625 | P186: 3.14%
A187: 177 | B187: Metals | C187: TATASTEEL | D187: 2023-06-29 | E187: 109.05 | F187: 108.52 | G187: 107.53 | H187: 106.02 | I187: 105.03 | J187: 110.03 | K187: 111.02 | L187: 112.53 | M187: 109.5 | N187: 107 | O187: 218146500 | P187: -2.60%
A188: 178 | B188: Technology | C188: TCS | D188: 2023-06-29 | E188: 3321.90 | F188: 3333.20 | G188: 3304.15 | H188: 3286.40 | I188: 3257.35 | J188: 3350.95 | K188: 3380.00 | L188: 3397.75 | M188: 3362.25 | N188: 3315.45 | O188: 11834900 | P188: -0.95%
A189: 179 | B189: Technology | C189: TECHM | D189: 2023-06-29 | E189: 1122.00 | F189: 1125.75 | G189: 1113.95 | H189: 1105.90 | I189: 1094.10 | J189: 1133.80 | K189: 1145.60 | L189: 1153.65 | M189: 1137.55 | N189: 1117.7 | O189: 11380800 | P189: 1.30%
A190: 180 | B190: FMCG | C190: TITAN | D190: 2023-06-29 | E190: 2826.85 | F190: 2805.85 | G190: 2776.90 | H190: 2726.95 | I190: 2698.00 | J190: 2855.80 | K190: 2884.75 | L190: 2934.70 | M190: 2834.8 | N190: 2755.9 | O190: 6576375 | P190: 10.52%
A191: 181 | B191: Pharma | C191: TORNTPHARM | D191: 2023-06-29 | E191: 1713.05 | F191: 1708.62 | G191: 1700.83 | H191: 1688.62 | I191: 1680.83 | J191: 1720.83 | K191: 1728.62 | L191: 1740.83 | M191: 1716.4 | N191: 1696.4 | O191: 1229500 | P191: -1.09%
A192: 182 | B192: Others | C192: TRENT | D192: 2023-06-29 | E192: 1549.55 | F192: 1546.83 | G192: 1535.72 | H192: 1521.88 | I192: 1510.77 | J192: 1560.67 | K192: 1571.78 | L192: 1585.62 | M192: 1557.95 | N192: 1533 | O192: 3224800 | P192: 1.92%
A193: 183 | B193: Automobile | C193: TVSMOTOR | D193: 2023-06-29 | E193: 1295.40 | F193: 1290.50 | G193: 1283.25 | H193: 1271.10 | I193: 1263.85 | J193: 1302.65 | K193: 1309.90 | L193: 1322.05 | M193: 1297.75 | N193: 1278.35 | O193: 7771400 | P193: -0.05%
A194: 184 | B194: FMCG | C194: UBL | D194: 2023-06-29 | E194: 1469.25 | F194: 1470.22 | G194: 1463.03 | H194: 1456.82 | I194: 1449.63 | J194: 1476.43 | K194: 1483.62 | L194: 1489.83 | M194: 1477.4 | N194: 1464 | O194: 1997200 | P194: 0.97%
A195: 185 | B195: Cement | C195: ULTRACEMCO | D195: 2023-06-29 | E195: 7892.10 | F195: 7864.42 | G195: 7820.28 | H195: 7748.47 | I195: 7704.33 | J195: 7936.23 | K195: 7980.37 | L195: 8052.18 | M195: 7908.55 | N195: 7792.6 | O195: 1850900 | P195: -0.64%
A196: 186 | B196: Chemical | C196: UPL | D196: 2023-06-29 | E196: 693.35 | F196: 692.35 | G196: 690.10 | H196: 686.85 | I196: 684.60 | J196: 695.60 | K196: 697.85 | L196: 701.10 | M196: 694.6 | N196: 689.1 | O196: 19658600 | P196: -0.32%
A197: 187 | B197: Metals | C197: VEDL | D197: 2023-06-29 | E197: 292.15 | F197: 290.97 | G197: 289.03 | H197: 285.92 | I197: 283.98 | J197: 294.08 | K197: 296.02 | L197: 299.13 | M197: 292.9 | N197: 287.85 | O197: 49864000 | P197: 3.14%
A198: 188 | B198: Capital_Goods | C198: VOLTAS | D198: 2023-06-29 | E198: 827.90 | F198: 824.30 | G198: 819.00 | H198: 810.10 | I198: 804.80 | J198: 833.20 | K198: 838.50 | L198: 847.40 | M198: 829.6 | N198: 815.4 | O198: 6351000 | P198: 1.99%
A199: 189 | B199: Technology | C199: WIPRO | D199: 2023-06-29 | E199: 401.55 | F199: 403.80 | G199: 398.85 | H199: 396.15 | I199: 391.20 | J199: 406.50 | K199: 411.45 | L199: 414.15 | M199: 408.75 | N199: 401.1 | O199: 26670000 | P199: 2.23%
A200: 190 | B200: Media | C200: ZEEL | D200: 2023-06-29 | E200: 193.95 | F200: 193.83 | G200: 191.52 | H200: 189.08 | I200: 186.77 | J200: 196.27 | K200: 198.58 | L200: 201.02 | M200: 196.15 | N200: 191.4 | O200: 91167000 | P200: -0.05%
A201: 191 | B201: Pharma | C201: ZYDUSLIFE | D201: 2023-06-29 | E201: 515.70 | F201: 514.57 | G201: 511.18 | H201: 506.67 | I201: 503.28 | J201: 519.08 | K201: 522.47 | L201: 526.98 | M201: 517.95 | N201: 510.05 | O201: 7120800 | P201: 2.22%
A202: 192
A203: 193
A204: 194
A221: Pivot Point: This is trigger point for intra day buy/sell based on the price range of the previous day
A222: As per the tool,the trader should take BUY position just above Pivot and keep the stop loss of pivot point and the first target would be Resistance 1(R1)
... 13 more rows

Sheet Cash Intra
M5: Back to Main Page
A6: FOR INTRA DAY TRADING | K6: =Main!B10 -> 2023-05-30
A8: Sr.no | C8: CLOSE RATE | D8: Pivot Point | E8: Supports | H8: Resistances
E9: S1 | F9: S2 | G9: S3 | H9: R1 | I9: R2 | J9: R3 | K9: HIGH | L9: LOW | M9: Total Trade Quanity in Lakhs
A10: 1 | B10: Nifty 50 | C10: 18598.65 | D10: 18607.03 | E10: 18572.87 | F10: 18547.08 | G10: 18512.92 | H10: 18632.82 | I10: 18666.98 | J10: 18692.77 | K10: 18641.20 | L10: 18581.25
A11: 2 | B11: Nifty Bank | C11: 44311.90 | D11: 44329.73 | E11: 44176.12 | F11: 44040.33 | G11: 43886.72 | H11: 44465.52 | I11: 44619.13 | J11: 44754.92 | K11: 44483.35 | L11: 44193.95
A12: 3 | B12: Nifty CPSE | C12: 3124.45 | D12: 3120.75 | E12: 3103.60 | F12: 3082.75 | G12: 3065.60 | H12: 3141.60 | I12: 3158.75 | J12: 3179.60 | K12: 3137.90 | L12: 3099.90
A13: 4 | B13: Nifty Infra | C13: 5475.00 | D13: 5471.72 | E13: 5461.03 | F13: 5447.07 | G13: 5436.38 | H13: 5485.68 | I13: 5496.37 | J13: 5510.33 | K13: 5482.40 | L13: 5457.75
A14: 5 | B14: Nifty IT | C14: 29240.20 | D14: 29366.68 | E14: 29073.77 | F14: 28907.33 | G14: 28614.42 | H14: 29533.12 | I14: 29826.03 | J14: 29992.47 | K14: 29659.60 | L14: 29200.25
A15: 6 | B15: Nifty PSE | C15: 4813.10 | D15: 4806.57 | E15: 4783.48 | F15: 4753.87 | G15: 4730.78 | H15: 4836.18 | I15: 4859.27 | J15: 4888.88 | K15: 4829.65 | L15: 4776.95
A16: 7 | B16: Nifty Midcap 50 | C16: 9470.35 | D16: 9456.32 | E16: 9433.93 | F16: 9397.52 | G16: 9375.13 | H16: 9492.73 | I16: 9515.12 | J16: 9551.53 | K16: 9478.70 | L16: 9419.90
A17: 8 | B17: ABB | C17: 4031.15 | D17: 4033.85 | E17: 4009.60 | F17: 3988.05 | G17: 3963.80 | H17: 4055.40 | I17: 4079.65 | J17: 4101.20 | K17: 4058.1 | L17: 4012.3 | M17: 2.77673
A18: 9 | B18: ACC | C18: 1794.4 | D18: 1793.88 | E18: 1779.77 | F18: 1765.13 | G18: 1751.02 | H18: 1808.52 | I18: 1822.63 | J18: 1837.27 | K18: 1808 | L18: 1779.25 | M18: 3.89902
A19: 10 | B19: AUBANK | C19: 790.4 | D19: 787.32 | E19: 779.63 | F19: 768.87 | G19: 761.18 | H19: 798.08 | I19: 805.77 | J19: 816.53 | K19: 795 | L19: 776.55 | M19: 26.25329
A20: 11 | B20: ABBOTINDIA | C20: 21893.8 | D20: 21876.27 | E20: 21764.53 | F20: 21635.27 | G20: 21523.53 | H20: 22005.53 | I20: 22117.27 | J20: 22246.53 | K20: 21988 | L20: 21747 | M20: 0.06045
A21: 12 | B21: ADANIENT | C21: 2534.05 | D21: 2546.85 | E21: 2510.20 | F21: 2486.35 | G21: 2449.70 | H21: 2570.70 | I21: 2607.35 | J21: 2631.20 | K21: 2583.5 | L21: 2523 | M21: 27.79432
A22: 13 | B22: ADANIGREEN | C22: 977.85 | D22: 977.62 | E22: 965.33 | F22: 952.82 | G22: 940.53 | H22: 990.13 | I22: 1002.42 | J22: 1014.93 | K22: 989.9 | L22: 965.1 | M22: 31.77944
A23: 14 | B23: ADANIPORTS | C23: 737.5 | D23: 735.18 | E23: 730.37 | F23: 723.23 | G23: 718.42 | H23: 742.32 | I23: 747.13 | J23: 754.27 | K23: 740 | L23: 728.05 | M23: 43.02323
A24: 15 | B24: ATGL | C24: 729.2 | D24: 740.22 | E24: 713.98 | F24: 698.77 | G24: 672.53 | H24: 755.43 | I24: 781.67 | J24: 796.88 | K24: 766.45 | L24: 725 | M24: 26.30741
A25: 16 | B25: ADANITRANS | C25: 832.2 | D25: 840.78 | E25: 813.57 | F25: 794.93 | G25: 767.72 | H25: 859.42 | I25: 886.63 | J25: 905.27 | K25: 868 | L25: 822.15 | M25: 24.50856
A26: 17 | B26: AWL | C26: 447.65 | D26: 449.90 | E26: 442.15 | F26: 436.65 | G26: 428.90 | H26: 455.40 | I26: 463.15 | J26: 468.65 | K26: 457.65 | L26: 444.4 | M26: 14.81961
A27: 18 | B27: ABCAPITAL | C27: 165.65 | D27: 166.02 | E27: 164.03 | F27: 162.42 | G27: 160.43 | H27: 167.63 | I27: 169.62 | J27: 171.23 | K27: 168 | L27: 164.4 | M27: 18.91433
A28: 19 | B28: ABFRL | C28: 197.1 | D28: 197.18 | E28: 195.97 | F28: 194.83 | G28: 193.62 | H28: 198.32 | I28: 199.53 | J28: 200.67 | K28: 198.4 | L28: 196.05 | M28: 15.39443
A29: 20 | B29: ALKEM | C29: 3348.45 | D29: 3352.03 | E29: 3324.07 | F29: 3299.68 | G29: 3271.72 | H29: 3376.42 | I29: 3404.38 | J29: 3428.77 | K29: 3380 | L29: 3327.65 | M29: 0.77549
A30: 21 | B30: AMBUJACEM | C30: 427 | D30: 426.88 | E30: 422.87 | F30: 418.73 | G30: 414.72 | H30: 431.02 | I30: 435.03 | J30: 439.17 | K30: 430.9 | L30: 422.75 | M30: 77.99828
A31: 22 | B31: APOLLOHOSP | C31: 4640.45 | D31: 4628.70 | E31: 4592.40 | F31: 4544.35 | G31: 4508.05 | H31: 4676.75 | I31: 4713.05 | J31: 4761.10 | K31: 4665 | L31: 4580.65 | M31: 3.32364
A32: 23 | B32: ASHOKLEY | C32: 146.1 | D32: 146.15 | E32: 145.15 | F32: 144.20 | G32: 143.20 | H32: 147.10 | I32: 148.10 | J32: 149.05 | K32: 147.15 | L32: 145.2 | M32: 70.22143
A33: 24 | B33: ASIANPAINT | C33: 3137.4 | D33: 3136.15 | E33: 3117.30 | F33: 3097.20 | G33: 3078.35 | H33: 3156.25 | I33: 3175.10 | J33: 3195.20 | K33: 3155 | L33: 3116.05 | M33: 5.35712
A34: 25 | B34: ASTRAL | C34: 1792.4 | D34: 1793.45 | E34: 1769.90 | F34: 1747.40 | G34: 1723.85 | H34: 1815.95 | I34: 1839.50 | J34: 1862.00 | K34: 1817 | L34: 1770.95 | M34: 4.99586
A35: 26 | B35: AUROPHARMA | C35: 611.3 | D35: 605.67 | E35: 590.28 | F35: 569.27 | G35: 553.88 | H35: 626.68 | I35: 642.07 | J35: 663.08 | K35: 621.05 | L35: 584.65 | M35: 42.09725
A36: 27 | B36: DMART | C36: 3503.3 | D36: 3510.18 | E36: 3475.37 | F36: 3447.43 | G36: 3412.62 | H36: 3538.12 | I36: 3572.93 | J36: 3600.87 | K36: 3545 | L36: 3482.25 | M36: 2.2884
A37: 28 | B37: AXISBANK | C37: 929.8 | D37: 931.85 | E37: 926.00 | F37: 922.20 | G37: 916.35 | H37: 935.65 | I37: 941.50 | J37: 945.30 | K37: 937.7 | L37: 928.05 | M37: 71.33871
A38: 29 | B38: BAJAJ-AUTO | C38: 4618.5 | D38: 4629.92 | E38: 4596.68 | F38: 4574.87 | G38: 4541.63 | H38: 4651.73 | I38: 4684.97 | J38: 4706.78 | K38: 4663.15 | L38: 4608.1 | M38: 3.01343
A39: 30 | B39: BAJFINANCE | C39: 6932.05 | D39: 6935.25 | E39: 6898.60 | F39: 6865.15 | G39: 6828.50 | H39: 6968.70 | I39: 7005.35 | J39: 7038.80 | K39: 6971.9 | L39: 6901.8 | M39: 6.40728
A40: 31 | B40: BAJAJFINSV | C40: 1449.55 | D40: 1454.18 | E40: 1439.87 | F40: 1430.18 | G40: 1415.87 | H40: 1463.87 | I40: 1478.18 | J40: 1487.87 | K40: 1468.5 | L40: 1444.5 | M40: 16.5968
A41: 32 | B41: BAJAJHLDNG | C41: 7214.05 | D41: 7146.02 | E41: 7067.03 | F41: 6920.02 | G41: 6841.03 | H41: 7293.03 | I41: 7372.02 | J41: 7519.03 | K41: 7225 | L41: 6999 | M41: 0.62748
A42: 33 | B42: BALKRISIND | C42: 2280.5 | D42: 2298.75 | E42: 2230.05 | F42: 2179.60 | G42: 2110.90 | H42: 2349.20 | I42: 2417.90 | J42: 2468.35 | K42: 2367.45 | L42: 2248.3 | M42: 15.99906
A43: 34 | B43: BANDHANBNK | C43: 264.15 | D43: 263.58 | E43: 261.27 | F43: 258.38 | G43: 256.07 | H43: 266.47 | I43: 268.78 | J43: 271.67 | K43: 265.9 | L43: 260.7 | M43: 65.33649
A44: 35 | B44: BANKBARODA | C44: 183.75 | D44: 184.05 | E44: 182.75 | F44: 181.75 | G44: 180.45 | H44: 185.05 | I44: 186.35 | J44: 187.35 | K44: 185.35 | L44: 183.05 | M44: 112.39265
A45: 36 | B45: BANKINDIA | C45: 75.15 | D45: 75.22 | E45: 74.63 | F45: 74.12 | G45: 73.53 | H45: 75.73 | I45: 76.32 | J45: 76.83 | K45: 75.8 | L45: 74.7 | M45: 51.70603
A46: 37 | B46: BATAINDIA | C46: 1576.6 | D46: 1578.43 | E46: 1567.47 | F46: 1558.33 | G46: 1547.37 | H46: 1587.57 | I46: 1598.53 | J46: 1607.67 | K46: 1589.4 | L46: 1569.3 | M46: 0.91619
A47: 38 | B47: BERGEPAINT | C47: 640.95 | D47: 643.93 | E47: 635.27 | F47: 629.58 | G47: 620.92 | H47: 649.62 | I47: 658.28 | J47: 663.97 | K47: 652.6 | L47: 638.25 | M47: 3.6275
A48: 39 | B48: BEL | C48: 111.45 | D48: 111.15 | E48: 110.50 | F48: 109.55 | G48: 108.90 | H48: 112.10 | I48: 112.75 | J48: 113.70 | K48: 111.8 | L48: 110.2 | M48: 103.30215
A49: 40 | B49: BHARATFORG | C49: 787.2 | D49: 780.83 | E49: 772.67 | F49: 758.13 | G49: 749.97 | H49: 795.37 | I49: 803.53 | J49: 818.07 | K49: 789 | L49: 766.3 | M49: 13.59781
A50: 41 | B50: BHEL | C50: 83 | D50: 81.28 | E50: 78.97 | F50: 74.93 | G50: 72.62 | H50: 85.32 | I50: 87.63 | J50: 91.67 | K50: 83.6 | L50: 77.25 | M50: 699.36887
A51: 42 | B51: BPCL | C51: 361.7 | D51: 363.33 | E51: 359.37 | F51: 357.03 | G51: 353.07 | H51: 365.67 | I51: 369.63 | J51: 371.97 | K51: 367.3 | L51: 361 | M51: 11.70519
A52: 43 | B52: BHARTIARTL | C52: 821.25 | D52: 822.88 | E52: 816.37 | F52: 811.48 | G52: 804.97 | H52: 827.77 | I52: 834.28 | J52: 839.17 | K52: 829.4 | L52: 818 | M52: 36.84829
A53: 44 | B53: BIOCON | C53: 242.05 | D53: 241.65 | E53: 238.90 | F53: 235.75 | G53: 233.00 | H53: 244.80 | I53: 247.55 | J53: 250.70 | K53: 244.4 | L53: 238.5 | M53: 24.92152
A54: 45 | B54: BOSCHLTD | C54: 18296 | D54: 18513.90 | E54: 18027.80 | F54: 17759.60 | G54: 17273.50 | H54: 18782.10 | I54: 19268.20 | J54: 19536.40 | K54: 19000 | L54: 18245.7 | M54: 0.62648
A55: 46 | B55: BRITANNIA | C55: 4575.25 | D55: 4588.78 | E55: 4552.47 | F55: 4529.68 | G55: 4493.37 | H55: 4611.57 | I55: 4647.88 | J55: 4670.67 | K55: 4625.1 | L55: 4566 | M55: 1.94968
A56: 47 | B56: CANBK | C56: 307.1 | D56: 307.82 | E56: 305.13 | F56: 303.17 | G56: 300.48 | H56: 309.78 | I56: 312.47 | J56: 314.43 | K56: 310.5 | L56: 305.85 | M56: 55.0544
A57: 48 | B57: CHOLAFIN | C57: 1055.4 | D57: 1056.07 | E57: 1050.33 | F57: 1045.27 | G57: 1039.53 | H57: 1061.13 | I57: 1066.87 | J57: 1071.93 | K57: 1061.8 | L57: 1051 | M57: 7.58768
A58: 49 | B58: CIPLA | C58: 956.25 | D58: 953.52 | E58: 947.83 | F58: 939.42 | G58: 933.73 | H58: 961.93 | I58: 967.62 | J58: 976.03 | K58: 959.2 | L58: 945.1 | M58: 17.44868
A59: 50 | B59: CLEAN | C59: 1428.7 | D59: 1446.22 | E59: 1358.48 | F59: 1288.27 | G59: 1200.53 | H59: 1516.43 | I59: 1604.17 | J59: 1674.38 | K59: 1533.95 | L59: 1376 | M59: 57.22444
A60: 51 | B60: COALINDIA | C60: 246.1 | D60: 244.85 | E60: 242.05 | F60: 238.00 | G60: 235.20 | H60: 248.90 | I60: 251.70 | J60: 255.75 | K60: 247.65 | L60: 240.8 | M60: 80.69985
A61: 52 | B61: COFORGE | C61: 4420.15 | D61: 4445.05 | E61: 4380.10 | F61: 4340.05 | G61: 4275.10 | H61: 4485.10 | I61: 4550.05 | J61: 4590.10 | K61: 4510 | L61: 4405 | M61: 2.1472
A62: 53 | B62: COLPAL | C62: 1605.9 | D62: 1606.63 | E62: 1599.77 | F62: 1593.63 | G62: 1586.77 | H62: 1612.77 | I62: 1619.63 | J62: 1625.77 | K62: 1613.5 | L62: 1600.5 | M62: 1.82418
A63: 54 | B63: CONCOR | C63: 673.7 | D63: 673.07 | E63: 667.63 | F63: 661.57 | G63: 656.13 | H63: 679.13 | I63: 684.57 | J63: 690.63 | K63: 678.5 | L63: 667 | M63: 8.45659
A64: 55 | B64: COROMANDEL | C64: 949.15 | D64: 948.10 | E64: 933.75 | F64: 918.35 | G64: 904.00 | H64: 963.50 | I64: 977.85 | J64: 993.25 | K64: 962.45 | L64: 932.7 | M64: 3.29241
A65: 56 | B65: CROMPTON | C65: 275.45 | D65: 274.18 | E65: 272.42 | F65: 269.38 | G65: 267.62 | H65: 277.22 | I65: 278.98 | J65: 282.02 | K65: 275.95 | L65: 271.15 | M65: 26.67398
A66: 57 | B66: CUMMINSIND | C66: 1744.05 | D66: 1743.28 | E66: 1730.77 | F66: 1717.48 | G66: 1704.97 | H66: 1756.57 | I66: 1769.08 | J66: 1782.37 | K66: 1755.8 | L66: 1730 | M66: 5.82128
A67: 58 | B67: DLF | C67: 482.65 | D67: 481.03 | E67: 475.67 | F67: 468.68 | G67: 463.32 | H67: 488.02 | I67: 493.38 | J67: 500.37 | K67: 486.4 | L67: 474.05 | M67: 46.65809
A68: 59 | B68: DABUR | C68: 548.35 | D68: 546.92 | E68: 543.83 | F68: 539.32 | G68: 536.23 | H68: 551.43 | I68: 554.52 | J68: 559.03 | K68: 550 | L68: 542.4 | M68: 22.1558
A69: 60 | B69: DALBHARAT | C69: 2093.05 | D69: 2089.17 | E69: 2070.48 | F69: 2047.92 | G69: 2029.23 | H69: 2111.73 | I69: 2130.42 | J69: 2152.98 | K69: 2107.85 | L69: 2066.6 | M69: 2.05286
A70: 61 | B70: DEEPAKNTR | C70: 2082.5 | D70: 2081.42 | E70: 2066.08 | F70: 2049.67 | G70: 2034.33 | H70: 2097.83 | I70: 2113.17 | J70: 2129.58 | K70: 2096.75 | L70: 2065 | M70: 4.74055
A71: 62 | B71: DELHIVERY | C71: 369.95 | D71: 370.42 | E71: 366.98 | F71: 364.02 | G71: 360.58 | H71: 373.38 | I71: 376.82 | J71: 379.78 | K71: 373.85 | L71: 367.45 | M71: 2.79537
A72: 63 | B72: DIVISLAB | C72: 3477.85 | D72: 3492.93 | E72: 3450.97 | F72: 3424.08 | G72: 3382.12 | H72: 3519.82 | I72: 3561.78 | J72: 3588.67 | K72: 3534.9 | L72: 3466.05 | M72: 3.60805
A73: 64 | B73: DIXON | C73: 3717 | D73: 3709.35 | E73: 3679.20 | F73: 3641.40 | G73: 3611.25 | H73: 3747.15 | I73: 3777.30 | J73: 3815.10 | K73: 3739.5 | L73: 3671.55 | M73: 5.56771
A74: 65 | B74: LALPATHLAB | C74: 2045.7 | D74: 2037.23 | E74: 2025.47 | F74: 2005.23 | G74: 1993.47 | H74: 2057.47 | I74: 2069.23 | J74: 2089.47 | K74: 2049 | L74: 2017 | M74: 0.86962
A75: 66 | B75: DRREDDY | C75: 4556.25 | D75: 4548.42 | E75: 4527.83 | F75: 4499.42 | G75: 4478.83 | H75: 4576.83 | I75: 4597.42 | J75: 4625.83 | K75: 4569 | L75: 4520 | M75: 1.85628
A76: 67 | B76: EICHERMOT | C76: 3711.45 | D76: 3699.88 | E76: 3681.57 | F76: 3651.68 | G76: 3633.37 | H76: 3729.77 | I76: 3748.08 | J76: 3777.97 | K76: 3718.2 | L76: 3670 | M76: 5.16724
A77: 68 | B77: EMAMILTD | C77: 398.8 | D77: 404.93 | E77: 390.27 | F77: 381.73 | G77: 367.07 | H77: 413.47 | I77: 428.13 | J77: 436.67 | K77: 419.6 | L77: 396.4 | M77: 9.43023
A78: 69 | B78: ESCORTS | C78: 2091.85 | D78: 2089.55 | E78: 2079.10 | F78: 2066.35 | G78: 2055.90 | H78: 2102.30 | I78: 2112.75 | J78: 2125.50 | K78: 2100 | L78: 2076.8 | M78: 1.25883
A79: 70 | B79: NYKAA | C79: 126.2 | D79: 126.33 | E79: 125.27 | F79: 124.33 | G79: 123.27 | H79: 127.27 | I79: 128.33 | J79: 129.27 | K79: 127.4 | L79: 125.4 | M79: 52.31023
A80: 71 | B80: FEDERALBNK | C80: 125.5 | D80: 125.70 | E80: 125.00 | F80: 124.50 | G80: 123.80 | H80: 126.20 | I80: 126.90 | J80: 127.40 | K80: 126.4 | L80: 125.2 | M80: 82.67792
A81: 72 | B81: FORTIS | C81: 280.25 | D81: 282.83 | E81: 276.47 | F81: 272.68 | G81: 266.32 | H81: 286.62 | I81: 292.98 | J81: 296.77 | K81: 289.2 | L81: 279.05 | M81: 12.20481
A82: 73 | B82: GAIL | C82: 106.25 | D82: 106.25 | E82: 105.60 | F82: 104.95 | G82: 104.30 | H82: 106.90 | I82: 107.55 | J82: 108.20 | K82: 106.9 | L82: 105.6 | M82: 80.58796
A83: 74 | B83: GLAND | C83: 911.6 | D83: 920.53 | E83: 901.07 | F83: 890.53 | G83: 871.07 | H83: 931.07 | I83: 950.53 | J83: 961.07 | K83: 940 | L83: 910 | M83: 5.0307
A84: 75 | B84: GODREJCP | C84: 1047.35 | D84: 1050.02 | E84: 1041.08 | F84: 1034.82 | G84: 1025.88 | H84: 1056.28 | I84: 1065.22 | J84: 1071.48 | K84: 1058.95 | L84: 1043.75 | M84: 5.04045
A85: 76 | B85: GODREJPROP | C85: 1374.9 | D85: 1374.67 | E85: 1360.73 | F85: 1346.57 | G85: 1332.63 | H85: 1388.83 | I85: 1402.77 | J85: 1416.93 | K85: 1388.6 | L85: 1360.5 | M85: 4.34395
A86: 77 | B86: GRASIM | C86: 1713.3 | D86: 1701.58 | E86: 1687.82 | F86: 1662.33 | G86: 1648.57 | H86: 1727.07 | I86: 1740.83 | J86: 1766.32 | K86: 1715.35 | L86: 1676.1 | M86: 6.6789
A87: 78 | B87: GUJGASLTD | C87: 496.9 | D87: 498.47 | E87: 494.03 | F87: 491.17 | G87: 486.73 | H87: 501.33 | I87: 505.77 | J87: 508.63 | K87: 502.9 | L87: 495.6 | M87: 9.67925
A88: 79 | B88: GSPL | C88: 297.4 | D88: 296.05 | E88: 290.15 | F88: 282.90 | G88: 277.00 | H88: 303.30 | I88: 309.20 | J88: 316.45 | K88: 301.95 | L88: 288.8 | M88: 6.76573
A89: 80 | B89: HCLTECH | C89: 1126.2 | D89: 1132.85 | E89: 1117.75 | F89: 1109.30 | G89: 1094.20 | H89: 1141.30 | I89: 1156.40 | J89: 1164.85 | K89: 1147.95 | L89: 1124.4 | M89: 12.88914
A90: 81 | B90: HDFCAMC | C90: 1873.75 | D90: 1871.93 | E90: 1851.87 | F90: 1829.98 | G90: 1809.92 | H90: 1893.82 | I90: 1913.88 | J90: 1935.77 | K90: 1892 | L90: 1850.05 | M90: 6.97864
A91: 82 | B91: HDFCBANK | C91: 1635.5 | D91: 1633.78 | E91: 1626.57 | F91: 1617.63 | G91: 1610.42 | H91: 1642.72 | I91: 1649.93 | J91: 1658.87 | K91: 1641 | L91: 1624.85 | M91: 109.08146
A92: 83 | B92: HDFCLIFE | C92: 579.05 | D92: 580.83 | E92: 573.22 | F92: 567.38 | G92: 559.77 | H92: 586.67 | I92: 594.28 | J92: 600.12 | K92: 588.45 | L92: 575 | M92: 27.94717
A93: 84 | B93: HAVELLS | C93: 1297.6 | D93: 1293.87 | E93: 1287.73 | F93: 1277.87 | G93: 1271.73 | H93: 1303.73 | I93: 1309.87 | J93: 1319.73 | K93: 1300 | L93: 1284 | M93: 3.19481
A94: 85 | B94: HEROMOTOCO | C94: 2776.9 | D94: 2769.25 | E94: 2743.70 | F94: 2710.50 | G94: 2684.95 | H94: 2802.45 | I94: 2828.00 | J94: 2861.20 | K94: 2794.8 | L94: 2736.05 | M94: 4.62628
A95: 86 | B95: HINDALCO | C95: 419.9 | D95: 420.13 | E95: 415.27 | F95: 410.63 | G95: 405.77 | H95: 424.77 | I95: 429.63 | J95: 434.27 | K95: 425 | L95: 415.5 | M95: 83.50721
A96: 87 | B96: HAL | C96: 3013.7 | D96: 3021.85 | E96: 2989.90 | F96: 2966.10 | G96: 2934.15 | H96: 3045.65 | I96: 3077.60 | J96: 3101.40 | K96: 3053.8 | L96: 2998.05 | M96: 10.08328
A97: 88 | B97: HINDPETRO | C97: 257.7 | D97: 257.98 | E97: 255.92 | F97: 254.13 | G97: 252.07 | H97: 259.77 | I97: 261.83 | J97: 263.62 | K97: 260.05 | L97: 256.2 | M97: 7.74477
A98: 89 | B98: HINDUNILVR | C98: 2650.3 | D98: 2658.30 | E98: 2637.05 | F98: 2623.80 | G98: 2602.55 | H98: 2671.55 | I98: 2692.80 | J98: 2706.05 | K98: 2679.55 | L98: 2645.05 | M98: 6.98267
A99: 90 | B99: HINDZINC | C99: 306.7 | D99: 306.65 | E99: 305.30 | F99: 303.90 | G99: 302.55 | H99: 308.05 | I99: 309.40 | J99: 310.80 | K99: 308 | L99: 305.25 | M99: 4.53398
A100: 91 | B100: HONAUT | C100: 39757.75 | D100: 39969.30 | E100: 39438.45 | F100: 39119.15 | G100: 38588.30 | H100: 40288.60 | I100: 40819.45 | J100: 41138.75 | K100: 40500.15 | L100: 39650 | M100: 0.01841
A101: 92 | B101: HDFC | C101: 2690.55 | D101: 2688.38 | E101: 2676.77 | F101: 2662.98 | G101: 2651.37 | H101: 2702.17 | I101: 2713.78 | J101: 2727.57 | K101: 2700 | L101: 2674.6 | M101: 30.30616
A102: 93 | B102: ICICIBANK | C102: 948.15 | D102: 950.85 | E102: 944.10 | F102: 940.05 | G102: 933.30 | H102: 954.90 | I102: 961.65 | J102: 965.70 | K102: 957.6 | L102: 946.8 | M102: 121.08079
A103: 94 | B103: ICICIGI | C103: 1190.95 | D103: 1207.58 | E103: 1159.47 | F103: 1127.98 | G103: 1079.87 | H103: 1239.07 | I103: 1287.18 | J103: 1318.67 | K103: 1255.7 | L103: 1176.1 | M103: 82.4559
A104: 95 | B104: ICICIPRULI | C104: 461.8 | D104: 459.78 | E104: 449.62 | F104: 437.43 | G104: 427.27 | H104: 471.97 | I104: 482.13 | J104: 494.32 | K104: 469.95 | L104: 447.6 | M104: 36.46628
A105: 96 | B105: ISEC | C105: 509 | D105: 507.13 | E105: 500.27 | F105: 491.53 | G105: 484.67 | H105: 515.87 | I105: 522.73 | J105: 531.47 | K105: 514 | L105: 498.4 | M105: 3.53762
A106: 97 | B106: IDFCFIRSTB | C106: 70.15 | D106: 70.18 | E106: 69.57 | F106: 68.98 | G106: 68.37 | H106: 70.77 | I106: 71.38 | J106: 71.97 | K106: 70.8 | L106: 69.6 | M106: 309.03068
A107: 98 | B107: ITC | C107: 449.1 | D107: 448.33 | E107: 444.87 | F107: 440.63 | G107: 437.17 | H107: 452.57 | I107: 456.03 | J107: 460.27 | K107: 451.8 | L107: 444.1 | M107: 198.26254
A108: 99 | B108: INDIAMART | C108: 5545.6 | D108: 5559.38 | E108: 5520.77 | F108: 5495.93 | G108: 5457.32 | H108: 5584.22 | I108: 5622.83 | J108: 5647.67 | K108: 5598 | L108: 5534.55 | M108: 0.32425
A109: 100 | B109: INDIANB | C109: 273.75 | D109: 275.97 | E109: 270.98 | F109: 268.22 | G109: 263.23 | H109: 278.73 | I109: 283.72 | J109: 286.48 | K109: 280.95 | L109: 273.2 | M109: 15.75725
A110: 101 | B110: IEX | C110: 155.1 | D110: 155.93 | E110: 153.97 | F110: 152.83 | G110: 150.87 | H110: 157.07 | I110: 159.03 | J110: 160.17 | K110: 157.9 | L110: 154.8 | M110: 39.14243
A111: 102 | B111: INDHOTEL | C111: 380 | D111: 381.48 | E111: 376.02 | F111: 372.03 | G111: 366.57 | H111: 385.47 | I111: 390.93 | J111: 394.92 | K111: 386.95 | L111: 377.5 | M111: 40.11007
A112: 103 | B112: IOC | C112: 90.05 | D112: 89.97 | E112: 89.48 | F112: 88.92 | G112: 88.43 | H112: 90.53 | I112: 91.02 | J112: 91.58 | K112: 90.45 | L112: 89.4 | M112: 68.91927
A113: 104 | B113: IRCTC | C113: 645.75 | D113: 639.67 | E113: 632.33 | F113: 618.92 | G113: 611.58 | H113: 653.08 | I113: 660.42 | J113: 673.83 | K113: 647 | L113: 626.25 | M113: 40.19467
A114: 105 | B114: IGL | C114: 480.75 | D114: 481.47 | E114: 478.28 | F114: 475.82 | G114: 472.63 | H114: 483.93 | I114: 487.12 | J114: 489.58 | K114: 484.65 | L114: 479 | M114: 11.67944
A115: 106 | B115: INDUSTOWER | C115: 155.7 | D115: 156.38 | E115: 154.12 | F115: 152.53 | G115: 150.27 | H115: 157.97 | I115: 160.23 | J115: 161.82 | K115: 158.65 | L115: 154.8 | M115: 92.49811
A116: 107 | B116: INDUSINDBK | C116: 1284.95 | D116: 1283.98 | E116: 1272.97 | F116: 1260.98 | G116: 1249.97 | H116: 1295.97 | I116: 1306.98 | J116: 1318.97 | K116: 1295 | L116: 1272 | M116: 29.85334
A117: 108 | B117: NAUKRI | C117: 4207.1 | D117: 4201.03 | E117: 4107.07 | F117: 4007.03 | G117: 3913.07 | H117: 4301.07 | I117: 4395.03 | J117: 4495.07 | K117: 4295 | L117: 4101 | M117: 11.66166
A118: 109 | B118: INFY | C118: 1314.4 | D118: 1318.98 | E118: 1305.27 | F118: 1296.13 | G118: 1282.42 | H118: 1328.12 | I118: 1341.83 | J118: 1350.97 | K118: 1332.7 | L118: 1309.85 | M118: 44.19365
A119: 110 | B119: INDIGO | C119: 2321.2 | D119: 2329.82 | E119: 2306.78 | F119: 2292.37 | G119: 2269.33 | H119: 2344.23 | I119: 2367.27 | J119: 2381.68 | K119: 2352.85 | L119: 2315.4 | M119: 6.4487
A120: 111 | B120: IPCALAB | C120: 689.1 | D120: 685.30 | E120: 679.25 | F120: 669.40 | G120: 663.35 | H120: 695.15 | I120: 701.20 | J120: 711.05 | K120: 691.35 | L120: 675.45 | M120: 9.6265
A121: 112 | B121: JSWENERGY | C121: 252.7 | D121: 254.00 | E121: 249.70 | F121: 246.70 | G121: 242.40 | H121: 257.00 | I121: 261.30 | J121: 264.30 | K121: 258.3 | L121: 251 | M121: 6.69161
A122: 113 | B122: JSWSTEEL | C122: 702.2 | D122: 704.08 | E122: 699.22 | F122: 696.23 | G122: 691.37 | H122: 707.07 | I122: 711.93 | J122: 714.92 | K122: 708.95 | L122: 701.1 | M122: 14.67219
A123: 114 | B123: JINDALSTEL | C123: 531.8 | D123: 529.73 | E123: 525.32 | F123: 518.83 | G123: 514.42 | H123: 536.22 | I123: 540.63 | J123: 547.12 | K123: 534.15 | L123: 523.25 | M123: 20.46489
A124: 115 | B124: JUBLFOOD | C124: 482.4 | D124: 483.95 | E124: 479.55 | F124: 476.70 | G124: 472.30 | H124: 486.80 | I124: 491.20 | J124: 494.05 | K124: 488.35 | L124: 481.1 | M124: 10.04989
A125: 116 | B125: KOTAKBANK | C125: 1953.2 | D125: 1958.25 | E125: 1943.20 | F125: 1933.20 | G125: 1918.15 | H125: 1968.25 | I125: 1983.30 | J125: 1993.30 | K125: 1973.3 | L125: 1948.25 | M125: 37.75509
A126: 117 | B126: L&TFH | C126: 103.25 | D126: 103.25 | E126: 102.40 | F126: 101.55 | G126: 100.70 | H126: 104.10 | I126: 104.95 | J126: 105.80 | K126: 104.1 | L126: 102.4 | M126: 61.01147
A127: 118 | B127: LTTS | C127: 3866.8 | D127: 3883.42 | E127: 3833.38 | F127: 3799.97 | G127: 3749.93 | H127: 3916.83 | I127: 3966.87 | J127: 4000.28 | K127: 3933.45 | L127: 3850 | M127: 1.39377
A128: 119 | B128: LICHSGFIN | C128: 380.05 | D128: 380.38 | E128: 377.17 | F128: 374.28 | G128: 371.07 | H128: 383.27 | I128: 386.48 | J128: 389.37 | K128: 383.6 | L128: 377.5 | M128: 11.84824
A129: 120 | B129: LTIM | C129: 4988.9 | D129: 5006.60 | E129: 4958.50 | F129: 4928.10 | G129: 4880.00 | H129: 5037.00 | I129: 5085.10 | J129: 5115.50 | K129: 5054.7 | L129: 4976.2 | M129: 3.03516
A130: 121 | B130: LT | C130: 2224.55 | D130: 2228.85 | E130: 2215.90 | F130: 2207.25 | G130: 2194.30 | H130: 2237.50 | I130: 2250.45 | J130: 2259.10 | K130: 2241.8 | L130: 2220.2 | M130: 13.69656
A131: 122 | B131: LAURUSLABS | C131: 334.65 | D131: 334.57 | E131: 332.13 | F131: 329.62 | G131: 327.18 | H131: 337.08 | I131: 339.52 | J131: 342.03 | K131: 337 | L131: 332.05 | M131: 9.32053
A132: 123 | B132: LICI | C132: 605.2 | D132: 606.20 | E132: 602.30 | F132: 599.40 | G132: 595.50 | H132: 609.10 | I132: 613.00 | J132: 615.90 | K132: 610.1 | L132: 603.3 | M132: 11.31333
A133: 124 | B133: LINDEINDIA | C133: 3977.1 | D133: 3989.35 | E133: 3949.75 | F133: 3922.40 | G133: 3882.80 | H133: 4016.70 | I133: 4056.30 | J133: 4083.65 | K133: 4028.95 | L133: 3962 | M133: 0.13825
A134: 125 | B134: LUPIN | C134: 805.7 | D134: 799.13 | E134: 786.57 | F134: 767.43 | G134: 754.87 | H134: 818.27 | I134: 830.83 | J134: 849.97 | K134: 811.7 | L134: 780 | M134: 18.95651
A135: 126 | B135: MRF | C135: 97782.2 | D135: 97899.37 | E135: 97357.83 | F135: 96933.47 | G135: 96391.93 | H135: 98323.73 | I135: 98865.27 | J135: 99289.63 | K135: 98440.9 | L135: 97475 | M135: 0.04096
A136: 127 | B136: M&MFIN | C136: 286.55 | D136: 284.75 | E136: 282.20 | F136: 277.85 | G136: 275.30 | H136: 289.10 | I136: 291.65 | J136: 296.00 | K136: 287.3 | L136: 280.4 | M136: 28.39519
A137: 128 | B137: M&M | C137: 1330.15 | D137: 1326.05 | E137: 1302.10 | F137: 1274.05 | G137: 1250.10 | H137: 1354.10 | I137: 1378.05 | J137: 1406.10 | K137: 1350 | L137: 1298 | M137: 61.85862
A138: 129 | B138: MARICO | C138: 544.15 | D138: 544.62 | E138: 540.83 | F138: 537.52 | G138: 533.73 | H138: 547.93 | I138: 551.72 | J138: 555.03 | K138: 548.4 | L138: 541.3 | M138: 9.80789
A139: 130 | B139: MARUTI | C139: 9333.5 | D139: 9378.12 | E139: 9267.43 | F139: 9201.37 | G139: 9090.68 | H139: 9444.18 | I139: 9554.87 | J139: 9620.93 | K139: 9488.8 | L139: 9312.05 | M139: 2.36834
A140: 131 | B140: MFSL | C140: 696.95 | D140: 697.80 | E140: 686.70 | F140: 676.45 | G140: 665.35 | H140: 708.05 | I140: 719.15 | J140: 729.40 | K140: 708.9 | L140: 687.55 | M140: 9.53527
A141: 132 | B141: MAXHEALTH | C141: 536.9 | D141: 539.65 | E141: 531.30 | F141: 525.70 | G141: 517.35 | H141: 545.25 | I141: 553.60 | J141: 559.20 | K141: 548 | L141: 534.05 | M141: 22.80303
A142: 133 | B142: MSUMI | C142: 56.95 | D142: 57.05 | E142: 56.40 | F142: 55.85 | G142: 55.20 | H142: 57.60 | I142: 58.25 | J142: 58.80 | K142: 57.7 | L142: 56.5 | M142: 49.27537
A143: 134 | B143: MPHASIS | C143: 1967.85 | D143: 1976.13 | E143: 1952.27 | F143: 1936.68 | G143: 1912.82 | H143: 1991.72 | I143: 2015.58 | J143: 2031.17 | K143: 2000 | L143: 1960.55 | M143: 3.79011
A144: 135 | B144: MUTHOOTFIN | C144: 1115.95 | D144: 1118.12 | E144: 1106.33 | F144: 1096.72 | G144: 1084.93 | H144: 1127.73 | I144: 1139.52 | J144: 1149.13 | K144: 1129.9 | L144: 1108.5 | M144: 2.86216
A145: 136 | B145: NTPC | C145: 176.3 | D145: 176.30 | E145: 174.80 | F145: 173.30 | G145: 171.80 | H145: 177.80 | I145: 179.30 | J145: 180.80 | K145: 177.8 | L145: 174.8 | M145: 99.43211
A146: 137 | B146: NATIONALUM | C146: 86.05 | D146: 85.80 | E146: 84.60 | F146: 83.15 | G146: 81.95 | H146: 87.25 | I146: 88.45 | J146: 89.90 | K146: 87 | L146: 84.35 | M146: 142.1214
A147: 138 | B147: NAVINFLUOR | C147: 4640.8 | D147: 4640.97 | E147: 4606.93 | F147: 4573.07 | G147: 4539.03 | H147: 4674.83 | I147: 4708.87 | J147: 4742.73 | K147: 4675 | L147: 4607.1 | M147: 0.81574
A148: 139 | B148: NESTLEIND | C148: 21729.45 | D148: 21710.52 | E148: 21571.03 | F148: 21412.62 | G148: 21273.13 | H148: 21868.93 | I148: 22008.42 | J148: 22166.83 | K148: 21850 | L148: 21552.1 | M148: 0.53437
A149: 140 | B149: NAM-INDIA | C149: 244.15 | D149: 242.57 | E149: 239.13 | F149: 234.12 | G149: 230.68 | H149: 247.58 | I149: 251.02 | J149: 256.03 | K149: 246 | L149: 237.55 | M149: 9.69898
A150: 141 | B150: OBEROIRLTY | C150: 929.65 | D150: 931.93 | E150: 924.27 | F150: 918.88 | G150: 911.22 | H150: 937.32 | I150: 944.98 | J150: 950.37 | K150: 939.6 | L150: 926.55 | M150: 4.28091
A151: 142 | B151: ONGC | C151: 159 | D151: 158.58 | E151: 156.92 | F151: 154.83 | G151: 153.17 | H151: 160.67 | I151: 162.33 | J151: 164.42 | K151: 160.25 | L151: 156.5 | M151: 432.53971
A152: 143 | B152: OIL | C152: 256.75 | D152: 258.62 | E152: 254.43 | F152: 252.12 | G152: 247.93 | H152: 260.93 | I152: 265.12 | J152: 267.43 | K152: 262.8 | L152: 256.3 | M152: 10.02603
A153: 144 | B153: PAYTM | C153: 704.35 | D153: 706.10 | E153: 699.70 | F153: 695.05 | G153: 688.65 | H153: 710.75 | I153: 717.15 | J153: 721.80 | K153: 712.5 | L153: 701.45 | M153: 13.54777
A154: 145 | B154: OFSS | C154: 3574.65 | D154: 3584.55 | E154: 3554.10 | F154: 3533.55 | G154: 3503.10 | H154: 3605.10 | I154: 3635.55 | J154: 3656.10 | K154: 3615 | L154: 3564 | M154: 0.30589
A155: 146 | B155: POLICYBZR | C155: 603.2 | D155: 600.80 | E155: 593.40 | F155: 583.60 | G155: 576.20 | H155: 610.60 | I155: 618.00 | J155: 627.80 | K155: 608.2 | L155: 591 | M155: 16.07853
A156: 147 | B156: PIIND | C156: 3500.2 | D156: 3494.55 | E156: 3459.65 | F156: 3419.10 | G156: 3384.20 | H156: 3535.10 | I156: 3570.00 | J156: 3610.55 | K156: 3529.45 | L156: 3454 | M156: 4.87629
A157: 148 | B157: PAGEIND | C157: 37895.5 | D157: 37855.83 | E157: 37461.67 | F157: 37027.83 | G157: 36633.67 | H157: 38289.67 | I157: 38683.83 | J157: 39117.67 | K157: 38250 | L157: 37422 | M157: 0.61564
A158: 149 | B158: PATANJALI | C158: 1013.15 | D158: 1018.35 | E158: 1001.80 | F158: 990.45 | G158: 973.90 | H158: 1029.70 | I158: 1046.25 | J158: 1057.60 | K158: 1034.9 | L158: 1007 | M158: 1.62713
A159: 150 | B159: PERSISTENT | C159: 5039.25 | D159: 5068.05 | E159: 5002.45 | F159: 4965.65 | G159: 4900.05 | H159: 5104.85 | I159: 5170.45 | J159: 5207.25 | K159: 5133.65 | L159: 5031.25 | M159: 2.46803
A160: 151 | B160: PETRONET | C160: 223.7 | D160: 224.13 | E160: 222.77 | F160: 221.83 | G160: 220.47 | H160: 225.07 | I160: 226.43 | J160: 227.37 | K160: 225.5 | L160: 223.2 | M160: 6.22678
A161: 152 | B161: PIDILITIND | C161: 2582.95 | D161: 2583.98 | E161: 2568.97 | F161: 2554.98 | G161: 2539.97 | H161: 2597.97 | I161: 2612.98 | J161: 2626.97 | K161: 2599 | L161: 2570 | M161: 2.19835
A162: 153 | B162: POLYCAB | C162: 3412.3 | D162: 3415.30 | E162: 3391.45 | F162: 3370.60 | G162: 3346.75 | H162: 3436.15 | I162: 3460.00 | J162: 3480.85 | K162: 3439.15 | L162: 3394.45 | M162: 0.84643
A163: 154 | B163: POONAWALLA | C163: 340.85 | D163: 342.03 | E163: 334.47 | F163: 328.08 | G163: 320.52 | H163: 348.42 | I163: 355.98 | J163: 362.37 | K163: 349.6 | L163: 335.65 | M163: 16.46464
A164: 155 | B164: PFC | C164: 174.3 | D164: 174.55 | E164: 171.90 | F164: 169.50 | G164: 166.85 | H164: 176.95 | I164: 179.60 | J164: 182.00 | K164: 177.2 | L164: 172.15 | M164: 129.23369
A165: 156 | B165: POWERGRID | C165: 234.5 | D165: 235.65 | E165: 232.95 | F165: 231.40 | G165: 228.70 | H165: 237.20 | I165: 239.90 | J165: 241.45 | K165: 238.35 | L165: 234.1 | M165: 102.28723
A166: 157 | B166: PRESTIGE | C166: 474.9 | D166: 478.32 | E166: 468.68 | F166: 462.47 | G166: 452.83 | H166: 484.53 | I166: 494.17 | J166: 500.38 | K166: 487.95 | L166: 472.1 | M166: 4.21969
A167: 158 | B167: PGHH | C167: 13515.25 | D167: 13503.42 | E167: 13451.83 | F167: 13388.42 | G167: 13336.83 | H167: 13566.83 | I167: 13618.42 | J167: 13681.83 | K167: 13555 | L167: 13440 | M167: 0.02609
A168: 159 | B168: PNB | C168: 50.8 | D168: 50.82 | E168: 50.28 | F168: 49.77 | G168: 49.23 | H168: 51.33 | I168: 51.87 | J168: 52.38 | K168: 51.35 | L168: 50.3 | M168: 336.68195
A169: 160 | B169: RECLTD | C169: 135.85 | D169: 135.88 | E169: 133.97 | F169: 132.08 | G169: 130.17 | H169: 137.77 | I169: 139.68 | J169: 141.57 | K169: 137.8 | L169: 134 | M169: 113.95309
A170: 161 | B170: RELIANCE | C170: 2520.6 | D170: 2519.27 | E170: 2508.53 | F170: 2496.47 | G170: 2485.73 | H170: 2531.33 | I170: 2542.07 | J170: 2554.13 | K170: 2530 | L170: 2507.2 | M170: 46.19754
A171: 162 | B171: SBICARD | C171: 905.7 | D171: 907.55 | E171: 900.15 | F171: 894.60 | G171: 887.20 | H171: 913.10 | I171: 920.50 | J171: 926.05 | K171: 914.95 | L171: 902 | M171: 7.14336
A172: 163 | B172: SBILIFE | C172: 1218.1 | D172: 1215.70 | E172: 1199.50 | F172: 1180.90 | G172: 1164.70 | H172: 1234.30 | I172: 1250.50 | J172: 1269.10 | K172: 1231.9 | L172: 1197.1 | M172: 13.70649
A173: 164 | B173: SRF | C173: 2534.35 | D173: 2528.13 | E173: 2516.27 | F173: 2498.18 | G173: 2486.32 | H173: 2546.22 | I173: 2558.08 | J173: 2576.17 | K173: 2540 | L173: 2510.05 | M173: 1.75879
A174: 165 | B174: MOTHERSON | C174: 80.55 | D174: 80.78 | E174: 79.57 | F174: 78.58 | G174: 77.37 | H174: 81.77 | I174: 82.98 | J174: 83.97 | K174: 82 | L174: 79.8 | M174: 125.4409
A175: 166 | B175: SHREECEM | C175: 25261.35 | D175: 25241.08 | E175: 25012.67 | F175: 24763.98 | G175: 24535.57 | H175: 25489.77 | I175: 25718.18 | J175: 25966.87 | K175: 25469.5 | L175: 24992.4 | M175: 0.32876
A176: 167 | B176: SHRIRAMFIN | C176: 1408.8 | D176: 1405.27 | E176: 1387.13 | F176: 1365.47 | G176: 1347.33 | H176: 1426.93 | I176: 1445.07 | J176: 1466.73 | K176: 1423.4 | L176: 1383.6 | M176: 11.75769
A177: 168 | B177: SIEMENS | C177: 3512.7 | D177: 3519.23 | E177: 3484.47 | F177: 3456.23 | G177: 3421.47 | H177: 3547.47 | I177: 3582.23 | J177: 3610.47 | K177: 3554 | L177: 3491 | M177: 4.97135
A178: 169 | B178: SONACOMS | C178: 536.5 | D178: 541.37 | E178: 530.13 | F178: 523.77 | G178: 512.53 | H178: 547.73 | I178: 558.97 | J178: 565.33 | K178: 552.6 | L178: 535 | M178: 39.76323
A179: 170 | B179: SBIN | C179: 595 | D179: 593.15 | E179: 589.90 | F179: 584.80 | G179: 581.55 | H179: 598.25 | I179: 601.50 | J179: 606.60 | K179: 596.4 | L179: 588.05 | M179: 184.32231
A180: 171 | B180: SAIL | C180: 84.3 | D180: 83.73 | E180: 82.62 | F180: 80.93 | G180: 79.82 | H180: 85.42 | I180: 86.53 | J180: 88.22 | K180: 84.85 | L180: 82.05 | M180: 206.34118
A181: 172 | B181: SUNPHARMA | C181: 968.45 | D181: 962.70 | E181: 952.15 | F181: 935.85 | G181: 925.30 | H181: 979.00 | I181: 989.55 | J181: 1005.85 | K181: 973.25 | L181: 946.4 | M181: 53.44765
A182: 173 | B182: SUNTV | C182: 447.2 | D182: 446.82 | E182: 442.88 | F182: 438.57 | G182: 434.63 | H182: 451.13 | I182: 455.07 | J182: 459.38 | K182: 450.75 | L182: 442.5 | M182: 3.49888
A183: 174 | B183: SYNGENE | C183: 714.5 | D183: 715.80 | E183: 707.10 | F183: 699.70 | G183: 691.00 | H183: 723.20 | I183: 731.90 | J183: 739.30 | K183: 724.5 | L183: 708.4 | M183: 3.36097
A184: 175 | B184: TVSMOTOR | C184: 1299.8 | D184: 1294.40 | E184: 1283.95 | F184: 1268.10 | G184: 1257.65 | H184: 1310.25 | I184: 1320.70 | J184: 1336.55 | K184: 1304.85 | L184: 1278.55 | M184: 8.75198
A185: 176 | B185: TATACHEM | C185: 971.85 | D185: 971.78 | E185: 967.72 | F185: 963.58 | G185: 959.52 | H185: 975.92 | I185: 979.98 | J185: 984.12 | K185: 975.85 | L185: 967.65 | M185: 4.56813
A186: 177 | B186: TATACOMM | C186: 1278.25 | D186: 1277.15 | E186: 1269.30 | F186: 1260.35 | G186: 1252.50 | H186: 1286.10 | I186: 1293.95 | J186: 1302.90 | K186: 1285 | L186: 1268.2 | M186: 1.95053
A187: 178 | B187: TCS | C187: 3320.35 | D187: 3334.78 | E187: 3297.57 | F187: 3274.78 | G187: 3237.57 | H187: 3357.57 | I187: 3394.78 | J187: 3417.57 | K187: 3372 | L187: 3312 | M187: 12.10372
A188: 179 | B188: TATACONSUM | C188: 794.25 | D188: 793.83 | E188: 790.67 | F188: 787.08 | G188: 783.92 | H188: 797.42 | I188: 800.58 | J188: 804.17 | K188: 797 | L188: 790.25 | M188: 11.71159
A189: 180 | B189: TATAELXSI | C189: 7494.95 | D189: 7521.97 | E189: 7423.98 | F189: 7353.02 | G189: 7255.03 | H189: 7592.93 | I189: 7690.92 | J189: 7761.88 | K189: 7619.95 | L189: 7451 | M189: 2.00412
A190: 181 | B190: TATAMOTORS | C190: 521.45 | D190: 522.08 | E190: 519.07 | F190: 516.68 | G190: 513.67 | H190: 524.47 | I190: 527.48 | J190: 529.87 | K190: 525.1 | L190: 519.7 | M190: 65.96504
A191: 182 | B191: TATAPOWER | C191: 217 | D191: 215.47 | E191: 213.23 | F191: 209.47 | G191: 207.23 | H191: 219.23 | I191: 221.47 | J191: 225.23 | K191: 217.7 | L191: 211.7 | M191: 129.56419
A192: 183 | B192: TATASTEEL | C192: 108.45 | D192: 107.87 | E192: 106.88 | F192: 105.32 | G192: 104.33 | H192: 109.43 | I192: 110.42 | J192: 111.98 | K192: 108.85 | L192: 106.3 | M192: 410.62311
A193: 184 | B193: TTML | C193: 61.2 | D193: 61.40 | E193: 60.90 | F193: 60.60 | G193: 60.10 | H193: 61.70 | I193: 62.20 | J193: 62.50 | K193: 61.9 | L193: 61.1 | M193: 11.53321
A194: 185 | B194: TECHM | C194: 1114.05 | D194: 1117.40 | E194: 1106.75 | F194: 1099.45 | G194: 1088.80 | H194: 1124.70 | I194: 1135.35 | J194: 1142.65 | K194: 1128.05 | L194: 1110.1 | M194: 14.32241
A195: 186 | B195: RAMCOCEM | C195: 886.9 | D195: 882.70 | E195: 876.40 | F195: 865.90 | G195: 859.60 | H195: 893.20 | I195: 899.50 | J195: 910.00 | K195: 889 | L195: 872.2 | M195: 2.2872
A196: 187 | B196: TITAN | C196: 2812.25 | D196: 2793.02 | E196: 2764.23 | F196: 2716.22 | G196: 2687.43 | H196: 2841.03 | I196: 2869.82 | J196: 2917.83 | K196: 2821.8 | L196: 2745 | M196: 11.07678
A197: 188 | B197: TORNTPHARM | C197: 1705.95 | D197: 1705.98 | E197: 1696.97 | F197: 1687.98 | G197: 1678.97 | H197: 1714.97 | I197: 1723.98 | J197: 1732.97 | K197: 1715 | L197: 1697 | M197: 1.6032
A198: 189 | B198: TORNTPOWER | C198: 555.35 | D198: 552.93 | E198: 548.42 | F198: 541.48 | G198: 536.97 | H198: 559.87 | I198: 564.38 | J198: 571.32 | K198: 557.45 | L198: 546 | M198: 1.41289
A199: 190 | B199: TRENT | C199: 1537.9 | D199: 1535.17 | E199: 1525.83 | F199: 1513.77 | G199: 1504.43 | H199: 1547.23 | I199: 1556.57 | J199: 1568.63 | K199: 1544.5 | L199: 1523.1 | M199: 3.4726
A200: 191 | B200: TRIDENT | C200: 32.4 | D200: 32.47 | E200: 32.23 | F200: 32.07 | G200: 31.83 | H200: 32.63 | I200: 32.87 | J200: 33.03 | K200: 32.7 | L200: 32.3 | M200: 61.91235
A201: 192 | B201: TIINDIA | C201: 2865.15 | D201: 2844.72 | E201: 2808.43 | F201: 2751.72 | G201: 2715.43 | H201: 2901.43 | I201: 2937.72 | J201: 2994.43 | K201: 2881 | L201: 2788 | M201: 2.17784
A202: 193 | B202: UPL | C202: 690 | D202: 689.25 | E202: 687.00 | F202: 684.00 | G202: 681.75 | H202: 692.25 | I202: 694.50 | J202: 697.50 | K202: 691.5 | L202: 686.25 | M202: 11.16759
A203: 194 | B203: ULTRACEMCO | C203: 7840.55 | D203: 7811.08 | E203: 7764.47 | F203: 7688.38 | G203: 7641.77 | H203: 7887.17 | I203: 7933.78 | J203: 8009.87 | K203: 7857.7 | L203: 7735 | M203: 2.10769
A204: 195 | B204: UNIONBANK | C204: 70.3 | D204: 70.38 | E204: 69.97 | F204: 69.63 | G204: 69.22 | H204: 70.72 | I204: 71.13 | J204: 71.47 | K204: 70.8 | L204: 70.05 | M204: 53.86723
A205: 196 | B205: UBL | C205: 1457.85 | D205: 1459.15 | E205: 1450.55 | F205: 1443.25 | G205: 1434.65 | H205: 1466.45 | I205: 1475.05 | J205: 1482.35 | K205: 1467.75 | L205: 1451.85 | M205: 2.53187
... 29 more rows

Sheet MidCap Intra
L5: Back To Main Page
A6: FOR INTRA DAY TRADING | K6: =Main!B10 -> 2023-05-30
A9: Sr.no | B9: Scrip | C9: CLOSE RATE | D9: Pivot Point | E9: Supports | H9: Resistances
E10: S1 | F10: S2 | G10: S3 | H10: R1 | I10: R2 | J10: R3 | K10: HIGH | L10: LOW | M10: Total Trade Quanity in Lakhs
A11: 1 | B11: 360ONE | C11: 419.75 | D11: 418.87 | E11: 417.23 | F11: 414.72 | G11: 413.08 | H11: 421.38 | I11: 423.02 | J11: 425.53 | K11: 420.5 | L11: 416.35 | M11: 0.77997
A12: 2 | B12: 3MINDIA | C12: 24147.25 | D12: 24142.88 | E12: 23944.32 | F12: 23741.38 | G12: 23542.82 | H12: 24345.82 | I12: 24544.38 | J12: 24747.32 | K12: 24341.45 | L12: 23939.95 | M12: 0.01365
A13: 3 | B13: ABB | C13: 4031.15 | D13: 4033.85 | E13: 4009.60 | F13: 3988.05 | G13: 3963.80 | H13: 4055.40 | I13: 4079.65 | J13: 4101.20 | K13: 4058.1 | L13: 4012.3 | M13: 2.77673
A14: 4 | B14: ACC | C14: 1794.4 | D14: 1793.88 | E14: 1779.77 | F14: 1765.13 | G14: 1751.02 | H14: 1808.52 | I14: 1822.63 | J14: 1837.27 | K14: 1808 | L14: 1779.25 | M14: 3.89902
A15: 5 | B15: AIAENG | C15: 2789.75 | D15: 2798.70 | E15: 2752.05 | F15: 2714.35 | G15: 2667.70 | H15: 2836.40 | I15: 2883.05 | J15: 2920.75 | K15: 2845.35 | L15: 2761 | M15: 2.55424
A16: 6 | B16: APLAPOLLO | C16: 1135.75 | D16: 1132.65 | E16: 1125.30 | F16: 1114.85 | G16: 1107.50 | H16: 1143.10 | I16: 1150.45 | J16: 1160.90 | K16: 1140 | L16: 1122.2 | M16: 3.27334
A17: 7 | B17: AUBANK | C17: 790.4 | D17: 787.32 | E17: 779.63 | F17: 768.87 | G17: 761.18 | H17: 798.08 | I17: 805.77 | J17: 816.53 | K17: 795 | L17: 776.55 | M17: 26.25329
A18: 8 | B18: AARTIDRUGS | C18: 443.85 | D18: 445.77 | E18: 439.63 | F18: 435.42 | G18: 429.28 | H18: 449.98 | I18: 456.12 | J18: 460.33 | K18: 451.9 | L18: 441.55 | M18: 0.83133
A19: 9 | B19: AAVAS | C19: 1389.7 | D19: 1389.23 | E19: 1380.47 | F19: 1371.23 | G19: 1362.47 | H19: 1398.47 | I19: 1407.23 | J19: 1416.47 | K19: 1398 | L19: 1380 | M19: 2.19015
A20: 10 | B20: ABBOTINDIA | C20: 21893.8 | D20: 21876.27 | E20: 21764.53 | F20: 21635.27 | G20: 21523.53 | H20: 22005.53 | I20: 22117.27 | J20: 22246.53 | K20: 21988 | L20: 21747 | M20: 0.06045
A21: 11 | B21: ADANIENT | C21: 2534.05 | D21: 2546.85 | E21: 2510.20 | F21: 2486.35 | G21: 2449.70 | H21: 2570.70 | I21: 2607.35 | J21: 2631.20 | K21: 2583.5 | L21: 2523 | M21: 27.79432
A22: 12 | B22: ADANIGREEN | C22: 977.85 | D22: 977.62 | E22: 965.33 | F22: 952.82 | G22: 940.53 | H22: 990.13 | I22: 1002.42 | J22: 1014.93 | K22: 989.9 | L22: 965.1 | M22: 31.77944
A23: 13 | B23: ADANIPORTS | C23: 737.5 | D23: 735.18 | E23: 730.37 | F23: 723.23 | G23: 718.42 | H23: 742.32 | I23: 747.13 | J23: 754.27 | K23: 740 | L23: 728.05 | M23: 43.02323
A24: 14 | B24: ATGL | C24: 729.2 | D24: 740.22 | E24: 713.98 | F24: 698.77 | G24: 672.53 | H24: 755.43 | I24: 781.67 | J24: 796.88 | K24: 766.45 | L24: 725 | M24: 26.30741
A25: 15 | B25: ADANITRANS | C25: 832.2 | D25: 840.78 | E25: 813.57 | F25: 794.93 | G25: 767.72 | H25: 859.42 | I25: 886.63 | J25: 905.27 | K25: 868 | L25: 822.15 | M25: 24.50856
A26: 16 | B26: AWL | C26: 447.65 | D26: 449.90 | E26: 442.15 | F26: 436.65 | G26: 428.90 | H26: 455.40 | I26: 463.15 | J26: 468.65 | K26: 457.65 | L26: 444.4 | M26: 14.81961
A27: 17 | B27: ABCAPITAL | C27: 165.65 | D27: 166.02 | E27: 164.03 | F27: 162.42 | G27: 160.43 | H27: 167.63 | I27: 169.62 | J27: 171.23 | K27: 168 | L27: 164.4 | M27: 18.91433
A28: 18 | B28: ABFRL | C28: 197.1 | D28: 197.18 | E28: 195.97 | F28: 194.83 | G28: 193.62 | H28: 198.32 | I28: 199.53 | J28: 200.67 | K28: 198.4 | L28: 196.05 | M28: 15.39443
A29: 19 | B29: ABSLAMC | C29: 349.95 | D29: 350.48 | E29: 347.47 | F29: 344.98 | G29: 341.97 | H29: 352.97 | I29: 355.98 | J29: 358.47 | K29: 353.5 | L29: 348 | M29: 0.28385
A30: 20 | B30: AEGISCHEM | C30: 361.35 | D30: 357.50 | E30: 346.20 | F30: 331.05 | G30: 319.75 | H30: 372.65 | I30: 383.95 | J30: 399.10 | K30: 368.8 | L30: 342.35 | M30: 6.81271
A31: 21 | B31: AETHER | C31: 899.45 | D31: 901.60 | E31: 892.85 | F31: 886.25 | G31: 877.50 | H31: 908.20 | I31: 916.95 | J31: 923.55 | K31: 910.35 | L31: 895 | M31: 0.20526
A32: 22 | B32: AFFLE | C32: 942.3 | D32: 937.37 | E32: 929.93 | F32: 917.57 | G32: 910.13 | H32: 949.73 | I32: 957.17 | J32: 969.53 | K32: 944.8 | L32: 925 | M32: 2.68973
A33: 23 | B33: AJANTPHARM | C33: 1303.7 | D33: 1298.75 | E33: 1289.95 | F33: 1276.20 | G33: 1267.40 | H33: 1312.50 | I33: 1321.30 | J33: 1335.05 | K33: 1307.55 | L33: 1285 | M33: 0.43971
A34: 24 | B34: APLLTD | C34: 554.9 | D34: 553.20 | E34: 548.40 | F34: 541.90 | G34: 537.10 | H34: 559.70 | I34: 564.50 | J34: 571.00 | K34: 558 | L34: 546.7 | M34: 0.64942
A35: 25 | B35: ALKEM | C35: 3348.45 | D35: 3352.03 | E35: 3324.07 | F35: 3299.68 | G35: 3271.72 | H35: 3376.42 | I35: 3404.38 | J35: 3428.77 | K35: 3380 | L35: 3327.65 | M35: 0.77549
A36: 26 | B36: ALKYLAMINE | C36: 2468.85 | D36: 2476.05 | E36: 2456.95 | F36: 2445.05 | G36: 2425.95 | H36: 2487.95 | I36: 2507.05 | J36: 2518.95 | K36: 2495.15 | L36: 2464.15 | M36: 0.18143
A37: 27 | B37: ALOKINDS | C37: 12.8 | D37: 12.82 | E37: 12.63 | F37: 12.47 | G37: 12.28 | H37: 12.98 | I37: 13.17 | J37: 13.33 | K37: 13 | L37: 12.65 | M37: 42.84124
A38: 28 | B38: AMARAJABAT | C38: 604.35 | D38: 606.58 | E38: 600.17 | F38: 595.98 | G38: 589.57 | H38: 610.77 | I38: 617.18 | J38: 621.37 | K38: 613 | L38: 602.4 | M38: 3.05772
A39: 29 | B39: AMBER | C39: 2118.7 | D39: 2129.42 | E39: 2099.28 | F39: 2079.87 | G39: 2049.73 | H39: 2148.83 | I39: 2178.97 | J39: 2198.38 | K39: 2159.55 | L39: 2110 | M39: 0.66138
A40: 30 | B40: AMBUJACEM | C40: 427 | D40: 426.88 | E40: 422.87 | F40: 418.73 | G40: 414.72 | H40: 431.02 | I40: 435.03 | J40: 439.17 | K40: 430.9 | L40: 422.75 | M40: 77.99828
A41: 31 | B41: ANGELONE | C41: 1313.85 | D41: 1306.80 | E41: 1293.60 | F41: 1273.35 | G41: 1260.15 | H41: 1327.05 | I41: 1340.25 | J41: 1360.50 | K41: 1320 | L41: 1286.55 | M41: 5.71001
A42: 32 | B42: ANURAS | C42: 1154.8 | D42: 1170.05 | E42: 1117.10 | F42: 1079.40 | G42: 1026.45 | H42: 1207.75 | I42: 1260.70 | J42: 1298.40 | K42: 1223 | L42: 1132.35 | M42: 1.50879
A43: 33 | B43: APOLLOHOSP | C43: 4640.45 | D43: 4628.70 | E43: 4592.40 | F43: 4544.35 | G43: 4508.05 | H43: 4676.75 | I43: 4713.05 | J43: 4761.10 | K43: 4665 | L43: 4580.65 | M43: 3.32364
A44: 34 | B44: APOLLOTYRE | C44: 392.3 | D44: 392.78 | E44: 389.62 | F44: 386.93 | G44: 383.77 | H44: 395.47 | I44: 398.63 | J44: 401.32 | K44: 395.95 | L44: 390.1 | M44: 16.54415
A45: 35 | B45: APTUS | C45: 262.65 | D45: 261.50 | E45: 257.70 | F45: 252.75 | G45: 248.95 | H45: 266.45 | I45: 270.25 | J45: 275.20 | K45: 265.3 | L45: 256.55 | M45: 2.86552
A46: 36 | B46: ASAHIINDIA | C46: 457.05 | D46: 458.80 | E46: 453.95 | F46: 450.85 | G46: 446.00 | H46: 461.90 | I46: 466.75 | J46: 469.85 | K46: 463.65 | L46: 455.7 | M46: 0.34761
A47: 37 | B47: ASHOKLEY | C47: 146.1 | D47: 146.15 | E47: 145.15 | F47: 144.20 | G47: 143.20 | H47: 147.10 | I47: 148.10 | J47: 149.05 | K47: 147.15 | L47: 145.2 | M47: 70.22143
A48: 38 | B48: ASIANPAINT | C48: 3137.4 | D48: 3136.15 | E48: 3117.30 | F48: 3097.20 | G48: 3078.35 | H48: 3156.25 | I48: 3175.10 | J48: 3195.20 | K48: 3155 | L48: 3116.05 | M48: 5.35712
A49: 39 | B49: ASTERDM | C49: 261.15 | D49: 263.78 | E49: 255.17 | F49: 249.18 | G49: 240.57 | H49: 269.77 | I49: 278.38 | J49: 284.37 | K49: 272.4 | L49: 257.8 | M49: 5.8601
A50: 40 | B50: ASTRAZEN | C50: 3251.8 | D50: 3249.73 | E50: 3211.47 | F50: 3171.13 | G50: 3132.87 | H50: 3290.07 | I50: 3328.33 | J50: 3368.67 | K50: 3288 | L50: 3209.4 | M50: 0.0427
A51: 41 | B51: ASTRAL | C51: 1792.4 | D51: 1793.45 | E51: 1769.90 | F51: 1747.40 | G51: 1723.85 | H51: 1815.95 | I51: 1839.50 | J51: 1862.00 | K51: 1817 | L51: 1770.95 | M51: 4.99586
A52: 42 | B52: ATUL | C52: 6864.85 | D52: 6835.98 | E52: 6787.02 | F52: 6709.18 | G52: 6660.22 | H52: 6913.82 | I52: 6962.78 | J52: 7040.62 | K52: 6884.95 | L52: 6758.15 | M52: 0.18627
A53: 43 | B53: AUROPHARMA | C53: 611.3 | D53: 605.67 | E53: 590.28 | F53: 569.27 | G53: 553.88 | H53: 626.68 | I53: 642.07 | J53: 663.08 | K53: 621.05 | L53: 584.65 | M53: 42.09725
A54: 44 | B54: AVANTIFEED | C54: 384.65 | D54: 382.95 | E54: 379.05 | F54: 373.45 | G54: 369.55 | H54: 388.55 | I54: 392.45 | J54: 398.05 | K54: 386.85 | L54: 377.35 | M54: 1.97097
A55: 45 | B55: DMART | C55: 3503.3 | D55: 3510.18 | E55: 3475.37 | F55: 3447.43 | G55: 3412.62 | H55: 3538.12 | I55: 3572.93 | J55: 3600.87 | K55: 3545 | L55: 3482.25 | M55: 2.2884
A56: 46 | B56: AXISBANK | C56: 929.8 | D56: 931.85 | E56: 926.00 | F56: 922.20 | G56: 916.35 | H56: 935.65 | I56: 941.50 | J56: 945.30 | K56: 937.7 | L56: 928.05 | M56: 71.33871
A57: 47 | B57: BASF | C57: 2502.6 | D57: 2504.20 | E57: 2484.40 | F57: 2466.20 | G57: 2446.40 | H57: 2522.40 | I57: 2542.20 | J57: 2560.40 | K57: 2524 | L57: 2486 | M57: 0.12719
A58: 48 | B58: BEML | C58: 1423.95 | D58: 1426.45 | E58: 1413.90 | F58: 1403.85 | G58: 1391.30 | H58: 1436.50 | I58: 1449.05 | J58: 1459.10 | K58: 1439 | L58: 1416.4 | M58: 0.73459
A59: 49 | B59: BSE | C59: 542.1 | D59: 542.28 | E59: 537.62 | F59: 533.13 | G59: 528.47 | H59: 546.77 | I59: 551.43 | J59: 555.92 | K59: 546.95 | L59: 537.8 | M59: 5.23139
A60: 50 | B60: BAJAJ-AUTO | C60: 4618.5 | D60: 4629.92 | E60: 4596.68 | F60: 4574.87 | G60: 4541.63 | H60: 4651.73 | I60: 4684.97 | J60: 4706.78 | K60: 4663.15 | L60: 4608.1 | M60: 3.01343
A61: 51 | B61: BAJAJELEC | C61: 1154.3 | D61: 1162.32 | E61: 1142.03 | F61: 1129.77 | G61: 1109.48 | H61: 1174.58 | I61: 1194.87 | J61: 1207.13 | K61: 1182.6 | L61: 1150.05 | M61: 0.61169
A62: 52 | B62: BAJFINANCE | C62: 6932.05 | D62: 6935.25 | E62: 6898.60 | F62: 6865.15 | G62: 6828.50 | H62: 6968.70 | I62: 7005.35 | J62: 7038.80 | K62: 6971.9 | L62: 6901.8 | M62: 6.40728
A63: 53 | B63: BAJAJFINSV | C63: 1449.55 | D63: 1454.18 | E63: 1439.87 | F63: 1430.18 | G63: 1415.87 | H63: 1463.87 | I63: 1478.18 | J63: 1487.87 | K63: 1468.5 | L63: 1444.5 | M63: 16.5968
A64: 54 | B64: BAJAJHLDNG | C64: 7214.05 | D64: 7146.02 | E64: 7067.03 | F64: 6920.02 | G64: 6841.03 | H64: 7293.03 | I64: 7372.02 | J64: 7519.03 | K64: 7225 | L64: 6999 | M64: 0.62748
A65: 55 | B65: BALAMINES | C65: 2142.7 | D65: 2152.90 | E65: 2122.80 | F65: 2102.90 | G65: 2072.80 | H65: 2172.80 | I65: 2202.90 | J65: 2222.80 | K65: 2183 | L65: 2133 | M65: 0.5036
A66: 56 | B66: BALKRISIND | C66: 2280.5 | D66: 2298.75 | E66: 2230.05 | F66: 2179.60 | G66: 2110.90 | H66: 2349.20 | I66: 2417.90 | J66: 2468.35 | K66: 2367.45 | L66: 2248.3 | M66: 15.99906
A67: 57 | B67: BALRAMCHIN | C67: 393.55 | D67: 393.25 | E67: 389.30 | F67: 385.05 | G67: 381.10 | H67: 397.50 | I67: 401.45 | J67: 405.70 | K67: 397.2 | L67: 389 | M67: 9.16799
A68: 58 | B68: BANDHANBNK | C68: 264.15 | D68: 263.58 | E68: 261.27 | F68: 258.38 | G68: 256.07 | H68: 266.47 | I68: 268.78 | J68: 271.67 | K68: 265.9 | L68: 260.7 | M68: 65.33649
A69: 59 | B69: BANKBARODA | C69: 183.75 | D69: 184.05 | E69: 182.75 | F69: 181.75 | G69: 180.45 | H69: 185.05 | I69: 186.35 | J69: 187.35 | K69: 185.35 | L69: 183.05 | M69: 112.39265
A70: 60 | B70: BANKINDIA | C70: 75.15 | D70: 75.22 | E70: 74.63 | F70: 74.12 | G70: 73.53 | H70: 75.73 | I70: 76.32 | J70: 76.83 | K70: 75.8 | L70: 74.7 | M70: 51.70603
A71: 61 | B71: MAHABANK | C71: 29.15 | D71: 29.28 | E71: 28.97 | F71: 28.78 | G71: 28.47 | H71: 29.47 | I71: 29.78 | J71: 29.97 | K71: 29.6 | L71: 29.1 | M71: 85.43455
A72: 62 | B72: BATAINDIA | C72: 1576.6 | D72: 1578.43 | E72: 1567.47 | F72: 1558.33 | G72: 1547.37 | H72: 1587.57 | I72: 1598.53 | J72: 1607.67 | K72: 1589.4 | L72: 1569.3 | M72: 0.91619
A73: 63 | B73: BAYERCROP | C73: 4118.65 | D73: 4128.18 | E73: 4090.47 | F73: 4062.28 | G73: 4024.57 | H73: 4156.37 | I73: 4194.08 | J73: 4222.27 | K73: 4165.9 | L73: 4100 | M73: 0.09446
A74: 64 | B74: BERGEPAINT | C74: 640.95 | D74: 643.93 | E74: 635.27 | F74: 629.58 | G74: 620.92 | H74: 649.62 | I74: 658.28 | J74: 663.97 | K74: 652.6 | L74: 638.25 | M74: 3.6275
A75: 65 | B75: BDL | C75: 1050.65 | D75: 1044.90 | E75: 1035.30 | F75: 1019.95 | G75: 1010.35 | H75: 1060.25 | I75: 1069.85 | J75: 1085.20 | K75: 1054.5 | L75: 1029.55 | M75: 4.12979
A76: 66 | B76: BEL | C76: 111.45 | D76: 111.15 | E76: 110.50 | F76: 109.55 | G76: 108.90 | H76: 112.10 | I76: 112.75 | J76: 113.70 | K76: 111.8 | L76: 110.2 | M76: 103.30215
A77: 67 | B77: BHARATFORG | C77: 787.2 | D77: 780.83 | E77: 772.67 | F77: 758.13 | G77: 749.97 | H77: 795.37 | I77: 803.53 | J77: 818.07 | K77: 789 | L77: 766.3 | M77: 13.59781
A78: 68 | B78: BHEL | C78: 83 | D78: 81.28 | E78: 78.97 | F78: 74.93 | G78: 72.62 | H78: 85.32 | I78: 87.63 | J78: 91.67 | K78: 83.6 | L78: 77.25 | M78: 699.36887
A79: 69 | B79: BPCL | C79: 361.7 | D79: 363.33 | E79: 359.37 | F79: 357.03 | G79: 353.07 | H79: 365.67 | I79: 369.63 | J79: 371.97 | K79: 367.3 | L79: 361 | M79: 11.70519
A80: 70 | B80: BHARATRAS | C80: 10269.85 | D80: 10339.63 | E80: 10080.27 | F80: 9890.68 | G80: 9631.32 | H80: 10529.22 | I80: 10788.58 | J80: 10978.17 | K80: 10599 | L80: 10150.05 | M80: 0.02531
A81: 71 | B81: BHARTIARTL | C81: 821.25 | D81: 822.88 | E81: 816.37 | F81: 811.48 | G81: 804.97 | H81: 827.77 | I81: 834.28 | J81: 839.17 | K81: 829.4 | L81: 818 | M81: 36.84829
A82: 72 | B82: BIOCON | C82: 242.05 | D82: 241.65 | E82: 238.90 | F82: 235.75 | G82: 233.00 | H82: 244.80 | I82: 247.55 | J82: 250.70 | K82: 244.4 | L82: 238.5 | M82: 24.92152
A83: 73 | B83: BIRLACORPN | C83: 1020.25 | D83: 1022.75 | E83: 1012.50 | F83: 1004.75 | G83: 994.50 | H83: 1030.50 | I83: 1040.75 | J83: 1048.50 | K83: 1033 | L83: 1015 | M83: 1.79574
A84: 74 | B84: BSOFT | C84: 339.55 | D84: 339.82 | E84: 336.23 | F84: 332.92 | G84: 329.33 | H84: 343.13 | I84: 346.72 | J84: 350.03 | K84: 343.4 | L84: 336.5 | M84: 33.89349
A85: 75 | B85: BLUEDART | C85: 6091.15 | D85: 6090.82 | E85: 6051.58 | F85: 6012.02 | G85: 5972.78 | H85: 6130.38 | I85: 6169.62 | J85: 6209.18 | K85: 6130.05 | L85: 6051.25 | M85: 0.10081
A86: 76 | B86: BLUESTARCO | C86: 1471.25 | D86: 1466.02 | E86: 1454.23 | F86: 1437.22 | G86: 1425.43 | H86: 1483.03 | I86: 1494.82 | J86: 1511.83 | K86: 1477.8 | L86: 1449 | M86: 1.23733
A87: 77 | B87: BBTC | C87: 938.65 | D87: 940.20 | E87: 933.50 | F87: 928.35 | G87: 921.65 | H87: 945.35 | I87: 952.05 | J87: 957.20 | K87: 946.9 | L87: 935.05 | M87: 0.23391
A88: 78 | B88: BORORENEW | C88: 518.35 | D88: 520.22 | E88: 510.43 | F88: 502.52 | G88: 492.73 | H88: 528.13 | I88: 537.92 | J88: 545.83 | K88: 530 | L88: 512.3 | M88: 5.4421
A89: 79 | B89: BOSCHLTD | C89: 18296 | D89: 18513.90 | E89: 18027.80 | F89: 17759.60 | G89: 17273.50 | H89: 18782.10 | I89: 19268.20 | J89: 19536.40 | K89: 19000 | L89: 18245.7 | M89: 0.62648
A90: 80 | B90: BRIGADE | C90: 546.65 | D90: 546.40 | E90: 541.80 | F90: 536.95 | G90: 532.35 | H90: 551.25 | I90: 555.85 | J90: 560.70 | K90: 551 | L90: 541.55 | M90: 3.17975
A91: 81 | B91: BCG | C91: 17 | D91: 16.83 | E91: 16.67 | F91: 16.33 | G91: 16.17 | H91: 17.17 | I91: 17.33 | J91: 17.67 | K91: 17 | L91: 16.5 | M91: 133.38208
A92: 82 | B92: BRITANNIA | C92: 4575.25 | D92: 4588.78 | E92: 4552.47 | F92: 4529.68 | G92: 4493.37 | H92: 4611.57 | I92: 4647.88 | J92: 4670.67 | K92: 4625.1 | L92: 4566 | M92: 1.94968
A93: 83 | B93: MAPMYINDIA | C93: 1090.55 | D93: 1089.08 | E93: 1078.47 | F93: 1066.38 | G93: 1055.77 | H93: 1101.17 | I93: 1111.78 | J93: 1123.87 | K93: 1099.7 | L93: 1077 | M93: 0.82759
A94: 84 | B94: CCL | C94: 622.2 | D94: 621.02 | E94: 617.53 | F94: 612.87 | G94: 609.38 | H94: 625.68 | I94: 629.17 | J94: 633.83 | K94: 624.5 | L94: 616.35 | M94: 1.43011
A95: 85 | B95: CESC | C95: 69.9 | D95: 70.07 | E95: 69.33 | F95: 68.77 | G95: 68.03 | H95: 70.63 | I95: 71.37 | J95: 71.93 | K95: 70.8 | L95: 69.5 | M95: 20.15573
A96: 86 | B96: CGPOWER | C96: 383.75 | D96: 385.68 | E96: 376.07 | F96: 368.38 | G96: 358.77 | H96: 393.37 | I96: 402.98 | J96: 410.67 | K96: 395.3 | L96: 378 | M96: 29.39627
A97: 87 | B97: CRISIL | C97: 3718.55 | D97: 3725.52 | E97: 3683.03 | F97: 3647.52 | G97: 3605.03 | H97: 3761.03 | I97: 3803.52 | J97: 3839.03 | K97: 3768 | L97: 3690 | M97: 0.23741
A98: 88 | B98: CSBBANK | C98: 281.95 | D98: 284.57 | E98: 278.18 | F98: 274.42 | G98: 268.03 | H98: 288.33 | I98: 294.72 | J98: 298.48 | K98: 290.95 | L98: 280.8 | M98: 2.43023
A99: 89 | B99: CAMPUS | C99: 358.8 | D99: 360.35 | E99: 355.95 | F99: 353.10 | G99: 348.70 | H99: 363.20 | I99: 367.60 | J99: 370.45 | K99: 364.75 | L99: 357.5 | M99: 2.44061
A100: 90 | B100: CANFINHOME | C100: 690.15 | D100: 687.32 | E100: 680.28 | F100: 670.42 | G100: 663.38 | H100: 697.18 | I100: 704.22 | J100: 714.08 | K100: 694.35 | L100: 677.45 | M100: 4.8311
A101: 91 | B101: CANBK | C101: 307.1 | D101: 307.82 | E101: 305.13 | F101: 303.17 | G101: 300.48 | H101: 309.78 | I101: 312.47 | J101: 314.43 | K101: 310.5 | L101: 305.85 | M101: 55.0544
A102: 92 | B102: CAPLIPOINT | C102: 735.9 | D102: 745.82 | E102: 721.63 | F102: 707.37 | G102: 683.18 | H102: 760.08 | I102: 784.27 | J102: 798.53 | K102: 770 | L102: 731.55 | M102: 1.62699
A103: 93 | B103: CGCL | C103: 710 | D103: 710.30 | E103: 704.70 | F103: 699.40 | G103: 693.80 | H103: 715.60 | I103: 721.20 | J103: 726.50 | K103: 715.9 | L103: 705 | M103: 2.42358
A104: 94 | B104: CARBORUNIV | C104: 1156.75 | D104: 1154.50 | E104: 1137.00 | F104: 1117.25 | G104: 1099.75 | H104: 1174.25 | I104: 1191.75 | J104: 1211.50 | K104: 1172 | L104: 1134.75 | M104: 0.83005
A105: 95 | B105: CASTROLIND | C105: 114.15 | D105: 114.28 | E105: 113.87 | F105: 113.58 | G105: 113.17 | H105: 114.57 | I105: 114.98 | J105: 115.27 | K105: 114.7 | L105: 114 | M105: 3.86691
A106: 96 | B106: CEATLTD | C106: 2024.9 | D106: 2050.42 | E106: 1979.88 | F106: 1934.87 | G106: 1864.33 | H106: 2095.43 | I106: 2165.97 | J106: 2210.98 | K106: 2120.95 | L106: 2005.4 | M106: 3.59382
A107: 97 | B107: CENTRALBK | C107: 26.75 | D107: 26.77 | E107: 26.58 | F107: 26.42 | G107: 26.23 | H107: 26.93 | I107: 27.12 | J107: 27.28 | K107: 26.95 | L107: 26.6 | M107: 45.67531
A108: 98 | B108: CDSL | C108: 990.05 | D108: 990.67 | E108: 987.38 | F108: 984.72 | G108: 981.43 | H108: 993.33 | I108: 996.62 | J108: 999.28 | K108: 993.95 | L108: 988 | M108: 2.12078
A109: 99 | B109: CENTURYPLY | C109: 572.3 | D109: 574.87 | E109: 568.43 | F109: 564.57 | G109: 558.13 | H109: 578.73 | I109: 585.17 | J109: 589.03 | K109: 581.3 | L109: 571 | M109: 0.76832
A110: 100 | B110: CENTURYTEX | C110: 795.6 | D110: 793.98 | E110: 785.97 | F110: 776.33 | G110: 768.32 | H110: 803.62 | I110: 811.63 | J110: 821.27 | K110: 802 | L110: 784.35 | M110: 1.33553
A111: 101 | B111: CERA | C111: 7577.9 | D111: 7585.32 | E111: 7501.18 | F111: 7424.47 | G111: 7340.33 | H111: 7662.03 | I111: 7746.17 | J111: 7822.88 | K111: 7669.45 | L111: 7508.6 | M111: 0.13409
A112: 102 | B112: CHALET | C112: 423.9 | D112: 426.47 | E112: 419.28 | F112: 414.67 | G112: 407.48 | H112: 431.08 | I112: 438.27 | J112: 442.88 | K112: 433.65 | L112: 421.85 | M112: 1.22883
A113: 103 | B113: CHAMBLFERT | C113: 285.8 | D113: 285.80 | E113: 278.15 | F113: 270.50 | G113: 262.85 | H113: 293.45 | I113: 301.10 | J113: 308.75 | K113: 293.45 | L113: 278.15 | M113: 40.7474
A114: 104 | B114: CHEMPLASTS | C114: 439.05 | D114: 441.35 | E114: 435.40 | F114: 431.75 | G114: 425.80 | H114: 445.00 | I114: 450.95 | J114: 454.60 | K114: 447.3 | L114: 437.7 | M114: 0.91258
A115: 105 | B115: CHOLAHLDNG | C115: 839.9 | D115: 841.33 | E115: 833.67 | F115: 827.43 | G115: 819.77 | H115: 847.57 | I115: 855.23 | J115: 861.47 | K115: 849 | L115: 835.1 | M115: 0.41891
A116: 106 | B116: CHOLAFIN | C116: 1055.4 | D116: 1056.07 | E116: 1050.33 | F116: 1045.27 | G116: 1039.53 | H116: 1061.13 | I116: 1066.87 | J116: 1071.93 | K116: 1061.8 | L116: 1051 | M116: 7.58768
A117: 107 | B117: CIPLA | C117: 956.25 | D117: 953.52 | E117: 947.83 | F117: 939.42 | G117: 933.73 | H117: 961.93 | I117: 967.62 | J117: 976.03 | K117: 959.2 | L117: 945.1 | M117: 17.44868
A118: 108 | B118: CUB | C118: 125.65 | D118: 128.48 | E118: 122.47 | F118: 119.28 | G118: 113.27 | H118: 131.67 | I118: 137.68 | J118: 140.87 | K118: 134.5 | L118: 125.3 | M118: 239.48387
A119: 109 | B119: CLEAN | C119: 1428.7 | D119: 1446.22 | E119: 1358.48 | F119: 1288.27 | G119: 1200.53 | H119: 1516.43 | I119: 1604.17 | J119: 1674.38 | K119: 1533.95 | L119: 1376 | M119: 57.22444
A120: 110 | B120: COALINDIA | C120: 246.1 | D120: 244.85 | E120: 242.05 | F120: 238.00 | G120: 235.20 | H120: 248.90 | I120: 251.70 | J120: 255.75 | K120: 247.65 | L120: 240.8 | M120: 80.69985
A121: 111 | B121: COCHINSHIP | C121: 486.95 | D121: 485.05 | E121: 481.10 | F121: 475.25 | G121: 471.30 | H121: 490.90 | I121: 494.85 | J121: 500.70 | K121: 489 | L121: 479.2 | M121: 3.91998
A122: 112 | B122: COFORGE | C122: 4420.15 | D122: 4445.05 | E122: 4380.10 | F122: 4340.05 | G122: 4275.10 | H122: 4485.10 | I122: 4550.05 | J122: 4590.10 | K122: 4510 | L122: 4405 | M122: 2.1472
A123: 113 | B123: COLPAL | C123: 1605.9 | D123: 1606.63 | E123: 1599.77 | F123: 1593.63 | G123: 1586.77 | H123: 1612.77 | I123: 1619.63 | J123: 1625.77 | K123: 1613.5 | L123: 1600.5 | M123: 1.82418
A124: 114 | B124: CAMS | C124: 2138.15 | D124: 2140.62 | E124: 2131.83 | F124: 2125.52 | G124: 2116.73 | H124: 2146.93 | I124: 2155.72 | J124: 2162.03 | K124: 2149.4 | L124: 2134.3 | M124: 0.29937
A125: 115 | B125: CONCOR | C125: 673.7 | D125: 673.07 | E125: 667.63 | F125: 661.57 | G125: 656.13 | H125: 679.13 | I125: 684.57 | J125: 690.63 | K125: 678.5 | L125: 667 | M125: 8.45659
A126: 116 | B126: COROMANDEL | C126: 949.15 | D126: 948.10 | E126: 933.75 | F126: 918.35 | G126: 904.00 | H126: 963.50 | I126: 977.85 | J126: 993.25 | K126: 962.45 | L126: 932.7 | M126: 3.29241
A127: 117 | B127: CREDITACC | C127: 1213.6 | D127: 1214.37 | E127: 1201.73 | F127: 1189.87 | G127: 1177.23 | H127: 1226.23 | I127: 1238.87 | J127: 1250.73 | K127: 1227 | L127: 1202.5 | M127: 0.49838
A128: 118 | B128: CROMPTON | C128: 275.45 | D128: 274.18 | E128: 272.42 | F128: 269.38 | G128: 267.62 | H128: 277.22 | I128: 278.98 | J128: 282.02 | K128: 275.95 | L128: 271.15 | M128: 26.67398
A129: 119 | B129: CUMMINSIND | C129: 1744.05 | D129: 1743.28 | E129: 1730.77 | F129: 1717.48 | G129: 1704.97 | H129: 1756.57 | I129: 1769.08 | J129: 1782.37 | K129: 1755.8 | L129: 1730 | M129: 5.82128
A130: 120 | B130: CYIENT | C130: 1292.85 | D130: 1302.65 | E130: 1276.30 | F130: 1259.75 | G130: 1233.40 | H130: 1319.20 | I130: 1345.55 | J130: 1362.10 | K130: 1329 | L130: 1286.1 | M130: 2.47068
A131: 121 | B131: DCMSHRIRAM | C131: 857.25 | D131: 857.25 | E131: 851.00 | F131: 844.75 | G131: 838.50 | H131: 863.50 | I131: 869.75 | J131: 876.00 | K131: 863.5 | L131: 851 | M131: 0.26179
A132: 122 | B132: DLF | C132: 482.65 | D132: 481.03 | E132: 475.67 | F132: 468.68 | G132: 463.32 | H132: 488.02 | I132: 493.38 | J132: 500.37 | K132: 486.4 | L132: 474.05 | M132: 46.65809
A133: 123 | B133: DABUR | C133: 548.35 | D133: 546.92 | E133: 543.83 | F133: 539.32 | G133: 536.23 | H133: 551.43 | I133: 554.52 | J133: 559.03 | K133: 550 | L133: 542.4 | M133: 22.1558
A134: 124 | B134: DALBHARAT | C134: 2093.05 | D134: 2089.17 | E134: 2070.48 | F134: 2047.92 | G134: 2029.23 | H134: 2111.73 | I134: 2130.42 | J134: 2152.98 | K134: 2107.85 | L134: 2066.6 | M134: 2.05286
A135: 125 | B135: DEEPAKFERT | C135: 544.4 | D135: 547.53 | E135: 540.57 | F135: 536.73 | G135: 529.77 | H135: 551.37 | I135: 558.33 | J135: 562.17 | K135: 554.5 | L135: 543.7 | M135: 2.73501
A136: 126 | B136: DEEPAKNTR | C136: 2082.5 | D136: 2081.42 | E136: 2066.08 | F136: 2049.67 | G136: 2034.33 | H136: 2097.83 | I136: 2113.17 | J136: 2129.58 | K136: 2096.75 | L136: 2065 | M136: 4.74055
A137: 127 | B137: DELHIVERY | C137: 369.95 | D137: 370.42 | E137: 366.98 | F137: 364.02 | G137: 360.58 | H137: 373.38 | I137: 376.82 | J137: 379.78 | K137: 373.85 | L137: 367.45 | M137: 2.79537
A138: 128 | B138: DELTACORP | C138: 240.5 | D138: 238.82 | E138: 235.63 | F138: 230.77 | G138: 227.58 | H138: 243.68 | I138: 246.87 | J138: 251.73 | K138: 242 | L138: 233.95 | M138: 44.34804
A139: 129 | B139: DEVYANI | C139: 185.8 | D139: 186.65 | E139: 182.40 | F139: 179.00 | G139: 174.75 | H139: 190.05 | I139: 194.30 | J139: 197.70 | K139: 190.9 | L139: 183.25 | M139: 47.47824
A140: 130 | B140: DHANI | C140: 34.1 | D140: 33.98 | E140: 32.67 | F140: 31.23 | G140: 29.92 | H140: 35.42 | I140: 36.73 | J140: 38.17 | K140: 35.3 | L140: 32.55 | M140: 56.39013
A141: 131 | B141: DBL | C141: 169.15 | D141: 168.88 | E141: 166.57 | F141: 163.98 | G141: 161.67 | H141: 171.47 | I141: 173.78 | J141: 176.37 | K141: 171.2 | L141: 166.3 | M141: 6.48215
A142: 132 | B142: DIVISLAB | C142: 3477.85 | D142: 3492.93 | E142: 3450.97 | F142: 3424.08 | G142: 3382.12 | H142: 3519.82 | I142: 3561.78 | J142: 3588.67 | K142: 3534.9 | L142: 3466.05 | M142: 3.60805
A143: 133 | B143: DIXON | C143: 3717 | D143: 3709.35 | E143: 3679.20 | F143: 3641.40 | G143: 3611.25 | H143: 3747.15 | I143: 3777.30 | J143: 3815.10 | K143: 3739.5 | L143: 3671.55 | M143: 5.56771
A144: 134 | B144: LALPATHLAB | C144: 2045.7 | D144: 2037.23 | E144: 2025.47 | F144: 2005.23 | G144: 1993.47 | H144: 2057.47 | I144: 2069.23 | J144: 2089.47 | K144: 2049 | L144: 2017 | M144: 0.86962
A145: 135 | B145: DRREDDY | C145: 4556.25 | D145: 4548.42 | E145: 4527.83 | F145: 4499.42 | G145: 4478.83 | H145: 4576.83 | I145: 4597.42 | J145: 4625.83 | K145: 4569 | L145: 4520 | M145: 1.85628
A146: 136 | B146: EIDPARRY | C146: 495.25 | D146: 496.32 | E146: 490.93 | F146: 486.62 | G146: 481.23 | H146: 500.63 | I146: 506.02 | J146: 510.33 | K146: 501.7 | L146: 492 | M146: 1.47251
A147: 137 | B147: EIHOTEL | C147: 205.3 | D147: 205.57 | E147: 203.28 | F147: 201.27 | G147: 198.98 | H147: 207.58 | I147: 209.87 | J147: 211.88 | K147: 207.85 | L147: 203.55 | M147: 4.95878
A148: 138 | B148: EPL | C148: 187.85 | D148: 187.68 | E148: 186.22 | F148: 184.58 | G148: 183.12 | H148: 189.32 | I148: 190.78 | J148: 192.42 | K148: 189.15 | L148: 186.05 | M148: 4.00745
A149: 139 | B149: EASEMYTRIP | C149: 45.95 | D149: 46.40 | E149: 45.10 | F149: 44.25 | G149: 42.95 | H149: 47.25 | I149: 48.55 | J149: 49.40 | K149: 47.7 | L149: 45.55 | M149: 143.43587
A150: 140 | B150: EDELWEISS | C150: 68.85 | D150: 68.43 | E150: 67.37 | F150: 65.88 | G150: 64.82 | H150: 69.92 | I150: 70.98 | J150: 72.47 | K150: 69.5 | L150: 66.95 | M150: 117.24943
A151: 141 | B151: EICHERMOT | C151: 3711.45 | D151: 3699.88 | E151: 3681.57 | F151: 3651.68 | G151: 3633.37 | H151: 3729.77 | I151: 3748.08 | J151: 3777.97 | K151: 3718.2 | L151: 3670 | M151: 5.16724
A152: 142 | B152: ELGIEQUIP | C152: 547.9 | D152: 550.32 | E152: 539.13 | F152: 530.37 | G152: 519.18 | H152: 559.08 | I152: 570.27 | J152: 579.03 | K152: 561.5 | L152: 541.55 | M152: 5.84267
A153: 143 | B153: EMAMILTD | C153: 398.8 | D153: 404.93 | E153: 390.27 | F153: 381.73 | G153: 367.07 | H153: 413.47 | I153: 428.13 | J153: 436.67 | K153: 419.6 | L153: 396.4 | M153: 9.43023
A154: 144 | B154: ENDURANCE | C154: 1411.6 | D154: 1417.42 | E154: 1398.18 | F154: 1384.77 | G154: 1365.53 | H154: 1430.83 | I154: 1450.07 | J154: 1463.48 | K154: 1436.65 | L154: 1404 | M154: 0.20384
A155: 145 | B155: ENGINERSIN | C155: 110.7 | D155: 109.72 | E155: 105.98 | F155: 101.27 | G155: 97.53 | H155: 114.43 | I155: 118.17 | J155: 122.88 | K155: 113.45 | L155: 105 | M155: 310.90947
A156: 146 | B156: EQUITASBNK | C156: 85.4 | D156: 85.17 | E156: 83.88 | F156: 82.37 | G156: 81.08 | H156: 86.68 | I156: 87.97 | J156: 89.48 | K156: 86.45 | L156: 83.65 | M156: 78.05517
A157: 147 | B157: ESCORTS | C157: 2091.85 | D157: 2089.55 | E157: 2079.10 | F157: 2066.35 | G157: 2055.90 | H157: 2102.30 | I157: 2112.75 | J157: 2125.50 | K157: 2100 | L157: 2076.8 | M157: 1.25883
A158: 148 | B158: EXIDEIND | C158: 208.45 | D158: 208.73 | E158: 207.27 | F158: 206.08 | G158: 204.62 | H158: 209.92 | I158: 211.38 | J158: 212.57 | K158: 210.2 | L158: 207.55 | M158: 16.49502
A159: 149 | B159: FDC | C159: 295 | D159: 293.37 | E159: 289.88 | F159: 284.77 | G159: 281.28 | H159: 298.48 | I159: 301.97 | J159: 307.08 | K159: 296.85 | L159: 288.25 | M159: 2.76543
A160: 150 | B160: NYKAA | C160: 126.2 | D160: 126.33 | E160: 125.27 | F160: 124.33 | G160: 123.27 | H160: 127.27 | I160: 128.33 | J160: 129.27 | K160: 127.4 | L160: 125.4 | M160: 52.31023
A161: 151 | B161: FEDERALBNK | C161: 125.5 | D161: 125.70 | E161: 125.00 | F161: 124.50 | G161: 123.80 | H161: 126.20 | I161: 126.90 | J161: 127.40 | K161: 126.4 | L161: 125.2 | M161: 82.67792
A162: 152 | B162: FACT | C162: 303.25 | D162: 303.08 | E162: 295.17 | F162: 287.08 | G162: 279.17 | H162: 311.17 | I162: 319.08 | J162: 327.17 | K162: 311 | L162: 295 | M162: 5.26043
A163: 153 | B163: FINEORG | C163: 4470.4 | D163: 4478.15 | E163: 4448.30 | F163: 4426.20 | G163: 4396.35 | H163: 4500.25 | I163: 4530.10 | J163: 4552.20 | K163: 4508 | L163: 4456.05 | M163: 0.29695
A164: 154 | B164: FINCABLES | C164: 795.7 | D164: 809.42 | E164: 778.83 | F164: 761.97 | G164: 731.38 | H164: 826.28 | I164: 856.87 | J164: 873.73 | K164: 840 | L164: 792.55 | M164: 6.878
A165: 155 | B165: FINPIPE | C165: 178.85 | D165: 179.18 | E165: 176.67 | F165: 174.48 | G165: 171.97 | H165: 181.37 | I165: 183.88 | J165: 186.07 | K165: 181.7 | L165: 177 | M165: 5.76752
A166: 156 | B166: FSL | C166: 128.5 | D166: 129.33 | E166: 127.17 | F166: 125.83 | G166: 123.67 | H166: 130.67 | I166: 132.83 | J166: 134.17 | K166: 131.5 | L166: 128 | M166: 11.75227
A167: 157 | B167: FORTIS | C167: 280.25 | D167: 282.83 | E167: 276.47 | F167: 272.68 | G167: 266.32 | H167: 286.62 | I167: 292.98 | J167: 296.77 | K167: 289.2 | L167: 279.05 | M167: 12.20481
A168: 158 | B168: GRINFRA | C168: 1122.3 | D168: 1127.07 | E168: 1107.53 | F168: 1092.77 | G168: 1073.23 | H168: 1141.83 | I168: 1161.37 | J168: 1176.13 | K168: 1146.6 | L168: 1112.3 | M168: 0.15889
A169: 159 | B169: GAIL | C169: 106.25 | D169: 106.25 | E169: 105.60 | F169: 104.95 | G169: 104.30 | H169: 106.90 | I169: 107.55 | J169: 108.20 | K169: 106.9 | L169: 105.6 | M169: 80.58796
A170: 160 | B170: GMMPFAUDLR | C170: 1435.4 | D170: 1443.82 | E170: 1419.63 | F170: 1403.87 | G170: 1379.68 | H170: 1459.58 | I170: 1483.77 | J170: 1499.53 | K170: 1468 | L170: 1428.05 | M170: 1.23436
A171: 161 | B171: GMRINFRA | C171: 40.55 | D171: 41.62 | E171: 38.93 | F171: 37.32 | G171: 34.63 | H171: 43.23 | I171: 45.92 | J171: 47.53 | K171: 44.3 | L171: 40 | M171: 451.53505
A172: 162 | B172: GALAXYSURF | C172: 2544.75 | D172: 2553.43 | E172: 2521.87 | F172: 2498.98 | G172: 2467.42 | H172: 2576.32 | I172: 2607.88 | J172: 2630.77 | K172: 2585 | L172: 2530.55 | M172: 0.08875
A173: 163 | B173: GARFIBRES | C173: 3028.8 | D173: 3022.78 | E173: 3000.07 | F173: 2971.33 | G173: 2948.62 | H173: 3051.52 | I173: 3074.23 | J173: 3102.97 | K173: 3045.5 | L173: 2994.05 | M173: 0.1186
A174: 164 | B174: GICRE | C174: 178 | D174: 179.45 | E174: 174.95 | F174: 171.90 | G174: 167.40 | H174: 182.50 | I174: 187.00 | J174: 190.05 | K174: 183.95 | L174: 176.4 | M174: 8.73306
A175: 165 | B175: GLAND | C175: 911.6 | D175: 920.53 | E175: 901.07 | F175: 890.53 | G175: 871.07 | H175: 931.07 | I175: 950.53 | J175: 961.07 | K175: 940 | L175: 910 | M175: 5.0307
A176: 166 | B176: GLAXO | C176: 1304.15 | D176: 1303.65 | E176: 1297.70 | F176: 1291.25 | G176: 1285.30 | H176: 1310.10 | I176: 1316.05 | J176: 1322.50 | K176: 1309.6 | L176: 1297.2 | M176: 1.21766
A177: 167 | B177: GLENMARK | C177: 594.5 | D177: 593.95 | E177: 589.90 | F177: 585.30 | G177: 581.25 | H177: 598.55 | I177: 602.60 | J177: 607.20 | K177: 598 | L177: 589.35 | M177: 8.48123
A178: 168 | B178: GOCOLORS | C178: 1100.85 | D178: 1112.95 | E178: 1077.90 | F178: 1054.95 | G178: 1019.90 | H178: 1135.90 | I178: 1170.95 | J178: 1193.90 | K178: 1148 | L178: 1090 | M178: 0.59049
A179: 169 | B179: GODFRYPHLP | C179: 1768.1 | D179: 1769.48 | E179: 1748.97 | F179: 1729.83 | G179: 1709.32 | H179: 1788.62 | I179: 1809.13 | J179: 1828.27 | K179: 1790 | L179: 1750.35 | M179: 1.02756
A180: 170 | B180: GODREJAGRO | C180: 427.75 | D180: 428.73 | E180: 425.27 | F180: 422.78 | G180: 419.32 | H180: 431.22 | I180: 434.68 | J180: 437.17 | K180: 432.2 | L180: 426.25 | M180: 0.53464
A181: 171 | B181: GODREJCP | C181: 1047.35 | D181: 1050.02 | E181: 1041.08 | F181: 1034.82 | G181: 1025.88 | H181: 1056.28 | I181: 1065.22 | J181: 1071.48 | K181: 1058.95 | L181: 1043.75 | M181: 5.04045
A182: 172 | B182: GODREJIND | C182: 475.6 | D182: 481.68 | E182: 468.42 | F182: 461.23 | G182: 447.97 | H182: 488.87 | I182: 502.13 | J182: 509.32 | K182: 494.95 | L182: 474.5 | M182: 2.98724
A183: 173 | B183: GODREJPROP | C183: 1374.9 | D183: 1374.67 | E183: 1360.73 | F183: 1346.57 | G183: 1332.63 | H183: 1388.83 | I183: 1402.77 | J183: 1416.93 | K183: 1388.6 | L183: 1360.5 | M183: 4.34395
A184: 174 | B184: GRANULES | C184: 281.35 | D184: 280.18 | E184: 278.02 | F184: 274.68 | G184: 272.52 | H184: 283.52 | I184: 285.68 | J184: 289.02 | K184: 282.35 | L184: 276.85 | M184: 7.38499
A185: 175 | B185: GRAPHITE | C185: 325.75 | D185: 327.00 | E185: 323.90 | F185: 322.05 | G185: 318.95 | H185: 328.85 | I185: 331.95 | J185: 333.80 | K185: 330.1 | L185: 325.15 | M185: 2.18003
A186: 176 | B186: GRASIM | C186: 1713.3 | D186: 1701.58 | E186: 1687.82 | F186: 1662.33 | G186: 1648.57 | H186: 1727.07 | I186: 1740.83 | J186: 1766.32 | K186: 1715.35 | L186: 1676.1 | M186: 6.6789
A187: 177 | B187: GESHIP | C187: 685 | D187: 679.58 | E187: 672.37 | F187: 659.73 | G187: 652.52 | H187: 692.22 | I187: 699.43 | J187: 712.07 | K187: 686.8 | L187: 666.95 | M187: 1.89993
A188: 178 | B188: GREENPANEL | C188: 317.95 | D188: 320.52 | E188: 314.03 | F188: 310.12 | G188: 303.63 | H188: 324.43 | I188: 330.92 | J188: 334.83 | K188: 327 | L188: 316.6 | M188: 2.72324
A189: 179 | B189: GRINDWELL | C189: 2113.2 | D189: 2109.08 | E189: 2078.37 | F189: 2043.53 | G189: 2012.82 | H189: 2143.92 | I189: 2174.63 | J189: 2209.47 | K189: 2139.8 | L189: 2074.25 | M189: 0.5651
A190: 180 | B190: GUJALKALI | C190: 648.75 | D190: 651.60 | E190: 644.35 | F190: 639.95 | G190: 632.70 | H190: 656.00 | I190: 663.25 | J190: 667.65 | K190: 658.85 | L190: 647.2 | M190: 0.72207
A191: 181 | B191: GAEL | C191: 242 | D191: 243.40 | E191: 239.25 | F191: 236.50 | G191: 232.35 | H191: 246.15 | I191: 250.30 | J191: 253.05 | K191: 247.55 | L191: 240.65 | M191: 1.8267
A192: 182 | B192: FLUOROCHEM | C192: 3345.75 | D192: 3334.60 | E192: 3314.20 | F192: 3282.65 | G192: 3262.25 | H192: 3366.15 | I192: 3386.55 | J192: 3418.10 | K192: 3355 | L192: 3303.05 | M192: 1.30112
A193: 183 | B193: GUJGASLTD | C193: 496.9 | D193: 498.47 | E193: 494.03 | F193: 491.17 | G193: 486.73 | H193: 501.33 | I193: 505.77 | J193: 508.63 | K193: 502.9 | L193: 495.6 | M193: 9.67925
A194: 184 | B194: GNFC | C194: 598 | D194: 598.92 | E194: 593.03 | F194: 588.07 | G194: 582.18 | H194: 603.88 | I194: 609.77 | J194: 614.73 | K194: 604.8 | L194: 593.95 | M194: 9.64296
A195: 185 | B195: GPPL | C195: 109 | D195: 108.72 | E195: 106.93 | F195: 104.87 | G195: 103.08 | H195: 110.78 | I195: 112.57 | J195: 114.63 | K195: 110.5 | L195: 106.65 | M195: 15.47501
A196: 186 | B196: GSFC | C196: 159.7 | D196: 158.75 | E196: 156.75 | F196: 153.80 | G196: 151.80 | H196: 161.70 | I196: 163.70 | J196: 166.65 | K196: 160.75 | L196: 155.8 | M196: 38.74534
A197: 187 | B197: GSPL | C197: 297.4 | D197: 296.05 | E197: 290.15 | F197: 282.90 | G197: 277.00 | H197: 303.30 | I197: 309.20 | J197: 316.45 | K197: 301.95 | L197: 288.8 | M197: 6.76573
A198: 188 | B198: HEG | C198: 1138.3 | D198: 1142.80 | E198: 1129.00 | F198: 1119.70 | G198: 1105.90 | H198: 1152.10 | I198: 1165.90 | J198: 1175.20 | K198: 1156.6 | L198: 1133.5 | M198: 0.91318
A199: 189 | B199: HCLTECH | C199: 1126.2 | D199: 1132.85 | E199: 1117.75 | F199: 1109.30 | G199: 1094.20 | H199: 1141.30 | I199: 1156.40 | J199: 1164.85 | K199: 1147.95 | L199: 1124.4 | M199: 12.88914
A200: 190 | B200: HDFCAMC | C200: 1873.75 | D200: 1871.93 | E200: 1851.87 | F200: 1829.98 | G200: 1809.92 | H200: 1893.82 | I200: 1913.88 | J200: 1935.77 | K200: 1892 | L200: 1850.05 | M200: 6.97864
A201: 191 | B201: HDFCBANK | C201: 1635.5 | D201: 1633.78 | E201: 1626.57 | F201: 1617.63 | G201: 1610.42 | H201: 1642.72 | I201: 1649.93 | J201: 1658.87 | K201: 1641 | L201: 1624.85 | M201: 109.08146
A202: 192 | B202: HDFCLIFE | C202: 579.05 | D202: 580.83 | E202: 573.22 | F202: 567.38 | G202: 559.77 | H202: 586.67 | I202: 594.28 | J202: 600.12 | K202: 588.45 | L202: 575 | M202: 27.94717
A203: 193 | B203: HFCL | C203: 63.35 | D203: 63.55 | E203: 63.00 | F203: 62.65 | G203: 62.10 | H203: 63.90 | I203: 64.45 | J203: 64.80 | K203: 64.1 | L203: 63.2 | M203: 21.11006
A204: 194 | B204: HLEGLAS | C204: 596.95 | D204: 604.53 | E204: 587.42 | F204: 577.88 | G204: 560.77 | H204: 614.07 | I204: 631.18 | J204: 640.72 | K204: 621.65 | L204: 595 | M204: 0.64875
A205: 195 | B205: HAPPSTMNDS | C205: 889.75 | D205: 895.23 | E205: 881.52 | F205: 873.28 | G205: 859.57 | H205: 903.47 | I205: 917.18 | J205: 925.42 | K205: 908.95 | L205: 887 | M205: 2.72943
A206: 196 | B206: HATSUN | C206: 881.8 | D206: 884.05 | E206: 875.20 | F206: 868.60 | G206: 859.75 | H206: 890.65 | I206: 899.50 | J206: 906.10 | K206: 892.9 | L206: 877.45 | M206: 0.10488
... 320 more rows

Sheet Bulk Deals
E6: Back To Main Page
A7: Subject : | B7: BULK DEAL | D7: =Main!B10 -> 2023-05-30
A9: Date | B9: Scrip code | C9: Scrip Name | D9: Client Name | E9: Buy / Sell | F9: Quantity Traded | G9: Trade Price / Wt.Avg.trade price | H9: Exchange
A10: 2023-05-29 | B10: 538351 | C10: AFEL | D10: MUKESH JAIN | E10: SELL | F10: 72,813 | G10: 10.86 | H10: BSE
A11: 2023-05-29 | B11: 541865 | C11: ASRL | D11: VADASSERY DEVASSY HENRY | E11: SELL | F11: 202,373 | G11: 36.64 | H11: BSE
A12: 2023-05-29 | B12: 538734 | C12: CEINSYSTECH | D12: ELDER VENTURE LLP | E12: SELL | F12: 122,836 | G12: 160.16 | H12: BSE
A13: 2023-05-29 | B13: 537326 | C13: CHEMTECH | D13: SAHASTRAA ADVISORS PRIVATE LIMITED | E13: BUY | F13: 70,000 | G13: 37.5 | H13: BSE
A14: 2023-05-29 | B14: 538868 | C14: CSL | D14: RAJU RAMGOPAL KHANDELWAL | E14: BUY | F14: 106,600 | G14: 8.68 | H14: BSE
A15: 2023-05-29 | B15: 540361 | C15: DANUBE | D15: SUNIL HUKUMAT RAJDEV | E15: BUY | F15: 264,250 | G15: 16.7 | H15: BSE
A16: 2023-05-29 | B16: 543651 | C16: DAPS | D16: SELVAMURTHY AKILANDESWARI | E16: BUY | F16: 28,000 | G16: 35.58 | H16: BSE
A17: 2023-05-29 | B17: 539770 | C17: DARJEELING | D17: ANKIT AJITBHAI PANCHAL | E17: SELL | F17: 18,197 | G17: 4.61 | H17: BSE
A18: 2023-05-29 | B18: 539770 | C18: DARJEELING | D18: MAHENDRA GIRDHARILAL WADHWANI | E18: BUY | F18: 22,833 | G18: 4.61 | H18: BSE
A19: 2023-05-29 | B19: 543475 | C19: EKENNIS | D19: MEHUL BHARATBHAI SHAH HUF | E19: SELL | F19: 15,200 | G19: 87.8 | H19: BSE
A20: 2023-05-29 | B20: 543475 | C20: EKENNIS | D20: VINOD MANJIBHAI CHAUHAN | E20: SELL | F20: 10,400 | G20: 87.05 | H20: BSE
A21: 2023-05-29 | B21: 543475 | C21: EKENNIS | D21: MULTIPLIER SHARE & STOCK ADVISORS PRIVATE LIMITED | E21: BUY | F21: 12,000 | G21: 87.05 | H21: BSE
A22: 2023-05-29 | B22: 543475 | C22: EKENNIS | D22: MULTIPLIER SHARE & STOCK ADVISORS PRIVATE LIMITED | E22: SELL | F22: 12,000 | G22: 87.07 | H22: BSE
A23: 2023-05-29 | B23: 543475 | C23: EKENNIS | D23: AMIT GILL | E23: BUY | F23: 10,400 | G23: 87.05 | H23: BSE
A24: 2023-05-29 | B24: 530663 | C24: GOYALASS | D24: MISTERKAPOORKESHRI | E24: BUY | F24: 82,095 | G24: 3.02 | H24: BSE
A25: 2023-05-29 | B25: 530663 | C25: GOYALASS | D25: MISTERKAPOORKESHRI | E25: SELL | F25: 412,297 | G25: 2.99 | H25: BSE
A26: 2023-05-29 | B26: 526967 | C26: HEERAISP | D26: ARUNA ATTAL | E26: BUY | F26: 45,090 | G26: 10.61 | H26: BSE
A27: 2023-05-29 | B27: 543769 | C27: INDONG | D27: DILIP NANJI CHHEDA | E27: BUY | F27: 4,000 | G27: 27.63 | H27: BSE
A28: 2023-05-29 | B28: 543769 | C28: INDONG | D28: DILIP NANJI CHHEDA | E28: SELL | F28: 104,000 | G28: 30.25 | H28: BSE
A29: 2023-05-29 | B29: 543769 | C29: INDONG | D29: NEETA SANJAY PODDAR | E29: BUY | F29: 96,000 | G29: 29 | H29: BSE
A30: 2023-05-29 | B30: 542924 | C30: JANUSCORP | D30: MISTERKAPOORKESHRI | E30: BUY | F30: 112,000 | G30: 3.89 | H30: BSE
A31: 2023-05-29 | B31: 514360 | C31: KRRAIL | D31: GUPTA JEE TENT SERVICES PRIVATE LIMITED | E31: BUY | F31: 100,000 | G31: 500 | H31: BSE
A32: 2023-05-29 | B32: 511768 | C32: MASTERTR | D32: PRIME INDUSTRIES LIMITED | E32: SELL | F32: 595,000 | G32: 138.25 | H32: BSE
A33: 2023-05-29 | B33: 511768 | C33: MASTERTR | D33: JASHANJYOT SINGH ARORA | E33: BUY | F33: 493,000 | G33: 138.1 | H33: BSE
A34: 2023-05-29 | B34: 538964 | C34: MERCURYLAB | D34: SHAH SHARAD KANAYALAL | E34: BUY | F34: 8,100 | G34: 953.6 | H34: BSE
A35: 2023-05-29 | B35: 538964 | C35: MERCURYLAB | D35: KETAN BABULAL SHAH | E35: SELL | F35: 9,630 | G35: 953.65 | H35: BSE
A36: 2023-05-29 | B36: 535910 | C36: MMLF | D36: VINAYKUMARCHAWLA | E36: BUY | F36: 60,000 | G36: 26.76 | H36: BSE
A37: 2023-05-29 | B37: 535910 | C37: MMLF | D37: SAROJ GUPTA | E37: BUY | F37: 205,000 | G37: 26.76 | H37: BSE
A38: 2023-05-29 | B38: 535910 | C38: MMLF | D38: TASNEEM ABBASALI LAKDAWALA | E38: SELL | F38: 400,000 | G38: 26.76 | H38: BSE
A39: 2023-05-29 | B39: 535910 | C39: MMLF | D39: VAIDIK GOEL | E39: BUY | F39: 95,000 | G39: 26.76 | H39: BSE
A40: 2023-05-29 | B40: 535910 | C40: MMLF | D40: AJAY SALVI | E40: SELL | F40: 300,000 | G40: 26.76 | H40: BSE
A41: 2023-05-29 | B41: 535910 | C41: MMLF | D41: AJAY SALVI | E41: BUY | F41: 300,000 | G41: 26.76 | H41: BSE
A42: 2023-05-29 | B42: 532911 | C42: PARLEIND | D42: BHAVIK MUKESHKUMAR PANDYA | E42: BUY | F42: 115,047 | G42: 7.46 | H42: BSE
A43: 2023-05-29 | B43: 532911 | C43: PARLEIND | D43: BHAVIK MUKESHKUMAR PANDYA | E43: SELL | F43: 37,895 | G43: 7 | H43: BSE
A44: 2023-05-29 | B44: 517417 | C44: PATELSAI | D44: ROHA ASSET MANAGERS LLP | E44: SELL | F44: 51,418 | G44: 228.53 | H44: BSE
A45: 2023-05-29 | B45: 526381 | C45: PATINTLOG | D45: ARHAAN NUMAIRE FAMILY BENEFICIARIES TRUST | E45: BUY | F45: 630,000 | G45: 13.4 | H45: BSE
A46: 2023-05-29 | B46: 526381 | C46: PATINTLOG | D46: NATASHA CONSTRUCTION PROJECTS PRIVATE LTD | E46: SELL | F46: 630,000 | G46: 13.39 | H46: BSE
A47: 2023-05-29 | B47: 543798 | C47: PATRON | D47: MANSI SHARE & STOCK ADVISORS PRIVATE LIMITED | E47: SELL | F47: 160,000 | G47: 10 | H47: BSE
A48: 2023-05-29 | B48: 540727 | C48: POOJA | D48: SALIM PYARALI GOVANI | E48: SELL | F48: 82,333 | G48: 30.07 | H48: BSE
A49: 2023-05-29 | B49: 538452 | C49: QUASAR | D49: NIKHIL OMPRAKASH MALPANI | E49: SELL | F49: 27,115 | G49: 22.7 | H49: BSE
A50: 2023-05-29 | B50: 538452 | C50: QUASAR | D50: LAXMIGOYAL | E50: BUY | F50: 40,000 | G50: 20.83 | H50: BSE
A51: 2023-05-29 | B51: 538452 | C51: QUASAR | D51: MULTIPLIER SHARE & STOCK ADVISORS PRIVATE LIMITED | E51: SELL | F51: 41,533 | G51: 21.11 | H51: BSE
A52: 2023-05-29 | B52: 543617 | C52: REETECH | D52: MIKER FINANCIAL CONSULTANTS PRIVATE LIMITED | E52: SELL | F52: 30,000 | G52: 57.17 | H52: BSE
A53: 2023-05-29 | B53: 543617 | C53: REETECH | D53: VINCENT COMMERCIAL COMPANY LIMITED | E53: BUY | F53: 40,800 | G53: 57 | H53: BSE
A54: 2023-05-29 | B54: 543625 | C54: SECURCRED | D54: SONAL VIJAY SHAH | E54: SELL | F54: 209,542 | G54: 25.25 | H54: BSE
A55: 2023-05-29 | B55: 530525 | C55: SHEETAL | D55: TOPGAIN FINANCE PRIVATE LIMITED | E55: BUY | F55: 69,931 | G55: 16.53 | H55: BSE
A56: 2023-05-29 | B56: 543799 | C56: SVJ | D56: BP EQUITIES PVT. LTD. | E56: BUY | F56: 51,000 | G56: 38.73 | H56: BSE
A57: 2023-05-29 | B57: 543799 | C57: SVJ | D57: BP EQUITIES PVT. LTD. | E57: SELL | F57: 42,000 | G57: 37.5 | H57: BSE
A58: 2023-05-29 | B58: 543799 | C58: SVJ | D58: MULTIPLIER SHARE AND STOCK ADVISORS PRIVATE LTD | E58: BUY | F58: 45,000 | G58: 37.71 | H58: BSE
A59: 2023-05-29 | B59: 543799 | C59: SVJ | D59: MADHU SANJAYKUMAR BUCHA | E59: BUY | F59: 129,000 | G59: 36.74 | H59: BSE
A60: 2023-05-29 | B60: 543799 | C60: SVJ | D60: MADHUDEVI SANJAY BUCHA | E60: SELL | F60: 201,000 | G60: 35.67 | H60: BSE
A61: 2023-05-29 | B61: 543799 | C61: SVJ | D61: ISH TRAVEL & TOURS PRIVATE LIMITED | E61: SELL | F61: 222,000 | G61: 37.98 | H61: BSE
A62: 2023-05-29 | B62: 543799 | C62: SVJ | D62: DUES MANAGER PRIVATE LIMITED | E62: SELL | F62: 81,000 | G62: 37.39 | H62: BSE
A63: 2023-05-29 | B63: 543799 | C63: SVJ | D63: SPRING VENTURES | E63: SELL | F63: 48,000 | G63: 36.21 | H63: BSE
A64: 2023-05-29 | B64: 543799 | C64: SVJ | D64: ISH TRAVEL & TOURS PRIVATE LIMITED | E64: BUY | F64: 219,000 | G64: 37.63 | H64: BSE
A65: 2023-05-29 | B65: 543799 | C65: SVJ | D65: DUES MANAGER PRIVATE LIMITED | E65: BUY | F65: 78,000 | G65: 37.35 | H65: BSE
A66: 2023-05-29 | B66: 543799 | C66: SVJ | D66: SPRING VENTURES | E66: BUY | F66: 9,000 | G66: 39.23 | H66: BSE
A67: 2023-05-29 | B67: 543799 | C67: SVJ | D67: MANSI SHARE & STOCK ADVISORS PRIVATE LIMITED | E67: SELL | F67: 3,000 | G67: 35.51 | H67: BSE
A68: 2023-05-29 | B68: 543799 | C68: SVJ | D68: SAHASTRAA ADVISORS PRIVATE LIMITED | E68: BUY | F68: 30,000 | G68: 35.51 | H68: BSE
A69: 2023-05-29 | B69: 543799 | C69: SVJ | D69: BONANZA COMMODITY BROKERS PRIVATE LIMITED | E69: BUY | F69: 45,000 | G69: 37.88 | H69: BSE
A70: 2023-05-29 | B70: 543799 | C70: SVJ | D70: MANSI SHARE & STOCK ADVISORS PRIVATE LIMITED | E70: BUY | F70: 63,000 | G70: 37.59 | H70: BSE
A71: 2023-05-29 | B71: 543799 | C71: SVJ | D71: TOPGAIN FINANCE PRIVATE LIMITED | E71: BUY | F71: 30,000 | G71: 35.51 | H71: BSE
A72: 2023-05-29 | B72: 543799 | C72: SVJ | D72: TOPGAIN FINANCE PRIVATE LIMITED | E72: SELL | F72: 33,000 | G72: 35.51 | H72: BSE
A73: 2023-05-29 | B73: 543799 | C73: SVJ | D73: SAROJ GUPTA | E73: SELL | F73: 165,000 | G73: 37.98 | H73: BSE
A74: 2023-05-29 | B74: 543799 | C74: SVJ | D74: SAROJ GUPTA | E74: BUY | F74: 57,000 | G74: 38.88 | H74: BSE
A75: 2023-05-29 | B75: 543799 | C75: SVJ | D75: ARHAM SHARE PRIVATE LIMITED | E75: BUY | F75: 117,000 | G75: 38.92 | H75: BSE
A76: 2023-05-29 | B76: 543799 | C76: SVJ | D76: ARHAM SHARE PRIVATE LIMITED | E76: SELL | F76: 117,000 | G76: 39.02 | H76: BSE
A77: 2023-05-29 | B77: 543799 | C77: SVJ | D77: MULTIPLIER SHARE & STOCK ADVISORS PRIVATE LIMITED | E77: SELL | F77: 93,000 | G77: 35.51 | H77: BSE
A78: 2023-05-29 | B78: 543799 | C78: SVJ | D78: SETU SECURITIES PVT. LTD. | E78: SELL | F78: 132,000 | G78: 37.16 | H78: BSE
A79: 2023-05-29 | B79: 543799 | C79: SVJ | D79: SETU SECURITIES PVT. LTD. | E79: BUY | F79: 171,000 | G79: 35.88 | H79: BSE
A80: 2023-05-29 | B80: 543656 | C80: TECHNOPACK | D80: ROHAN SUDHAKAR JADHAV | E80: SELL | F80: 28,000 | G80: 87.23 | H80: BSE
A81: 2023-05-29 | B81: 531628 | C81: TEJASSVI | D81: ALGOQUANT FINTECH LIMITED . | E81: BUY | F81: 59,330 | G81: 11.24 | H81: BSE
A82: 2023-05-29 | B82: 542765 | C82: TRANSPACT | D82: SYKES AND RAY EQUITIES (INDIA) LIMITED | E82: SELL | F82: 2,000 | G82: 165.8 | H82: BSE
A83: 2023-05-29 | B83: 542765 | C83: TRANSPACT | D83: SYKES AND RAY EQUITIES (INDIA) LIMITED | E83: BUY | F83: 1,000 | G83: 165.8 | H83: BSE
A84: 2023-05-29 | B84: 542765 | C84: TRANSPACT | D84: PRIYA SAINI | E84: BUY | F84: 2,000 | G84: 165.7 | H84: BSE
A85: 2023-05-29 | B85: 542765 | C85: TRANSPACT | D85: KAILASHBEN ASHOKKUMAR PATEL | E85: SELL | F85: 3,000 | G85: 165.53 | H85: BSE
A86: 2023-05-29 | B86: 541735 | C86: VIVANTA | D86: MULTIPLIER SHARE & STOCK ADVISORS PRIVATE LIMITED | E86: SELL | F86: 1,000,000 | G86: 5.74 | H86: BSE
A87: 2023-05-29 | B87: CLEAN | C87: Clean Science & Tech Ltd | D87: THINK INDIA OPPORTUNITIES MASTER FUND LP | E87: BUY | F87: 882,278 | G87: 1406 | H87: NSE
A88: 2023-05-29 | B88: DIL | C88: Debock Industries Limited | D88: MULTIPLIER SHARE & STOCK ADVISORS PRIVATE LIMITED | E88: BUY | F88: 1,000,111 | G88: 17.59 | H88: NSE
A89: 2023-05-29 | B89: DIL | C89: Debock Industries Limited | D89: ATLAS EVENTS PRIVATE LIMITED | E89: BUY | F89: 2,394,620 | G89: 18.39 | H89: NSE
A90: 2023-05-29 | B90: DIL | C90: Debock Industries Limited | D90: WILSON HOLDINGS PRIVATE LIMITED | E90: BUY | F90: 700,000 | G90: 18.5 | H90: NSE
A91: 2023-05-29 | B91: GRAVITA | C91: Gravita India Limited | D91: EMPLOYEES PROVIDENT FUND BOARD MANAGED BY NOMURA ASSET MANAGEMENT MALAYSIA SDN BHD | E91: BUY | F91: 550,000 | G91: 565 | H91: NSE
A92: 2023-05-29 | B92: GRAVITA | C92: Gravita India Limited | D92: THE NOMURA TRUST AND BANKING CO LTD AS THE TRUSTEE OF NOMURA INDIA STOCK | E92: BUY | F92: 750,000 | G92: 565 | H92: NSE
A93: 2023-05-29 | B93: GRAVITA | C93: Gravita India Limited | D93: THE MTBJ A/C NOMURA INDIA INVES FD | E93: BUY | F93: 1,500,000 | G93: 565 | H93: NSE
A94: 2023-05-29 | B94: GRAVITA | C94: Gravita India Limited | D94: NOMURA FUNDS IRELAND PUBLIC LIMITED COMPANY- NOMURA FUNDS IRELAND - INDIA EQUITY FUND | E94: BUY | F94: 400,000 | G94: 565 | H94: NSE
A95: 2023-05-29 | B95: KRISHNADEF | C95: Krishna Def and Ald Ind L | D95: MALI AGRI TECH PRIVATE LIMITED | E95: BUY | F95: 68,000 | G95: 197.5 | H95: NSE
A96: 2023-05-29 | B96: MAZDA | C96: Mazda Limited | D96: NK SECURITIES RESEARCH PRIVATE LIMITED | E96: BUY | F96: 34,397 | G96: 990.13 | H96: NSE
A97: 2023-05-29 | B97: MAZDA | C97: Mazda Limited | D97: GRAVITON RESEARCH CAPITAL LLP | E97: BUY | F97: 98,326 | G97: 984.53 | H97: NSE
A98: 2023-05-29 | B98: MAZDA | C98: Mazda Limited | D98: MUDUPULAVEMULA SURENDRANADHA REDDY | E98: BUY | F98: 22,617 | G98: 994.99 | H98: NSE
A99: 2023-05-29 | B99: NUCLEUS | C99: Nucleus Software Exports | D99: MANSI SHARES & STOCK ADVISORS PVT LTD | E99: BUY | F99: 167,047 | G99: 966.69 | H99: NSE
A100: 2023-05-29 | B100: NUCLEUS | C100: Nucleus Software Exports | D100: SETU SECURITIES PVT LTD | E100: BUY | F100: 107,666 | G100: 969.23 | H100: NSE
A101: 2023-05-29 | B101: QUICKTOUCH | C101: Quicktouch Technologies L | D101: AMAN DEEP | E101: BUY | F101: 36,000 | G101: 127.36 | H101: NSE
A102: 2023-05-29 | B102: REMUS | C102: Remus Pharmaceuticals L | D102: GPRAKASHCHAND BAID HUF | E102: BUY | F102: 8,000 | G102: 1711.25 | H102: NSE
A103: 2023-05-29 | B103: REMUS | C103: Remus Pharmaceuticals L | D103: NEGEN CAPITAL SERVICES PRIVATE LIMITED | E103: BUY | F103: 34,000 | G103: 1793.9 | H103: NSE
A104: 2023-05-29 | B104: REMUS | C104: Remus Pharmaceuticals L | D104: JAIN SANJAY POPATLAL | E104: BUY | F104: 10,000 | G104: 1711.25 | H104: NSE
A105: 2023-05-29 | B105: RPOWER | C105: Reliance Power Limited | D105: HI GROWTH CORPORATE SERVICES PVT LTD | E105: BUY | F105: 25,632,000 | G105: 13.28 | H105: NSE
A106: 2023-05-29 | B106: SMLISUZU | C106: SML Isuzu Limited | D106: GRAVITON RESEARCH CAPITAL LLP | E106: BUY | F106: 75,264 | G106: 1089.82 | H106: NSE
A107: 2023-05-29 | B107: SOMATEX | C107: Soma Textiles & Ind. Ltd. | D107: MULTIPLIER SHARE & STOCK ADVISORS PRIVATE LIMITED | E107: BUY | F107: 190,785 | G107: 20.39 | H107: NSE
A108: 2023-05-29 | B108: UNIINFO | C108: Uniinfo Telecom Servi Ltd | D108: KAILASHBEN ASHOKKUMAR PATEL | E108: BUY | F108: 70,351 | G108: 23.01 | H108: NSE
A109: 2023-05-29 | B109: ABINFRA | C109: A B Infrabuild Limited | D109: SHUBHANGI SUBHASH KONDVILKAR | E109: SELL | F109: 68,000 | G109: 40.85 | H109: NSE
A110: 2023-05-29 | B110: AUROIMPEX | C110: Auro Impex & Chemicals L | D110: ANSHUL AGARWAL | E110: SELL | F110: 67,200 | G110: 71.54 | H110: NSE
A111: 2023-05-29 | B111: CLEAN | C111: Clean Science & Tech Ltd | D111: NILIMA KRISHNAKUMAR BOOB | E111: SELL | F111: 878,960 | G111: 1406.64 | H111: NSE
A112: 2023-05-29 | B112: CLEAN | C112: Clean Science & Tech Ltd | D112: ASHA ASHOK BOOB | E112: SELL | F112: 1,865,710 | G112: 1407.22 | H112: NSE
A113: 2023-05-29 | B113: CLEAN | C113: Clean Science & Tech Ltd | D113: ASHA ASHOK SIKCHI | E113: SELL | F113: 984,305 | G113: 1406 | H113: NSE
A114: 2023-05-29 | B114: DIL | C114: Debock Industries Limited | D114: ATLAS EVENTS PRIVATE LIMITED | E114: SELL | F114: 1,537,032 | G114: 18.18 | H114: NSE
A115: 2023-05-29 | B115: DIL | C115: Debock Industries Limited | D115: MULTIPLIER SHARE & STOCK ADVISORS PRIVATE LIMITED | E115: SELL | F115: 1,000,111 | G115: 18.59 | H115: NSE
A116: 2023-05-29 | B116: GRAVITA | C116: Gravita India Limited | D116: RAJAT AGRAWAL | E116: SELL | F116: 3,200,000 | G116: 565 | H116: NSE
A117: 2023-05-29 | B117: HISARMETAL | C117: Hisar Metal Ind. Limited | D117: BLUEJAY ENTERPRISES PRIVATE LIMITED | E117: SELL | F117: 29,150 | G117: 150.11 | H117: NSE
A118: 2023-05-29 | B118: KRISHNADEF | C118: Krishna Def and Ald Ind L | D118: MAHALAXMI BROKRAGE INDIA PRIVATE LIMITED | E118: SELL | F118: 65,000 | G118: 199.12 | H118: NSE
A119: 2023-05-29 | B119: MAZDA | C119: Mazda Limited | D119: NK SECURITIES RESEARCH PRIVATE LIMITED | E119: SELL | F119: 34,397 | G119: 990.81 | H119: NSE
A120: 2023-05-29 | B120: MAZDA | C120: Mazda Limited | D120: MUDUPULAVEMULA SURENDRANADHA REDDY | E120: SELL | F120: 22,617 | G120: 1000.41 | H120: NSE
A121: 2023-05-29 | B121: MAZDA | C121: Mazda Limited | D121: GRAVITON RESEARCH CAPITAL LLP | E121: SELL | F121: 98,326 | G121: 985.72 | H121: NSE
A122: 2023-05-29 | B122: NUCLEUS | C122: Nucleus Software Exports | D122: SETU SECURITIES PVT LTD | E122: SELL | F122: 147,318 | G122: 967.46 | H122: NSE
A123: 2023-05-29 | B123: NUCLEUS | C123: Nucleus Software Exports | D123: MANSI SHARES & STOCK ADVISORS PVT LTD | E123: SELL | F123: 177,047 | G123: 970.95 | H123: NSE
A124: 2023-05-29 | B124: QUICKTOUCH | C124: Quicktouch Technologies L | D124: NIKHIL GAMBHIR | E124: SELL | F124: 30,000 | G124: 136.4 | H124: NSE
A125: 2023-05-29 | B125: QUICKTOUCH | C125: Quicktouch Technologies L | D125: PRANAL VINODBHAI RABADIYA | E125: SELL | F125: 42,000 | G125: 124.1 | H125: NSE
A126: 2023-05-29 | B126: REMUS | C126: Remus Pharmaceuticals L | D126: MONEYWISE FINANCIAL SERVICES PRIVATE LTD | E126: SELL | F126: 10,700 | G126: 1712.85 | H126: NSE
A127: 2023-05-29 | B127: RPOWER | C127: Reliance Power Limited | D127: HI GROWTH CORPORATE SERVICES PVT LTD | E127: SELL | F127: 27,663,590 | G127: 13.28 | H127: NSE
A128: 2023-05-29 | B128: SMLISUZU | C128: SML Isuzu Limited | D128: GRAVITON RESEARCH CAPITAL LLP | E128: SELL | F128: 75,264 | G128: 1091.04 | H128: NSE
A129: 2023-05-29 | B129: SOMATEX | C129: Soma Textiles & Ind. Ltd. | D129: MULTIPLIER SHARE & STOCK ADVISORS PRIVATE LIMITED | E129: SELL | F129: 140,785 | G129: 20.41 | H129: NSE
A130: 2023-05-29 | B130: TEMBO | C130: Tembo Global Ind Ltd | D130: KAUSHIK MAHESHBHAI WAGHELA | E130: SELL | F130: 200,000 | G130: 212.95 | H130: NSE
A131: 2023-05-29 | B131: UNIVASTU | C131: Univastu India Limited | D131: JAINAM BROKING LIMITED | E131: SELL | F131: 100,000 | G131: 91.02 | H131: NSE
A132: 2023-05-29 | B132: VERTOZ | C132: Vertoz Advertising Ltd | D132: SADASHIV KANYANA SHETTY | E132: SELL | F132: 88,451 | G132: 228.7 | H132: NSE
A133: 2023-05-29 | B133: VIVO | C133: Vivo Collab Solutions Ltd | D133: DEVIKA ANAND | E133: SELL | F133: 11,200 | G133: 110.12 | H133: NSE

Sheet Call Tracker (Equity & F&O)
M5: Back To Main Page
A6: Retail Research Technical Calls & Fundamental Performance Report for the month of May-2023
M7: =Main!B10 -> 2023-05-30
B8: Positional Call
A9: Sr.no | B9: Date | D9: Company | E9: Rec | F9: Rec Price | G9: Stop Loss*** | H9: Call Closed At | I9: Target | J9: Remark | K9: Profit / Loss per Share | L9: All charges | M9: Net Gain / Loss % | N9: Status | O9: Closed Date | P9: Market Closing Price
A10: 1 | B10: 2023-04-11 | D10: SHARDACROP | E10: Accu | F10: 460 | G10: 425 | H10: 489 | I10: 500-530 | J10: Profit of Rs.29/- | K10: =H10-F10 -> 29 | L10: =(F10*-0.7)/100 -> -3.22 | M10: =(K10+L10)/F10 -> 5.60% | N10: Successful | O10: 2023-05-11 | R10: H
A11: 2 | B11: 2023-04-12 | D11: SUDARSCHEM | E11: Accu | F11: 400 | G11: 377 | H11: 429 | I11: 440-460 | J11: Profit of Rs.29/- | K11: 29 | L11: -2.80 | M11: 6.55% | N11: Successful | O11: 2023-05-24 | R11: H
A12: 3 | B12: 2023-04-17 | D12: REDINGTON | E12: Accu | F12: 167.5 | G12: 158 | H12: 177.5 | I12: 180-190 | J12: Profit of Rs.10/- | K12: =H12-F12 -> 10 | L12: =(F12*-0.7)/100 -> -1.17 | M12: =(K12+L12)/F12 -> 5.27% | N12: Successful | O12: 2023-05-12 | R12: H
A13: 4 | B13: 2023-04-17 | D13: HCLTECH | E13: Accu | F13: 1035 | G13: 945 | H13: 1092.5 | I13: 1150-1200 | J13: Profit of Rs.29/- | K13: =H13-F13 -> 57.5 | L13: =(F13*-0.7)/100 -> -7.25 | M13: =(K13+L13)/F13 -> 4.86% | N13: Successful | O13: 2023-05-11 | R13: H
A14: 5 | B14: 2023-04-17 | D14: KOLTEPATIL | E14: Accu | F14: 248.5 | G14: 233 | H14: 265.5 | I14: 280-290 | J14: Profit of Rs.17/- | K14: =H14-F14 -> 17 | L14: =(F14*-0.7)/100 -> -1.74 | M14: =(K14+L14)/F14 -> 6.14% | N14: Successful | O14: 2023-05-03 | R14: N
A15: 6 | B15: 2023-04-24 | D15: BHARTIARTL | E15: Accu | F15: 772.5 | G15: 735 | H15: 818 | I15: 850-900 | J15: Profit of Rs.45.5/- | K15: =H15-F15 -> 45.5 | L15: =(F15*-0.7)/100 -> -5.41 | M15: =(K15+L15)/F15 -> 5.19% | N15: Successful | O15: 2023-05-25 | R15: H
A16: 7 | B16: 2023-04-25 | D16: MASTEK | E16: Accu | F16: 1715 | G16: 1550 | H16: 1817.5 | I16: 1900-2000 | J16: Profit of Rs.102.5/- | K16: =H16-F16 -> 102.5 | L16: =(F16*-0.7)/100 -> -12.01 | M16: =(K16+L16)/F16 -> 5.28% | N16: Successful | O16: 2023-05-17 | R16: H
A17: 8 | B17: 2023-04-28 | D17: GNFC | E17: Accu | F17: 580 | G17: 530 | H17: 614 | I17: 640-680 | J17: Profit of Rs.34/- | K17: =H17-F17 -> 34 | L17: =(F17*-0.7)/100 -> -4.06 | M17: =(K17+L17)/F17 -> 5.16% | N17: Successful | O17: 2023-05-11 | R17: H
A18: 9 | B18: 2023-05-03 | D18: TATAELXSI | E18: Accu | F18: 6575 | G18: 6150 | H18: 6970 | I18: 7000-7300 | J18: Profit of Rs.395/- | K18: =H18-F18 -> 395 | L18: =(F18*-0.7)/100 -> -46.03 | M18: =(K18+L18)/F18 -> 5.31% | N18: Successful | O18: 2023-05-09 | R18: H
A19: 10 | B19: 2023-05-09 | D19: KANSAINER | E19: Accu | F19: 400-410 | G19: 379 | I19: 450-470 | J19: Open | P19: =VLOOKUP(D19,'MidCap Intra'!B37:C537,2,0) -> 413.65 | R19: H
A20: 11 | B20: 2023-05-12 | D20: RECLTD | E20: Accu | F20: 130.5 | G20: 119 | H20: 136.75 | I20: 140-150 | J20: Profit of Rs.6.25/- | K20: =H20-F20 -> 6.25 | L20: =(F20*-0.7)/100 -> -0.91 | M20: =(K20+L20)/F20 -> 4.09% | N20: Successful | O20: 2023-05-29 | R20: H
A21: 12 | B21: 2023-05-12 | D21: SBIN | E21: Accu | F21: 562-574 | G21: 538 | I21: 600-630 | J21: Open | P21: =VLOOKUP(D21,'MidCap Intra'!B39:C539,2,0) -> 595.00 | R21: H
A22: 13 | B22: 2023-05-22 | D22: JSWSTEEL | E22: Accu | F22: 665-691 | G22: 637 | I22: 740-780 | J22: Open | P22: =VLOOKUP(D22,'MidCap Intra'!B40:C540,2,0) -> 702.20 | R22: H
A25: CLBS = Closing Basis ***
A26: Dividend adjusted <> | F26: Reinitiated $
A27: Part book {} | D27: s | F27: Revised stoploss #
B29: Momentum Call
A30: Sr.no | B30: Date | D30: Company | E30: Rec | F30: Rec Price | G30: Stop Loss | H30: Call Closed At | I30: Target | J30: Remark | K30: Profit / Loss per Share/Lot | L30: All charges | M30: Net Gain / Loss % | N30: Status | O30: Closed Date
A31: 1 | B31: 2023-04-24 | D31: KNRCON | E31: Buy | F31: 239.5 | G31: 232 | H31: 246.5 | I31: 248-252 | J31: Profit of Rs.7/- | K31: =H31-F31 -> 7 | L31: =(F31*-0.7)/100 -> -1.68 | M31: =(K31+L31)/F31 -> 2.22% | N31: Successful | O31: 2023-05-09 | R31: H
A32: 2 | B32: 2023-04-25 | D32: KANSAINER | E32: Buy | F32: 378 | G32: 367 | H32: 390 | I32: 390-400 | J32: Profit of Rs.12/- | K32: =H32-F32 -> 12 | L32: =(F32*-0.7)/100 -> -2.65 | M32: =(K32+L32)/F32 -> 2.47% | N32: Successful | O32: 2023-05-03 | R32: H
A33: 3 | B33: 2023-04-28 | D33: GSPL | E33: Buy | F33: 284 | G33: 274 | H33: 274 | I33: 300 | J33: Loss of Rs.10/- | K33: =H33-F33 -> -10 | L33: =(F33*-0.7)/100 -> -1.99 | M33: =(K33+L33)/F33 -> -4.22% | N33: Unsuccessful | O33: 2023-05-09 | R33: H
A34: 4 | B34: 2023-05-04 | D34: SUNPHARMA | E34: Buy | F34: 970 | G34: 945 | H34: 945 | I34: 1000-1020 | J34: Loss of Rs.25/- | K34: =H34-F34 -> -25 | L34: =(F34*-0.7)/100 -> -6.79 | M34: =(K34+L34)/F34 -> -3.28% | N34: Unsuccessful | O34: 2023-05-16 | R34: H
A35: 5 | B35: 2023-05-11 | D35: FLUOROCHEM | E35: Buy | F35: 3225 | G35: 3130 | H35: 3300 | I35: 3400-3450 | J35: Profit of Rs.75/- | K35: =H35-F35 -> 75 | L35: =(F35*-0.7)/100 -> -22.58 | M35: =(K35+L35)/F35 -> 1.63% | N35: Successful | O35: 2023-05-15 | R35: H
A36: 6 | B36: 2023-05-12 | D36: TATAELXSI | E36: Buy | F36: 7075 | G36: 6890 | H36: 6860 | I36: 7400-7500 | J36: Loss of Rs.215/- | K36: =H36-F36 -> -215 | L36: =(F36*-0.7)/100 -> -49.53 | M36: =(K36+L36)/F36 -> -3.74% | N36: Unsuccessful | O36: 2023-05-19 | R36: H
A37: 7 | B37: 2023-05-12 | D37: KNRCON | E37: Buy | F37: 239.5 | G37: 232 | H37: 246.5 | I37: 248-252 | J37: Profit of Rs.7/- | K37: =H37-F37 -> 7 | L37: =(F37*-0.7)/100 -> -1.68 | M37: =(K37+L37)/F37 -> 2.22% | N37: Successful | O37: 2023-05-15 | R37: H
A38: 8 | B38: 2023-05-19 | D38: KNRCON | E38: Buy | F38: 239.5 | G38: 232 | H38: 245.5 | I38: 248-252 | J38: Profit of Rs.6/- | K38: =H38-F38 -> 6 | L38: =(F38*-0.7)/100 -> -1.68 | M38: =(K38+L38)/F38 -> 1.81% | N38: Successful | O38: 2023-05-29 | R38: N
A39: 9 | B39: 2023-05-22 | D39: ACC | E39: Buy | F39: 1815 | G39: 1760 | H39: 1865 | I39: 1900-1920 | J39: Profit of Rs.50/- | K39: =H39-F39 -> 50 | L39: =(F39*-0.7)/100 -> -12.71 | M39: =(K39+L39)/F39 -> 2.05% | N39: Successful | O39: 2023-05-23 | R39: H
A40: 10 | B40: 2023-05-23 | D40: ACC | E40: Buy | F40: 1807-1815 | G40: 1750 | I40: 1900-1920 | J40: Open | R40: H
A41: 11 | B41: 2023-05-26 | D41: BHARTIARTL | E41: Buy | F41: 815-820 | G41: 795 | I41: 850-860 | J41: Open | R41: H
A44: CLBS = Closing Basis *** | H44: *
A45: Dividend adjusted <> | F45: Reinitiated $
F46: Revised stoploss #
A48: Master Trade High Risk
A49: Sr.no | B49: Date | D49: Company | E49: Rec | F49: Rec Price | G49: Stop Loss | H49: Call Closed At | I49: Target | J49: Remark | K49: Profit / Loss per share | L49: All charges | M49: Gain / Loss per Lot | N49: Lot | O49: Status | P49: Closed Date
A50: 1 | B50: 2023-04-28 | D50: PIDILITIND MAY FUT | E50: Buy | F50: 2419 | G50: 2370 | H50: 2457.5 | I50: 2470-2500 | J50: Profit of Rs.38.5/- | K50: =H50-F50 -> 38.5 | L50: =(H50*N50)*0.07% -> 430.06 | M50: =(K50*N50)-L50 -> 9194.9 | N50: 250 | O50: Successful | P50: 2023-05-03 | R50: H
A51: 2 | B51: 2023-05-03 | D51: BHARTIARTL MAY FUT | E51: Buy | F51: 790 | G51: 776 | H51: 798.5 | I51: 810-820 | J51: Profit of Rs.8.5/- | K51: 8.5 | L51: 531.00 | M51: 7544.0 | N51: 950 | O51: Successful | P51: 2023-05-09 | R51: H
A52: 3 | B52: 2023-05-08 | D52: COLPAL MAY FUT | E52: Buy | F52: 1557 | G52: 1520 | H52: 1580 | I52: 1600-1630 | J52: Profit of Rs.23/- | K52: =H52-F52 -> 23 | L52: =(H52*N52)*0.07% -> 387.10 | M52: 7662.9 | N52: 350 | O52: Successful | P52: 2023-05-10 | R52: N
A53: 4 | B53: 2023-05-08 | D53: GUJGASLTD MAY FUT | E53: Buy | F53: 460 | G53: 449 | H53: 467 | I53: 472-482 | J53: Profit of Rs.7/- | K53: =H53-F53 -> 7 | L53: =(H53*N53)*0.07% -> 408.63 | M53: 8341.4 | N53: 1250 | O53: Successful | P53: 2023-05-09 | R53: N
A54: 5 | B54: 2023-05-10 | D54: GUJGASLTD MAY FUT | E54: Buy | F54: 459 | G54: 448 | H54: 482 | I54: 472-482 | J54: Profit of Rs.23/- | K54: =H54-F54 -> 23 | L54: =(H54*N54)*0.07% -> 421.75 | M54: 28328.3 | N54: 1250 | O54: Successful | P54: 2023-05-11 | R54: N
A55: 6 | B55: 2023-05-10 | D55: SBIN MAY FUT | E55: Buy | F55: 569 | G55: 559 | H55: 576.5 | I55: 580-590 | J55: Profit of Rs.7.5/- | K55: 7.5 | L55: 605.33 | M55: 10644.7 | N55: 1500 | O55: Successful | P55: 2023-05-11 | R55: H
A56: 7 | B56: 2023-05-16 | D56: AMBUJACEM MAY FUT | E56: Buy | F56: 405 | G56: 398.5 | H56: 398.5 | I56: 415-420 | J56: Loss of Rs.6.5/- | K56: =H56-F56 -> -6.5 | L56: =(H56*N56)*0.07% -> 502.11 | M56: =(K56*N56)-L56 -> -12202.1 | N56: 1800 | O56: Unsuccessful | P56: 2023-05-20 | R56: H
A57: 8 | B57: 2023-05-19 | D57: COLPAL MAY FUT | E57: Buy | F57: 1612 | G57: 1575 | H57: 1580 | I57: 1660-1680 | J57: Loss of Rs.32/- | K57: -32 | L57: 387.10 | M57: -11587.1 | N57: 350 | O57: Unsuccessful | P57: 2023-05-25 | R57: N
A58: 9 | B58: 2023-05-29 | D58: NIFTY JUNE FUT | E58: Sell | F58: 18700-18720 | G58: 18850 | I58: 18500-18400 | J58: Open
A63: Master Trade Medium Risk
A64: Sr.no | B64: Date | D64: Company | E64: Rec | F64: Rec Price | G64: Stop Loss | H64: Call Closed At | I64: Target | J64: Remark | K64: Profit/ Loss per lot | L64: All charges | M64: Gain / Loss per Lot | N64: Lot | O64: Status | P64: Closed Date
A65: 1 | B65: 2023-04-27 | D65: HDFC 2800 CE MAY | E65: Buy | F65: 35 | G65: 19 | H65: 42 | I65: 60-70 | J65: Profit of Rs.7/- | K65: =H65-F65 -> 7 | L65: 100.00 | M65: =(K65*N65)-100 -> 2000.0 | N65: 300 | O65: Successful | P65: 2023-05-02 | R65: N
A66: 2 | B66: 2023-04-28 | D66: MARUTI 8700 CE MAY | E66: Buy | F66: 127 | G66: 78 | H66: 147 | I66: 180-220 | J66: Profit of Rs.20/- | K66: =H66-F66 -> 20 | L66: 100.00 | M66: =(K66*N66)-100 -> 1900.0 | N66: 100 | O66: Successful | P66: 2023-05-02 | R66: N
A67: 3 | B67: 2023-04-28 | D67: PVR 1460 PE MAY | E67: Buy | F67: 39 | G67: 25 | H67: 45.5 | I67: 60-75 | J67: Profit of Rs.6.5/- | K67: =H67-F67 -> 6.5 | L67: 100.00 | M67: =(K67*N67)-100 -> 2545.5 | N67: 407 | O67: Successful | P67: 2023-05-02 | R67: N
A68: 4 | B68: 2023-04-28 | D68: FINNIFTY 19150 PE 2-MAY | E68: Buy | F68: 38 | H68: 11 | I68: 70-100 | J68: Loss of Rs.27/- | K68: =H68-F68 -> -27 | L68: 100.00 | M68: =(K68*N68)-100 -> -1180.0 | N68: 40 | O68: Unsuccessful | P68: 2023-05-02 | R68: N
A69: 5 | B69: 2023-05-02 | D69: NIFTY 18500 CE 25-MAY | E69: Sell | F69: 66 | G69: 115 | H69: 42.5 | I69: 20.0-5 | J69: Profit of Rs.23.5/- | K69: =F69-H69 -> 23.5 | L69: 100.00 | M69: 1075.0 | N69: 50 | O69: Successful | P69: 2023-05-03 | R69: H
A70: 6 | B70: 2023-05-02 | D70: NIFTY 18100 PE 4-MAY | E70: Buy | F70: 42 | H70: 64 | I70: 80-120 | J70: Profit of Rs.22/- | K70: =H70-F70 -> 22 | L70: 100.00 | M70: 1000.0 | N70: 50 | O70: Successful | P70: 2023-05-03 | R70: H
A71: 7 | B71: 2023-05-02 | D71: BANKNIFTY 43200 PE 4-MAY | E71: Buy | F71: 110 | H71: 180 | I71: 250-300 | J71: Profit of Rs.70/- | K71: 70 | L71: 100.00 | M71: 1650.0 | N71: 25 | O71: Successful | P71: 2023-05-03 | R71: H
A72: 8 | B72: 2023-05-02 | D72: PVR 1460 PE MAY | E72: Buy | F72: 36 | G72: 22 | H72: 42 | I72: 60-75 | J72: Profit of Rs.6/- | K72: =H72-F72 -> 6 | L72: 100.00 | M72: =(K72*N72)-100 -> 2342.0 | N72: 407 | O72: Successful | P72: 2023-05-05 | R72: N
A73: 9 | B73: 2023-05-03 | D73: NIFTY 18100 PE 4-MAY | E73: Buy | F73: 47.5 | H73: 64 | I73: 90-120 | J73: Profit of Rs.16.5/- | K73: =H73-F73 -> 16.5 | L73: 100.00 | M73: =(K73*N73)-100 -> 725.0 | N73: 50 | O73: Successful | P73: 2023-05-03 | R73: H
A74: 10 | B74: 2023-05-04 | D74: NIFTY 18500 CE 25-MAY | E74: Sell | F74: 68 | G74: 105 | H74: 42 | I74: 20.0-5 | J74: Profit of Rs.26/- | K74: =F74-H74 -> 26 | L74: 100.00 | M74: 1200.0 | N74: 50 | O74: Successful | P74: 2023-05-05 | R74: H
A75: 11 | B75: 2023-05-04 | D75: BANKNIFTY 43400 PE 4-MAY | E75: Buy | F75: 75 | H75: 30 | I75: 200-250 | J75: Loss of Rs.45/- | K75: =H75-F75 -> -45 | L75: 100.00 | M75: =(K75*N75)-100 -> -1225.0 | N75: 25 | O75: Unsuccessful | P75: 2023-05-04 | R75: H
A76: 12 | B76: 2023-05-04 | D76: RELIANCE 2440 CE MAY | E76: Buy | F76: 45 | G76: 30 | H76: 53.5 | I76: 65-75 | J76: Profit of Rs.8.5/- | K76: 8.5 | L76: 100.00 | M76: 2025.0 | N76: 250 | O76: Successful | P76: 2023-05-03 | R76: H
A77: 13 | B77: 2023-05-04 | D77: HDFCBANK 1720 CE MAY | E77: Buy | F77: 22.5 | G77: 14 | H77: 5.5 | I77: 33-37 | J77: Loss of Rs.17/- | K77: =H77-F77 -> -17 | L77: 100.00 | M77: =(K77*N77)-100 -> -9450.0 | N77: 550 | O77: Unsuccessful | P77: 2023-05-05 | R77: H
A78: 14 | B78: 2023-05-05 | D78: BHARTIARTL 800 CE MAY | E78: Buy | F78: 6.5 | G78: 1.8 | H78: 9 | I78: 12.0-15.0 | J78: Profit of Rs.2.5/- | K78: 2.5 | L78: 100.00 | M78: 2275.0 | N78: 950 | O78: Successful | P78: 2023-05-08 | R78: H
A79: 15 | B79: 2023-05-05 | D79: MARUTI 9000 CE MAY | E79: Buy | F79: 122.5 | G79: 75 | H79: 142.5 | I79: 180-220 | J79: Profit of Rs.20/- | K79: =H79-F79 -> 20 | L79: 100.00 | M79: =(K79*N79)-100 -> 1900.0 | N79: 100 | O79: Successful | P79: 2023-05-08 | R79: H
A80: 16 | B80: 2023-05-05 | D80: RELIANCE 2440 CE MAY | E80: Buy | F80: 43.5 | G80: 29 | H80: 51.5 | I80: 65-75 | J80: Profit of Rs.8/- | K80: =H80-F80 -> 8 | L80: 100.00 | M80: =(K80*N80)-100 -> 1900.0 | N80: 250 | O80: Successful | P80: 2023-05-08 | R80: H
A81: 17 | B81: 2023-05-08 | D81: NIFTY 18500 CE 25-MAY | E81: Sell | F81: 72.5 | G81: 110 | H81: 48.5 | I81: 20.0-5 | J81: Profit of Rs.24/- | K81: =F81-H81 -> 24 | L81: 100.00 | M81: 1100.0 | N81: 50 | O81: Successful | P81: 2023-05-12 | R81: H
A82: 18 | B82: 2023-05-08 | D82: PVR 1460 PE MAY | E82: Buy | F82: 40 | G82: 26 | H82: 46 | I82: 60-75 | J82: Profit of Rs.6/- | K82: =H82-F82 -> 6 | L82: 100.00 | M82: =(K82*N82)-100 -> 2342.0 | N82: 407 | O82: Successful | P82: 2023-05-08 | R82: N
A83: 19 | B83: 2023-05-08 | D83: FINNIFTY 19250 PE 9-MAY | E83: Buy | F83: 34.5 | H83: 0 | I83: 70-90 | J83: Loss of Rs.34.5/- | K83: -34.5 | L83: 100.00 | M83: -1480.0 | N83: 40 | O83: Unsuccessful | P83: 2023-05-09 | R83: N
A84: 20 | B84: 2023-05-09 | D84: NIFTY 18250 PE 11-MAY | E84: Buy | F84: 38.5 | H84: 62 | I84: 80-120 | J84: Profit of Rs.23.5/- | K84: =H84-F84 -> 23.5 | L84: 100.00 | M84: =(K84*N84)-100 -> 1075.0 | N84: 50 | O84: Successful | P84: 2023-05-09 | R84: H
A85: 21 | B85: 2023-05-09 | D85: PVR 1460 PE MAY | E85: Buy | F85: 39 | G85: 25 | H85: 45.5 | I85: 60-75 | J85: Profit of Rs.6.5/- | K85: 6.5 | L85: 100.00 | M85: 2545.5 | N85: 407 | O85: Successful | P85: 2023-05-09 | R85: N
A86: 22 | B86: 2023-05-09 | D86: ICICIBANK 930 PE MAY | E86: Buy | F86: 9 | G86: 2 | H86: 2 | I86: 15-20 | J86: Loss of Rs.7/- | K86: -7 | L86: 100.00 | M86: -5000.0 | N86: 700 | O86: Unsuccessful | P86: 2023-05-19 | R86: H
A87: 23 | B87: 2023-05-09 | D87: NIFTY 18250 PE 11-MAY | E87: Buy | F87: 46.5 | G87: 9 | H87: 65 | I87: 90-130 | J87: Profit of Rs.18.5/- | K87: =H87-F87 -> 18.5 | L87: 100.00 | M87: =(K87*N87)-100 -> 825.0 | N87: 50 | O87: Successful | P87: 2023-05-10 | R87: H
A88: 24 | B88: 2023-05-10 | D88: MARUTI 9000 CE MAY | E88: Buy | F88: 182.5 | G88: 135 | H88: 200 | I88: 230-260 | J88: Profit of Rs.16.5/- | K88: =H88-F88 -> 17.5 | L88: 100.00 | M88: =(K88*N88)-100 -> 1650.0 | N88: 100 | O88: Successful | P88: 2023-05-10 | R88: N
A89: 25 | B89: 2023-05-10 | D89: NIFTY 18250 PE 11-MAY | E89: Buy | F89: 38 | H89: 0 | I89: 90-130 | J89: Loss of Rs.38/- | K89: -38 | L89: 100.00 | M89: -2000.0 | N89: 50 | O89: Unsuccessful | P89: 2023-05-11 | R89: N
A90: 26 | B90: 2023-05-11 | D90: BHARTIARTL 800 CE MAY | E90: Buy | F90: 6.5 | G90: 1.8 | H90: 9 | I90: 12.0-15 | J90: Profit of Rs.2.5/- | K90: 2.5 | L90: 100.00 | M90: 2275.0 | N90: 950 | O90: Successful | P90: 2023-05-15 | R90: N
A91: 27 | B91: 2023-05-11 | D91: PVR 1460 PE MAY | E91: Buy | F91: 37 | G91: 23 | H91: 43 | I91: 60-70 | J91: Profit of Rs.6/- | K91: =H91-F91 -> 6 | L91: 100.00 | M91: =(K91*N91)-100 -> 2342.0 | N91: 407 | O91: Successful | P91: 2023-05-12 | R91: N
A92: 28 | B92: 2023-05-11 | D92: TCS 3300 CE MAY | E92: Buy | F92: 37 | G92: 15 | H92: 15 | I92: 60-80 | J92: Loss of Rs.22/- | K92: -22 | L92: 100.00 | M92: -3400.0 | N92: 150 | O92: Unsuccessful | P92: 2023-05-17 | R92: H
A93: 29 | B93: 2023-05-12 | D93: MARUTI 9300 CE MAY | E93: Buy | F93: 125 | G93: 76 | H93: 76 | I93: 175-200 | J93: Loss of Rs.49/- | K93: =H93-F93 -> -49 | L93: 100.00 | M93: =(K93*N93)-100 -> -5000.0 | N93: 100 | O93: Unsuccessful | P93: 2023-05-16 | R93: N
A94: 30 | B94: 2023-05-12 | D94: BANKNIFTY 43100 PE 25-MAY | E94: Buy | F94: 265 | H94: 0 | J94: Loss of Rs. 140/- | K94: -265 | L94: 100.00 | M94: =K94*25 -> -6625.0 | N94: 25 | O94: Unsuccessful | P94: 1900-05-25 | R94: H
D95: BANKNIFTY 43000 PE 18-MAY | E95: Sell | F95: 125 | H95: 0 | K95: 125 | L95: 100.00 | M95: =K95*25 -> 3125.0 | N95: 25
A96: 31 | B96: 2023-05-12 | D96: NIFTY 18500 CE 25-MAY | E96: Sell | F96: 68 | G96: 110 | H96: 55 | I96: 10.0-5 | J96: Profit of Rs.13/- | K96: =F96-H96 -> 13 | L96: 100.00 | M96: =(K96*N96)-100 -> 550.0 | N96: 50 | O96: Successful | P96: 2023-05-16 | R96: H
A97: 32 | B97: 2023-05-12 | D97: BANKNIFTY 44000 CE 18-MAY | E97: Sell | F97: 130 | G97: 210 | H97: 195 | I97: 10.0-5 | J97: Loss of Rs.65/- | K97: =F97-H97 -> -65 | L97: 100.00 | M97: =(K97*N97)-100 -> -1725.0 | N97: 25 | O97: Unsuccessful | P97: 2023-05-12 | R97: H
A98: 33 | B98: 2023-05-15 | D98: LT 2260 CE MAY | E98: Buy | F98: 29 | G98: 12 | H98: 35 | I98: 45-60 | J98: Profit of Rs.6/- | K98: =H98-F98 -> 6 | L98: 100.00 | M98: 1700.0 | N98: 300 | O98: Successful | P98: 2023-05-15 | R98: N
A99: 34 | B99: 2023-05-15 | D99: FINNIFTY 19500 PE 16-MAY | E99: Buy | F99: 38 | H99: 38 | I99: 80-100 | J99: No profit no loss/- | K99: =F99-H99 -> 0 | L99: 100.00 | M99: -100.0 | N99: 50 | O99: Neutral | P99: 2023-05-16 | R99: N
A100: 35 | B100: 2023-05-15 | D100: NIFTY 18350 PE 25-MAY | E100: Buy | F100: 84 | H100: 147 | J100: Profit of Rs.32/- | K100: =H100-F100 -> 63 | L100: 100.00 | M100: =(32*50)-200 -> 1400.0 | N100: 50 | O100: Successful | P100: 2023-05-17 | R100: H
D101: NIFTY 18200 PE 25-MAY | E101: Sell | F101: 49 | H101: 80 | K101: =49-80 -> -31 | L101: 100.00 | N101: 50
A102: 36 | B102: 2023-05-16 | D102: SRF 2560 CE MAY | E102: Buy | F102: 33 | G102: 16 | H102: 16 | I102: 50-70 | J102: Loss of Rs.17/- | K102: =H102-F102 -> -17 | L102: 100.00 | M102: =(K102*N102)-100 -> -6050.0 | N102: 350 | O102: Unsuccessful | P102: 2023-05-17 | R102: N
A103: 37 | B103: 2023-05-16 | D103: PVR 1440 PE MAY | E103: Buy | F103: 32 | G103: 19 | H103: 37 | I103: 50-60 | J103: Profit of Rs.5/- | K103: 5 | L103: 100.00 | M103: 1935.0 | N103: 407 | O103: Successful | P103: 2023-05-17 | R103: N
A104: 38 | B104: 2023-05-17 | D104: SBIN 600 CE MAY | E104: Buy | F104: 6.5 | G104: 3.4 | H104: 7.9 | I104: 10.0-12 | J104: Profit of Rs.1.40/- | K104: =H104-F104 -> 1.4 | L104: 100.00 | M104: =(K104*N104)-100 -> 2000.0 | N104: 1500 | O104: Successful | P104: 2023-05-18 | R104: H
A105: 39 | B105: 2023-05-17 | D105: BHARTIARTL 800 CE MAY | E105: Buy | F105: 7.5 | G105: 2.8 | H105: 9.75 | I105: 15-19 | J105: Profit of Rs.2.25/- | K105: =H105-F105 -> 2.25 | L105: 100.00 | M105: =(K105*N105)-100 -> 2037.5 | N105: 950 | O105: Successful | P105: 2023-05-18 | R105: N
A106: 40 | B106: 2023-05-17 | D106: NIFTY 18150 CE 18 MAY | E106: Buy | F106: 48 | G106: 14 | H106: 69 | I106: 46-50 | J106: Profit of Rs.21/- | K106: =H106-F106 -> 21 | L106: 100.00 | M106: =(K106*N106)-100 -> 950.0 | N106: 50 | O106: Successful | P106: 2023-05-17 | R106: H
A107: 41 | B107: 2023-05-18 | D107: LT 2240 CE MAY | E107: Buy | F107: 23.5 | G107: 8 | H107: 7 | I107: 40-50 | J107: Loss of Rs.16.5/- | K107: -16.5 | L107: 100.00 | M107: -5050.0 | N107: 300 | O107: Unsuccessful | P107: 2023-05-19 | R107: N
A108: 42 | B108: 2023-05-18 | D108: NIFTY 18200 CE 18-MAY | E108: Buy | F108: 21 | G108: 0 | H108: 31 | I108: 40-60 | J108: Profit of Rs.10/- | K108: =H108-F108 -> 10 | L108: 100.00 | M108: =(K108*N108)-100 -> 400.0 | N108: 50 | O108: Successful | P108: 2023-05-18 | R108: N
A109: 43 | B109: 2023-05-19 | D109: TCS 3220 CE MAY | E109: Buy | F109: 28 | G109: 10 | H109: 31.5 | I109: 50-70 | J109: Profit of Rs.3.5/- | K109: =H109-F109 -> 3.5 | L109: 100.00 | M109: =(K109*N109)-100 -> 512.5 | N109: 175 | O109: Successful | P109: 2023-05-22 | R109: N
A110: 44 | B110: 2023-05-19 | D110: BHARTIARTL 800 CE MAY | E110: Buy | F110: 4.5 | H110: 6.75 | I110: 10.0-14 | J110: Profit of Rs.2.25/- | K110: =H110-F110 -> 2.25 | L110: 100.00 | M110: =(K110*N110)-100 -> 2037.5 | N110: 950 | O110: Successful | P110: 2023-05-19 | R110: N
A111: 45 | B111: 2023-05-23 | D111: BHARTIARTL 800 CE MAY | E111: Buy | F111: 3.25 | H111: 3.25 | I111: 7.0-10 | J111: No profit no loss/- | K111: =F111-H111 -> 0 | L111: 100.00 | M111: -100.0 | N111: 50 | O111: Neutral | P111: 2023-05-24 | R111: N
A112: 46 | B112: 2023-05-23 | D112: FINNIFTY 19450 CE 23-MAY | E112: Buy | F112: 26 | H112: 0 | I112: 60-80 | J112: Loss of Rs.26/- | K112: =H112-F112 -> -26 | L112: 100.00 | M112: =(K112*N112)-100 -> -1140.0 | N112: 40 | O112: Unsuccessful | P112: 2023-05-23 | R112: N
A113: 47 | B113: 2023-05-23 | D113: NIFTY 18350 PE MAY | E113: Buy | F113: 41.5 | H113: 77.5 | I113: 80-100 | J113: Profit of Rs.36/- | K113: 36 | L113: 100.00 | M113: 1700.0 | N113: 50 | O113: Successful | P113: 2023-05-24 | R113: N
A114: 48 | B114: 2023-05-23 | D114: NIFTY 18450 CE MAY | E114: Sell | F114: 45 | G114: 85 | H114: 25 | I114: 5-1.0 | J114: Profit of Rs.20/- | K114: =F114-H114 -> 20 | L114: 100.00 | M114: =(K114*N114)-100 -> 900.0 | N114: 50 | O114: Successful | P114: 2023-05-23 | R114: H
A115: 49 | B115: 2023-05-23 | D115: LT 2200 CE MAY | E115: Buy | F115: 15.5 | H115: 5.5 | I115: 30-40 | J115: Loss of Rs.10/- | K115: =H115-F115 -> -10 | L115: 100.00 | M115: -3100.0 | N115: 300 | O115: Unsuccessful | P115: 2023-05-24 | R115: H
A116: 50 | B116: 2023-05-24 | D116: NIFTY 18350 PE MAY | E116: Buy | F116: 37 | H116: 54.5 | I116: 80-100 | J116: Profit of Rs.17.5/- | K116: 17.5 | L116: 100.00 | M116: 775.0 | N116: 50 | O116: Successful | P116: 2023-05-24 | R116: H
A117: 51 | B117: 2023-05-24 | D117: IRCTC 640 CE JUNE | E117: Buy | F117: 14 | G117: 8.5 | H117: 16.75 | I117: 22-28 | J117: Profit of Rs.2.75/- | K117: 2.75 | L117: 100.00 | M117: 2237.5 | N117: 850 | O117: Successful | P117: 2023-05-29 | R117: N
A118: 51 | B118: 2023-05-25 | D118: FINNIFTY 19250 CE 30-MAY | E118: Buy | F118: 78 | G118: 30 | H118: 99 | I118: 120-150 | J118: Profit of Rs.21/- | K118: =H118-F118 -> 21 | L118: 100.00 | M118: =(K118*N118)-100 -> 740.0 | N118: 40 | O118: Successful | P118: 2023-05-25 | R118: H
A119: 52 | B119: 2023-05-25 | D119: NIFTY 18200 PE MAY | E119: Buy | F119: 10 | H119: 0 | I119: 35-45 | J119: Loss of Rs.10/- | K119: -10 | L119: 100.00 | M119: -500.0 | N119: 40 | O119: Unsuccessful | P119: 2023-05-25 | R119: H
A120: 53 | B120: 2023-05-26 | D120: BHARTIARTL 840 CE JUN | E120: Buy | F120: 8.5 | G120: 3.5 | H120: 11.5 | I120: 14-18 | J120: Profit of Rs.3/- | K120: 3 | L120: 100.00 | M120: 2750.0 | N120: 950 | O120: Successful | P120: 2023-05-29 | R120: H
A121: 54 | B121: 2023-05-26 | D121: NIFTY 18900 CE 29-JUNE | E121: Sell | F121: 79 | G121: 115 | H121: 115 | I121: 5.0-1 | J121: Loss of Rs.36/- | K121: =F121-H121 -> -36 | L121: 100.00 | M121: -1900.0 | N121: 50 | O121: Unsuccessful | P121: 2023-05-29
A122: 55 | B122: 2023-05-29 | D122: NIFTY 19000 CE 29-JUNE | E122: Sell | F122: 89-109 | G122: 135 | I122: 10.0-1 | J122: Open
A127: Techno -Funda (positional)
A128: Sr.no | B128: Date | D128: Company | E128: Rec | F128: Rec Price | G128: Stop Loss*** | H128: Call Closed At | I128: Target | J128: Remark | K128: Profit / Loss per Share/Lot | L128: All charges | M128: Net Gain / Loss % | N128: Status | O128: Closed Date | P128: Market Closing Price
A129: 1 | B129: 2022-10-06 | D129: AMBIKCO | E129: Buy | F129: 1420-1620 | G129: 1220 | I129: 2000-2300 | J129: Open | P129: =VLOOKUP(D129,'MidCap Intra'!B98:C598,2,0) ->  | R129: H
A130: 2 | B130: 2023-04-03 | D130: BEL | E130: Buy | F130: 96.5 | G130: 88 | H130: 104.5 | I130: 105-110 | J130: Profit of Rs.8/- | K130: =H130-F130 -> 8 | L130: =(F130*-0.7)/100 -> -0.68 | M130: =(K130+L130)/F130 -> 7.59% | N130: Successful | O130: 2023-05-02 | R130: H
A131: 3 | B131: 2023-05-04 | D131: IOC | E131: Buy | F131: 84 | G131: 74.9 | H131: 89.75 | I131: 95-100 | J131: Part profit of Rs.5.75/- | K131: =H131-F131 -> 5.75 | L131: =(F131*-0.7)/100 -> -0.59 | M131: =(K131+L131)/F131 -> 6.15% | N131: Successful | O131: 2023-05-24 | R131: H
A132: 4 | B132: 2023-05-25 | D132: GSPL | E132: Buy | F132: 276-296 | G132: 267 | I132: 330-350 | J132: Open | R132: H
A134: CLBS = Closing Basis *** | F134: Reinitiated $
A135: Dividend adjusted <> | F135: Revised stoploss # | H135: .................
A138: Master Trade High Risk (Advisory Calls)
A139: Sr.no | B139: Date | D139: Company | E139: Rec | F139: Rec Price | G139: Stop Loss | H139: Call Closed At | I139: Target | J139: Remark | K139: Profit / Loss per share | L139: All charges | M139: Gain / Loss per Lot | N139: Lot | O139: Status | P139: Closed Date
A140: 1 | B140: 2023-05-18 | D140: BANKNIFTY | E140: Sell | F140: 43980 | G140: 44089 | H140: 43800 | I140: 43860-43750 | J140: Profit of Rs.180/- | K140: =F140-H140 -> 180 | L140: =(H140*N140)*0.07% -> 766.50 | M140: =(K140*N140)-L140 -> 3733.5 | N140: 25 | O140: Successful | P140: 2023-05-18 | R140: A
A141: 2 | B141: 2023-05-19 | D141: TECHM 1060 CE MAY | E141: Buy | F141: 10.25 | G141: 7.7 | H141: 14 | I141: 17.00 | J141: Profit of Rs.3.75/- | K141: =H141-F141 -> 3.75 | L141: 100.00 | M141: =(K141*N141)-L141 -> 2150.0 | N141: 600 | O141: Successful | P141: 2023-05-19 | R141: A
A142: 3 | B142: 2023-05-19 | D142: NIFTY 18200 PE MAY | E142: Buy | F142: 71 | G142: 58 | H142: 69.5 | I142: 113-138 | J142: Loss of Rs.1.5/- | K142: -1.5 | L142: 100.00 | M142: =(K142*N142)-L142 -> -175.0 | N142: 50 | O142: Unsuccessful | P142: 2023-05-19 | R142: A
A143: 4 | B143: 2023-05-22 | D143: NIFTY 18300 PE MAY | E143: Buy | F143: 70 | G143: 55 | H143: 55 | I143: 113-138 | J143: Loss of Rs.15/- | K143: -15 | L143: 100.00 | M143: -850.0 | N143: 50 | O143: Unsuccessful | P143: 2023-05-22 | R143: A
A144: 5 | B144: 2023-05-23 | D144: BAJFINANCE 6900 CE MAY | E144: Buy | F144: 26 | G144: 10 | H144: 25.5 | I144: 50-100 | J144: Loss of Rs.0.5/- | K144: -0.5 | L144: 100.00 | M144: =(K144*N144)-L144 -> -187.5 | N144: 175 | O144: Unsuccessful | P144: 2023-05-23 | R144: A
A145: 6 | B145: 2023-05-24 | D145: NIFTY | E145: Buy | F145: 18310 | G145: 18263 | H145: 18300 | I145: 18377-18398 | J145: Loss of Rs.10/- | K145: -10 | L145: =(H145*N145)*0.07% -> 640.50 | M145: =(K145*N145)-L145 -> -1140.5 | N145: 50 | O145: Unsuccessful | P145: 2023-05-24 | R145: A
A146: 7 | B146: 2023-05-24 | D146: BRITANNIA 4600 CE MAY | E146: Buy | F146: 81 | G146: 70 | H146: 79 | I146: 118 | J146: Loss of Rs.2/- | K146: -2 | L146: 100.00 | M146: -900.0 | N146: 400 | O146: Unsuccessful | P146: 2023-05-24 | R146: A
A147: 8 | B147: 2023-05-24 | D147: NIFTY | E147: Sell | F147: 18285 | G147: 18325 | H147: 18295 | I147: 18240-18210 | J147: Loss of Rs.10/- | K147: =F147-H147 -> -10 | L147: 320.16 | M147: -570.2 | N147: 25 | O147: Unsuccessful | P147: 2023-05-24 | R147: A
B155: Investment Idea
A156: Sr.no | B156: Date | D156: Company | E156: Rec | F156: Rec Price | G156: Point of Review | H156: Close Rate | I156: Target | J156: Remark | K156: Profit / Loss per Share | L156: Gain / Loss % | M156: Status | N156: Closed Date
A157: 1 | B157: 2013-11-01 | D157: L&T Finance Holding | E157: Accu | F157: 82.00 | G157: - | H157: 100 | I157: 100.00 | J157: Target Achieved | K157: =H157-F157 -> 18.00 | L157: =K157/F157 -> 21.95% | M157: Successful | N157: 2016-10-14
A158: 2 | B158: 2014-06-04 | D158: Finolex Inds | E158: Buy | F158: 257.00 | G158: - | H158: 300 | I158: 300.00 | J158: Target Achieved | K158: 43.00 | L158: 16.73% | M158: Successful | N158: 2014-07-02
A159: 3 | B159: 2014-07-08 | D159: JK Cement | E159: Buy | F159: 393.00 | G159: - | H159: 468 | I159: 468.00 | J159: Target Achieved | K159: 75.00 | L159: 19.08% | M159: Successful | N159: 2014-08-12
A160: 4 | B160: 2014-08-06 | D160: Finolex Cables | E160: Buy | F160: 205.00 | G160: - | H160: 275 | I160: 250.00 | J160: Target Achieved | K160: 70.00 | L160: 34.15% | M160: Successful | N160: 2014-11-19
A161: 5 | B161: 2014-09-04 | D161: Exide Inds | E161: Buy | F161: 162.00 | G161: - | H161: 190 | I161: 190.00 | J161: Target Achieved | K161: 28.00 | L161: 17.28% | M161: Successful | N161: 2015-01-02
A162: 6 | B162: 2014-09-04 | D162: Deepak Nitrite | E162: Buy | F162: 75.00 | G162: - | H162: 91.5 | I162: 95-100 | J162: Profit of Rs.16.50/- | K162: 16.50 | L162: 22.00% | M162: Successful | N162: 2014-11-11
A163: 7 | B163: 2014-10-01 | D163: Mercks | E163: Buy | F163: 850.00 | G163: - | H163: 982.5 | I163: 1050.00 | J163: Profit of Rs.132.50/- | K163: 132.50 | L163: 15.59% | M163: Successful | N163: 2015-02-04
A164: 8 | B164: 2014-10-01 | D164: Grindwell Norton | E164: Buy | F164: 475.00 | G164: - | H164: 515 | I164: 600.00 | J164: Profit of Rs.40/- | K164: 40.00 | L164: 8.42% | M164: Successful | N164: 2014-10-27
A165: 9 | B165: 2014-10-01 | D165: Snowman Logistics | E165: Buy | F165: 86.00 | G165: - | H165: 99 | I165: 140.00 | J165: Profit of Rs.13.00/- | K165: 13.00 | L165: 15.12% | M165: Successful | N165: 2014-10-27
A166: 10 | B166: 2014-10-14 | D166: Birla Corp | E166: Buy | F166: 496.60 | G166: - | H166: 621 | I166: 580.00 | J166: Target Achieved | K166: 124.40 | L166: 25.05% | M166: Successful | N166: 2016-08-23
A167: 11 | B167: 2014-10-14 | D167: Ultratech Cem | E167: Buy | F167: 2481.90 | G167: - | H167: 2840 | I167: 2870.00 | J167: Profit of Rs.358.10/- | K167: 358.10 | L167: 14.43% | M167: Successful | N167: 2015-01-13
A168: 12 | B168: 2014-10-16 | D168: Sintex Inds | E168: Buy | F168: 84.50 | G168: - | H168: 93 | I168: 110.00 | J168: Profit of Rs.8.50/- | K168: 8.50 | L168: 10.06% | M168: Successful | N168: 2014-10-27
A169: 13 | B169: 2014-10-16 | D169: HSIL | E169: Buy | F169: 401.00 | G169: - | H169: 428 | I169: 450.00 | J169: Profit of Rs.27.00/- | K169: 27.00 | L169: 6.73% | M169: Successful | N169: 2015-01-16
A170: 14 | B170: 2014-10-16 | D170: Eveready Inds | E170: Buy | F170: 101.00 | G170: - | H170: 112 | I170: 120.00 | J170: Profit of Rs.11.00/- | K170: 11.00 | L170: 10.89% | M170: Successful | N170: 2014-10-27
A171: 15 | B171: 2014-11-11 | D171: Pennar Inds | E171: Buy | F171: 59.00 | G171: - | H171: 76 | I171: 76.00 | J171: Target Achieved | K171: 17.00 | L171: 28.81% | M171: Successful | N171: 2017-10-24
A172: 16 | B172: 2014-11-11 | D172: Snowman Logistics | E172: Buy | F172: 99.00 | G172: - | H172: 120 | I172: 120.00 | J172: Profit of Rs.21/- | K172: 21.00 | L172: 21.21% | M172: Successful | N172: 2014-11-17
A173: 17 | B173: 2014-11-13 | D173: Dharamsi Morarji Chem | E173: Buy | F173: 22.00 | G173: - | H173: 33.55 | I173: 32.00 | J173: Profit of Rs 11.55/- | K173: 11.55 | L173: 52.50% | M173: Successful | N173: 2015-07-03
A174: 18 | B174: 2014-12-03 | D174: Tatachem | E174: Buy | F174: 440.00 | G174: - | H174: 520 | I174: 520.00 | J174: Profit of Rs 80.00/- | K174: 80.00 | L174: 18.18% | M174: Successful | N174: 2015-07-23
A175: 19 | B175: 2014-12-03 | D175: Advanta | E175: Buy | F175: 360.00 | G175: - | H175: 427 | I175: 425.00 | J175: Profit of Rs.67.00/- | K175: 67.00 | L175: 18.61% | M175: Successful | N175: 2015-02-23
A176: 20 | B176: 2015-01-08 | D176: GDL | E176: Buy | F176: 360.00 | G176: - | H176: 455 | I176: 420.00 | J176: Profit of Rs.95.00/- | K176: 95.00 | L176: 26.39% | M176: Successful | N176: 2015-01-20
A177: 21 | B177: 2015-01-08 | D177: NRB Bearing | E177: Buy | F177: 130.00 | H177: 175.5 | I177: 165.00 | J177: Profit of Rs 45.50/- | K177: 45.50 | L177: 35.00% | M177: Successful | N177: 2017-12-19
A178: 22 | B178: 2015-02-05 | D178: GSFC | E178: Accu | F178: 98.00 | H178: 120 | I178: 120.00 | J178: Target Achieved | K178: 22.00 | L178: 22.45% | M178: Successful | N178: 2017-01-18
A179: 23 | B179: 2015-02-05 | D179: Sundrmfast | E179: Accu | F179: 196.00 | H179: 262 | I179: 255.00 | J179: Target Achieved | K179: 66.00 | L179: 33.67% | M179: Successful | N179: 2016-08-17
A180: 24 | B180: 2015-03-04 | D180: GPPL | E180: Accu | F180: 235 | H180: 77.00 | I180: 280-285 | J180: Loss of Rs.158/- | K180: -158.00 | L180: -67.23% | M180: Unsuccessful | N180: 2019-02-26
A181: 25 | B181: 2015-03-04 | D181: ORIENTCEM | E181: Accu | F181: 185.00 | H181: 224 | I181: 220-225 | J181: Target Achieved | K181: 39.00 | L181: 21.08% | M181: Successful | N181: 2016-10-04
A182: 26 | B182: 2015-03-27 | D182: PFS | E182: Accu | F182: 49.5 | H182: 15.85 | I182: 67.00 | J182: Loss of Rs.33.65/- | K182: -33.65 | L182: -68% | M182: Unsuccessful | N182: 2019-06-11
A183: 27 | B183: 2015-03-30 | D183: Walchandnagar Ind Ltd | E183: Accu | F183: 183.50 | H183: 219 | I183: 218.00 | J183: Profit of Rs.35.50/- | K183: 35.50 | L183: 19.35% | M183: Successful | N183: 2015-04-09
A184: 28 | B184: 2015-04-20 | D184: Kalpataru Power Transmission Ltd | E184: Accu | F184: =(227+237)/2 -> 232.00 | H184: 298 | I184: 298.00 | J184: Target Achieved | K184: 66.00 | L184: 28.45% | M184: Successful | N184: 2017-03-29
A185: 29 | B185: 2015-05-04 | D185: Mastek Ltd | E185: Buy | F185: 385.00 | H185: =212.5+331 -> 543.5 | I185: 510.00 | J185: Profit of Rs 158.50/- | K185: 158.50 | L185: 41.17% | M185: Successful | N185: 2015-08-19
A186: 30 | B186: 2015-05-04 | D186: Suprajit Eng | E186: Buy | F186: 115.50 | H186: 146 | I186: 142.00 | J186: Profit of Rs 30.50/- | K186: 30.50 | L186: 26.41% | M186: Successful | N186: 2015-07-17
A187: 31 | B187: 2015-05-27 | D187: TCI | E187: Buy | F187: 237.50 | H187: 279.5 | I187: 278.00 | J187: Target Achieved | K187: 42.00 | L187: 17.68% | M187: Successful | N187: 2015-08-06
A188: 32 | B188: 2015-06-19 | D188: HSIL | E188: Accu | F188: 340.00 | H188: 448 | I188: 448.00 | J188: Target Achieved | K188: 108.00 | L188: 31.76% | M188: Successful | N188: 2017-10-10
A189: 33 | B189: 2015-07-06 | D189: Capital First | E189: Accu | F189: 390.00 | H189: 460 | I189: 460.00 | J189: Target Achieved | K189: =H189-F189 -> 70.00 | L189: =K189/F189 -> 17.95% | M189: Successful | N189: 2016-04-18
A190: 34 | B190: 2015-07-10 | D190: Dolphin OffShore | E190: Accu | F190: 122.5 | H190: 61.00 | I190: 172.00 | J190: Loss of Rs.61.50/- | K190: -61.50 | L190: -50.20% | M190: Unsuccessful | N190: 2018-08-21
A191: 35 | B191: 2015-08-03 | D191: Allcargo logistics | E191: Accu | F191: 297.50 | H191: 350 | I191: 360.00 | J191: Profit of Rs 52.50/- | K191: 52.50 | L191: 17.65% | M191: Successful | N191: 2015-08-16
A192: 36 | B192: 2015-08-03 | D192: Camline Fine | E192: Accu | F192: 115.50 | H192: 149 | I192: 140.00 | J192: Profit of Rs 33.50/- | K192: 33.50 | L192: 29.00% | M192: Successful | N192: 2017-01-05
A193: 37 | B193: 2015-09-04 | D193: TCI | E193: Accu | F193: 226.00 | H193: 292 | I193: 292.00 | J193: Target Achieved | K193: 66.00 | L193: 29.20% | M193: Successful | N193: 2015-10-09
A194: 38 | B194: 2015-09-07 | D194: Kalpataru Power Transmission Ltd | E194: Accu | F194: 232.50 | H194: 312.5 | I194: 310.00 | J194: Target Achieved | K194: 80.00 | L194: 34.41% | M194: Successful | N194: 2017-03-29
A195: 39 | B195: 2015-09-21 | D195: LLOYD ELECTRIC & ENG LTD | E195: Accu | F195: 196.50 | H195: 238 | I195: 238.00 | J195: Target Achieved | K195: 41.50 | L195: 21.12% | M195: Successful | N195: 2015-10-14
A196: 40 | B196: 2015-09-24 | D196: L&T Finance Holding | E196: Accu | F196: 65.00 | H196: 82 | I196: 82.00 | J196: Target Achieved | K196: 17.00 | L196: 26.15% | M196: Successful | N196: 2016-07-27
A197: 41 | B197: 2015-10-14 | D197: KEC International ltd | E197: Accu | F197: 144.00 | H197: 182.5 | I197: 181.00 | J197: Target Achieved | K197: 38.50 | L197: 26.74% | M197: Successful | N197: 2017-03-23
A198: 42 | B198: 2015-10-14 | D198: Gruh Finance | E198: Accu | F198: 264.00 | H198: 311 | I198: 311.00 | J198: Target Achieved | K198: 47.00 | L198: 17.80% | M198: Successful | N198: 2016-08-22
A199: 43 | B199: 2015-11-10 | D199: Pidilitind | E199: Buy | F199: 549.50 | H199: 630 | I199: 630.00 | J199: Target Achieved | K199: 80.50 | L199: 14.65% | M199: Successful | N199: 2016-02-19
A200: 44 | B200: 2015-12-04 | D200: Zensar Technology | E200: Accu | F200: 1027.50 | H200: 1315 | I200: 1250.00 | J200: Target Achieved | K200: 287.50 | L200: 27.98% | M200: Successful | N200: 2018-05-24
A201: 45 | B201: 2015-12-29 | D201: Vinati Organics Ltd | E201: Accu | F201: 465.00 | H201: 540 | I201: 540.00 | J201: Target Achieved | K201: 75.00 | L201: 16.13% | M201: Successful | N201: 2016-06-09
A202: 46 | B202: 2016-01-11 | D202: GSFC | E202: Buy | F202: 81.00 | H202: 110 | I202: 110.00 | J202: Target Achieved | K202: 29.00 | L202: 35.80% | M202: Successful | N202: 2017-01-10
A203: 47 | B203: 2016-01-13 | D203: SSWL | E203: Buy | F203: 417.50 | H203: 547 | I203: 535.00 | J203: Target Achieved | K203: 129.50 | L203: 31.02% | M203: Successful | N203: 2016-07-27
A204: 48 | B204: 2016-02-08 | D204: Persistent System Ltd | E204: Accu | F204: 650.00 | H204: 800 | I204: 800.00 | J204: Target Achieved | K204: 150.00 | L204: 23.08% | M204: Successful | N204: 2018-02-23
A205: 49 | B205: 2016-03-04 | D205: UPL | E205: Accu | F205: 437.50 | H205: 504.5 | I205: 522.00 | J205: Profit of Rs.67/- | K205: 67.00 | L205: 15.31% | M205: Successful | N205: 2016-04-20
A206: 50 | B206: 2016-03-09 | D206: Ashoka Buildcon Ltd | E206: Accu | F206: 189.50 | H206: 218 | I206: 218.00 | J206: Target Achieved | K206: 28.50 | L206: 15.04% | M206: Successful | N206: 2017-10-26
A207: 51 | B207: 2016-04-11 | D207: PTC INDIA FIN SERV LTD | E207: Accu | F207: 36.5 | H207: 15.85 | I207: 60.00 | J207: Loss of Rs.20.65/- | K207: -20.65 | L207: -56.58% | M207: Unsuccessful | N207: 2019-06-11
A208: 52 | B208: 2016-04-12 | D208: CAMLINFINE $ | E208: Accu | F208: 93.00 | H208: 149 | I208: 140.00 | J208: Profit of Rs 56/- | K208: 56.00 | L208: 60.22% | M208: Successful | N208: 2017-01-05
A209: 53 | B209: 2016-04-12 | D209: Greaves Cotton Ltd. | E209: Accu | F209: 130.00 | H209: 150 | I209: 150-155 | J209: Target Achieved | K209: 20.00 | L209: 15.38% | M209: Successful | N209: 2016-07-13
A210: 54 | B210: 2016-04-13 | D210: DHFL | E210: Accu | F210: 196.00 | H210: 299 | I210: 299.00 | J210: Target Achieved | K210: 103.00 | L210: 52.55% | M210: Successful | N210: 2016-09-07
A211: 55 | B211: 2016-04-13 | D211: Magma | E211: Accu | F211: 88.00 | H211: 103 | I211: 103.00 | J211: Target Achieved | K211: 15.00 | L211: 17.05% | M211: Successful | N211: 2016-06-09
A212: 56 | B212: 2016-05-02 | D212: KEC International ltd $ | E212: Accu | F212: 127.50 | H212: 148 | I212: 148-150 | J212: Target Achieved | K212: =H212-F212 -> 20.50 | L212: =K212/F212 -> 16.08% | M212: Successful | N212: 2016-07-13
A213: 57 | B213: 2016-05-03 | D213: Mindtree | E213: Accu | F213: 675.00 | H213: 815 | I213: 790-800 | J213: Target Achieved | K213: =H213-F213 -> 140.00 | L213: =K213/F213 -> 20.74% | M213: Successful | N213: 2018-02-23
A214: 58 | B214: 2016-06-01 | D214: Atulauto | E214: Accu | F214: 500 | H214: 232.50 | I214: 565-570 | J214: Loss of Rs.267.50 /- | K214: =H214-F214 -> -267.50 | L214: =K214/F214 -> -53.50% | M214: Unsuccessful | N214: 2019-09-27
A215: 59 | B215: 2016-06-06 | D215: TRITURBINE | E215: Accu | F215: 110.00 | H215: 126.5 | I215: 125.00 | J215: Profit of Rs.16.50/- | K215: =H215-F215 -> 16.50 | L215: =K215/F215 -> 15.00% | M215: Successful | N215: 2016-07-01
A216: 60 | B216: 2016-06-17 | D216: Pennar Industries Ltd | E216: Accu | F216: 44.00 | H216: 69.5 | I216: 69.50 | J216: Profit of Rs.25.50/- | K216: =H216-F216 -> 25.50 | L216: =K216/F216 -> 57.95% | M216: Successful | N216: 2017-08-30
A217: 61 | B217: 2016-06-28 | D217: EVEREADY | E217: Accu | F217: 262.50 | H217: 340 | I217: 333.00 | J217: Profit of Rs.77.50/- | K217: 77.50 | L217: 29.52% | M217: Successful | N217: 2017-10-09
A218: 62 | B218: 2016-06-28 | D218: FIEMIND | E218: Accu | F218: 840.00 | H218: 1230 | I218: 1230.00 | J218: Target Achieved | K218: 390.00 | L218: 46.43% | M218: Successful | N218: 2016-10-06
A219: 63 | B219: 2016-07-05 | D219: Bajaj Corp Ltd | E219: Accu | F219: 395 | H219: =(468.5+342.5)/2 -> 405.50 | I219: 510.00 | J219: Profit of Rs.10.50/- | K219: =H219-F219 -> 10.50 | L219: =K219/F219 -> 3% | M219: Neutral | N219: 2019-05-21
A220: 64 | B220: 2016-08-02 | D220: GPPL $ | E220: Buy | F220: =169.5-12.8 -> 156.7 | H220: 77.00 | I220: 198-200 | J220: Loss of Rs.79.7/- | K220: -79.70 | L220: -50.86% | M220: Unsuccessful | N220: 2019-02-26
A221: 65 | B221: 2016-08-04 | D221: WONDERLA HOLIDAYS LTD | E221: Accu | F221: 400 | H221: 305.00 | I221: 475.00 | J221: Loss of Rs.95/- | K221: -95.00 | L221: -23.75% | M221: Unsuccessful | N221: 2019-05-21
A222: 66 | B222: 2016-08-11 | D222: CAMLINFINE | E222: Accu | F222: 86.50 | H222: 130 | I222: 130.00 | J222: Profit of Rs.43.50/- | K222: 43.50 | L222: 50.29% | M222: Successful | N222: 2017-12-22
A223: 67 | B223: 2016-08-18 | D223: GRANULES | E223: Accu | F223: 133.5 | H223: 126.50 | I223: 178.00 | J223: Exit | K223: -7.00 | L223: -5.24% | M223: Unsuccessful | N223: 2016-09-02
A224: 68 | B224: 2016-08-31 | D224: VA TECH WABAG | E224: Accu | F224: 560.00 | H224: 725 | I224: 725.00 | J224: Target Achieved | K224: 165.00 | L224: 29.46% | M224: Successful | N224: 2016-03-27
A225: 69 | B225: 2016-09-01 | D225: SKIPPER LIMITED | E225: Accu | F225: 160.50 | H225: 210 | I225: 210.00 | J225: Target Achieved | K225: 49.50 | L225: 30.84% | M225: Successful | N225: 2017-05-16
A226: 70 | B226: 2016-10-03 | D226: IFBIND | E226: Accu | F226: 430.00 | H226: 596 | I226: 575.00 | J226: Profit of Rs.166/- | K226: 166.00 | L226: 38.60% | M226: Successful | N226: 2017-02-03
A227: 71 | B227: 2016-10-14 | D227: ASIANTILES | E227: Accu | F227: 280.00 | H227: 345 | I227: 345.00 | J227: Target Achieved | K227: =H227-F227 -> 65.00 | L227: =K227/F227 -> 23.21% | M227: Successful | N227: 2017-03-20
A228: 72 | B228: 2016-10-14 | D228: DEEPIND | E228: Accu | F228: 245.00 | H228: 325.5 | I228: 330.00 | J228: Profit of Rs.80.5/- | K228: 80.50 | L228: =K228/F228 -> 32.86% | M228: Successful | N228: 2017-02-03
... 116 more rows
